Organisation Code,Organisation Label,Effective Date,Organisational Unit,Service Division Label,Category Internal Name,Purpose,Detailed Expenditure Code,Payment Date,Transaction Number,Irrecoverable VAT Amount,Amount,Capital Or Revenue,Benificiary Name,Procurement Card
Http://opendatacommunities.org/id/metropolitan-district-council/leeds,Leeds City Council,30/06/2018,Communities and Environment,Benefits  Wlefare And Poverty  ,Supplies and Services,Telephones,213,15/05/2018,0618-00001,0,45,R,(Aq) Limited,Yes
Http://opendatacommunities.org/id/metropolitan-district-council/leeds,Leeds City Council,30/06/2018,Resources and Housing,Leeds Building Services,Supplies and Services,Operational Materials,205,01/06/2018,0618-00002,0,407.3,R,A Andrews & Sons (Marbles & Tiles),No
Http://opendatacommunities.org/id/metropolitan-district-council/leeds,Leeds City Council,30/06/2018,Resources and Housing,Leeds Building Services,Supplies and Services,Operational Materials,205,26/06/2018,0618-00003,0,62,R,A Andrews & Sons (Marbles & Tiles),No
Http://opendatacommunities.org/id/metropolitan-district-council/leeds,Leeds City Council,30/06/2018,Strategic Landlord,Housing Management,Supplies and Services,Compensation Claims,200,21/06/2018,0618-00004,0,200,R,REDACTED PERSONAL DATA,No
Http://opendatacommunities.org/id/metropolitan-district-council/leeds,Leeds City Council,30/06/2018,City Development,Libraries  Arts & Heritage,Supplies and Services,Operational Materials,205,01/06/2018,0618-00005,0,337.25,R,A C Entertainment Technologies Ltd,No
Http://opendatacommunities.org/id/metropolitan-district-council/leeds,Leeds City Council,30/06/2018,City Development,Libraries  Arts & Heritage,Supplies and Services,Operational Furniture And Equipment,203,22/06/2018,0618-00006,0,650,R,A C Entertainment Technologies Ltd,No
Http://opendatacommunities.org/id/metropolitan-district-council/leeds,Leeds City Council,30/06/2018,Resources and Housing,HRA Housing Leeds,Capital,Other Costs,7,21/06/2018,0618-00007,0,25,C,REDACTED PERSONAL DATA,No
Http://opendatacommunities.org/id/metropolitan-district-council/leeds,Leeds City Council,30/06/2018,Children and Families,Social Care,Third Party Payments,Services Rendered By Other Organisations,511,01/06/2018,0618-00008,0,59.33,R,A Clarkson,No
Http://opendatacommunities.org/id/metropolitan-district-council/leeds,Leeds City Council,30/06/2018,Children and Families,Social Care,Third Party Payments,Services Rendered By Voluntary Sector,505,01/06/2018,0618-00009,0,320.33,R,REDACTED PERSONAL DATA,No
Http://opendatacommunities.org/id/metropolitan-district-council/leeds,Leeds City Council,30/06/2018,Children and Families,Social Care,Third Party Payments,Services Rendered By Voluntary Sector,505,01/06/2018,0618-00010,0,63,R,REDACTED PERSONAL DATA,No
Http://opendatacommunities.org/id/metropolitan-district-council/leeds,Leeds City Council,30/06/2018,City Development,Highways,Capital,Construction,3,27/06/2018,0618-00011,0,229006.15,C,A E Yates Ltd,No
Http://opendatacommunities.org/id/metropolitan-district-council/leeds,Leeds City Council,30/06/2018,Communities and Environment,Elections  Licensing and Registration,Income,Admissions  Booking Fees & Ticket Sales,933,07/06/2018,0618-00012,0,120,R,REDACTED PERSONAL DATA,No
Http://opendatacommunities.org/id/metropolitan-district-council/leeds,Leeds City Council,30/06/2018,Children and Families,Social Care,Third Party Payments,Services Rendered By Other Organisations,511,01/06/2018,0618-00013,0,141,R,REDACTED PERSONAL DATA,No
Http://opendatacommunities.org/id/metropolitan-district-council/leeds,Leeds City Council,30/06/2018,Resources and Housing,HRA Housing Leeds,Capital,Other Costs,7,14/06/2018,0618-00014,0,20,C,REDACTED PERSONAL DATA,No
Http://opendatacommunities.org/id/metropolitan-district-council/leeds,Leeds City Council,30/06/2018,Communities and Environment,Customer Access,Supplies and Services,Bought In Professional Services,277,11/06/2018,0618-00015,0,138,R,A Haythornthwaite,No
Http://opendatacommunities.org/id/metropolitan-district-council/leeds,Leeds City Council,30/06/2018,Children and Families,Social Care,Third Party Payments,Services Rendered By Other Organisations,511,01/06/2018,0618-00016,0,79,R,REDACTED PERSONAL DATA,No
Http://opendatacommunities.org/id/metropolitan-district-council/leeds,Leeds City Council,30/06/2018,Resources and Housing,Leeds Building Services,Supplies and Services,Operational Materials,205,01/06/2018,0618-00017,0,127.04,R,A J H  Pump Supply & Repair Ltd,No
Http://opendatacommunities.org/id/metropolitan-district-council/leeds,Leeds City Council,30/06/2018,Resources and Housing,Leeds Building Services,Supplies and Services,Operational Materials,205,04/06/2018,0618-00018,0,25.71,R,A J H  Pump Supply & Repair Ltd,No
Http://opendatacommunities.org/id/metropolitan-district-council/leeds,Leeds City Council,30/06/2018,Resources and Housing,Leeds Building Services,Supplies and Services,Operational Materials,205,04/06/2018,0618-00019,0,48.85,R,A J H  Pump Supply & Repair Ltd,No
Http://opendatacommunities.org/id/metropolitan-district-council/leeds,Leeds City Council,30/06/2018,Resources and Housing,Leeds Building Services,Supplies and Services,Operational Materials,205,04/06/2018,0618-00020,0,15.75,R,A J H  Pump Supply & Repair Ltd,No
Http://opendatacommunities.org/id/metropolitan-district-council/leeds,Leeds City Council,30/06/2018,Resources and Housing,Leeds Building Services,Supplies and Services,Operational Materials,205,04/06/2018,0618-00021,0,123.25,R,A J H  Pump Supply & Repair Ltd,No
Http://opendatacommunities.org/id/metropolitan-district-council/leeds,Leeds City Council,30/06/2018,Resources and Housing,Leeds Building Services,Supplies and Services,Operational Materials,205,04/06/2018,0618-00022,0,8.25,R,A J H  Pump Supply & Repair Ltd,No
Http://opendatacommunities.org/id/metropolitan-district-council/leeds,Leeds City Council,30/06/2018,Resources and Housing,Leeds Building Services,Supplies and Services,Operational Materials,205,04/06/2018,0618-00023,0,254.25,R,A J H  Pump Supply & Repair Ltd,No
Http://opendatacommunities.org/id/metropolitan-district-council/leeds,Leeds City Council,30/06/2018,Resources and Housing,Leeds Building Services,Supplies and Services,Operational Materials,205,04/06/2018,0618-00024,0,112.5,R,A J H  Pump Supply & Repair Ltd,No
Http://opendatacommunities.org/id/metropolitan-district-council/leeds,Leeds City Council,30/06/2018,Resources and Housing,Leeds Building Services,Supplies and Services,Operational Materials,205,04/06/2018,0618-00025,0,61.04,R,A J H  Pump Supply & Repair Ltd,No
Http://opendatacommunities.org/id/metropolitan-district-council/leeds,Leeds City Council,30/06/2018,Resources and Housing,Leeds Building Services,Supplies and Services,Operational Materials,205,04/06/2018,0618-00026,0,39.61,R,A J H  Pump Supply & Repair Ltd,No
Http://opendatacommunities.org/id/metropolitan-district-council/leeds,Leeds City Council,30/06/2018,Resources and Housing,Leeds Building Services,Supplies and Services,Operational Materials,205,04/06/2018,0618-00027,0,33.25,R,A J H  Pump Supply & Repair Ltd,No
Http://opendatacommunities.org/id/metropolitan-district-council/leeds,Leeds City Council,30/06/2018,Resources and Housing,Leeds Building Services,Supplies and Services,Operational Materials,205,04/06/2018,0618-00028,0,93.25,R,A J H  Pump Supply & Repair Ltd,No
Http://opendatacommunities.org/id/metropolitan-district-council/leeds,Leeds City Council,30/06/2018,Resources and Housing,Leeds Building Services,Supplies and Services,Operational Materials,205,04/06/2018,0618-00029,0,13.2,R,A J H  Pump Supply & Repair Ltd,No
Http://opendatacommunities.org/id/metropolitan-district-council/leeds,Leeds City Council,30/06/2018,Resources and Housing,Leeds Building Services,Supplies and Services,Operational Materials,205,04/06/2018,0618-00030,0,76.5,R,A J H  Pump Supply & Repair Ltd,No
Http://opendatacommunities.org/id/metropolitan-district-council/leeds,Leeds City Council,30/06/2018,Resources and Housing,Leeds Building Services,Supplies and Services,Operational Materials,205,04/06/2018,0618-00031,0,112.5,R,A J H  Pump Supply & Repair Ltd,No
Http://opendatacommunities.org/id/metropolitan-district-council/leeds,Leeds City Council,30/06/2018,Resources and Housing,Leeds Building Services,Supplies and Services,Operational Materials,205,04/06/2018,0618-00032,0,97.5,R,A J H  Pump Supply & Repair Ltd,No
Http://opendatacommunities.org/id/metropolitan-district-council/leeds,Leeds City Council,30/06/2018,Resources and Housing,Leeds Building Services,Supplies and Services,Operational Materials,205,04/06/2018,0618-00033,0,64,R,A J H  Pump Supply & Repair Ltd,No
Http://opendatacommunities.org/id/metropolitan-district-council/leeds,Leeds City Council,30/06/2018,Resources and Housing,Leeds Building Services,Supplies and Services,Operational Materials,205,06/06/2018,0618-00034,0,268.75,R,A J H  Pump Supply & Repair Ltd,No
Http://opendatacommunities.org/id/metropolitan-district-council/leeds,Leeds City Council,30/06/2018,Resources and Housing,Leeds Building Services,Supplies and Services,Operational Materials,205,11/06/2018,0618-00035,0,64.21,R,A J H  Pump Supply & Repair Ltd,No
Http://opendatacommunities.org/id/metropolitan-district-council/leeds,Leeds City Council,30/06/2018,Resources and Housing,Leeds Building Services,Supplies and Services,Operational Materials,205,11/06/2018,0618-00036,0,178.85,R,A J H  Pump Supply & Repair Ltd,No
Http://opendatacommunities.org/id/metropolitan-district-council/leeds,Leeds City Council,30/06/2018,Resources and Housing,Leeds Building Services,Supplies and Services,Operational Materials,205,12/06/2018,0618-00037,0,260,R,A J H  Pump Supply & Repair Ltd,No
Http://opendatacommunities.org/id/metropolitan-district-council/leeds,Leeds City Council,30/06/2018,Resources and Housing,Leeds Building Services,Supplies and Services,Operational Materials,205,12/06/2018,0618-00038,0,111.7,R,A J H  Pump Supply & Repair Ltd,No
Http://opendatacommunities.org/id/metropolitan-district-council/leeds,Leeds City Council,30/06/2018,Resources and Housing,Leeds Building Services,Supplies and Services,Operational Materials,205,12/06/2018,0618-00039,0,144,R,A J H  Pump Supply & Repair Ltd,No
Http://opendatacommunities.org/id/metropolitan-district-council/leeds,Leeds City Council,30/06/2018,Resources and Housing,Leeds Building Services,Supplies and Services,Operational Materials,205,12/06/2018,0618-00040,0,134.25,R,A J H  Pump Supply & Repair Ltd,No
Http://opendatacommunities.org/id/metropolitan-district-council/leeds,Leeds City Council,30/06/2018,Resources and Housing,Leeds Building Services,Supplies and Services,Operational Materials,205,12/06/2018,0618-00041,0,34.5,R,A J H  Pump Supply & Repair Ltd,No
Http://opendatacommunities.org/id/metropolitan-district-council/leeds,Leeds City Council,30/06/2018,Resources and Housing,Leeds Building Services,Supplies and Services,Operational Materials,205,12/06/2018,0618-00042,0,108,R,A J H  Pump Supply & Repair Ltd,No
Http://opendatacommunities.org/id/metropolitan-district-council/leeds,Leeds City Council,30/06/2018,Resources and Housing,Leeds Building Services,Supplies and Services,Operational Materials,205,15/06/2018,0618-00043,0,335,R,A J H  Pump Supply & Repair Ltd,No
Http://opendatacommunities.org/id/metropolitan-district-council/leeds,Leeds City Council,30/06/2018,Resources and Housing,Leeds Building Services,Supplies and Services,Operational Materials,205,15/06/2018,0618-00044,0,42.99,R,A J H  Pump Supply & Repair Ltd,No
Http://opendatacommunities.org/id/metropolitan-district-council/leeds,Leeds City Council,30/06/2018,Resources and Housing,Leeds Building Services,Supplies and Services,Operational Materials,205,15/06/2018,0618-00045,0,475,R,A J H  Pump Supply & Repair Ltd,No
Http://opendatacommunities.org/id/metropolitan-district-council/leeds,Leeds City Council,30/06/2018,Resources and Housing,Leeds Building Services,Supplies and Services,Operational Materials,205,15/06/2018,0618-00046,0,29.34,R,A J H  Pump Supply & Repair Ltd,No
Http://opendatacommunities.org/id/metropolitan-district-council/leeds,Leeds City Council,30/06/2018,Resources and Housing,Leeds Building Services,Supplies and Services,Operational Materials,205,15/06/2018,0618-00047,0,89,R,A J H  Pump Supply & Repair Ltd,No
Http://opendatacommunities.org/id/metropolitan-district-council/leeds,Leeds City Council,30/06/2018,Resources and Housing,Leeds Building Services,Supplies and Services,Operational Materials,205,15/06/2018,0618-00048,0,84.75,R,A J H  Pump Supply & Repair Ltd,No
Http://opendatacommunities.org/id/metropolitan-district-council/leeds,Leeds City Council,30/06/2018,Resources and Housing,Leeds Building Services,Supplies and Services,Operational Materials,205,15/06/2018,0618-00049,0,81.89,R,A J H  Pump Supply & Repair Ltd,No
Http://opendatacommunities.org/id/metropolitan-district-council/leeds,Leeds City Council,30/06/2018,Resources and Housing,Leeds Building Services,Supplies and Services,Operational Materials,205,15/06/2018,0618-00050,0,47.82,R,A J H  Pump Supply & Repair Ltd,No
Http://opendatacommunities.org/id/metropolitan-district-council/leeds,Leeds City Council,30/06/2018,Resources and Housing,Leeds Building Services,Supplies and Services,Operational Materials,205,15/06/2018,0618-00051,0,204.82,R,A J H  Pump Supply & Repair Ltd,No
Http://opendatacommunities.org/id/metropolitan-district-council/leeds,Leeds City Council,30/06/2018,Resources and Housing,Leeds Building Services,Supplies and Services,Operational Materials,205,15/06/2018,0618-00052,0,113.84,R,A J H  Pump Supply & Repair Ltd,No
Http://opendatacommunities.org/id/metropolitan-district-council/leeds,Leeds City Council,30/06/2018,Resources and Housing,Leeds Building Services,Supplies and Services,Operational Materials,205,15/06/2018,0618-00053,0,53.85,R,A J H  Pump Supply & Repair Ltd,No
Http://opendatacommunities.org/id/metropolitan-district-council/leeds,Leeds City Council,30/06/2018,Resources and Housing,Leeds Building Services,Supplies and Services,Operational Materials,205,15/06/2018,0618-00054,0,13.7,R,A J H  Pump Supply & Repair Ltd,No
Http://opendatacommunities.org/id/metropolitan-district-council/leeds,Leeds City Council,30/06/2018,Resources and Housing,Leeds Building Services,Supplies and Services,Operational Materials,205,15/06/2018,0618-00055,0,17.5,R,A J H  Pump Supply & Repair Ltd,No
Http://opendatacommunities.org/id/metropolitan-district-council/leeds,Leeds City Council,30/06/2018,Resources and Housing,Leeds Building Services,Supplies and Services,Operational Materials,205,15/06/2018,0618-00056,0,422,R,A J H  Pump Supply & Repair Ltd,No
Http://opendatacommunities.org/id/metropolitan-district-council/leeds,Leeds City Council,30/06/2018,Resources and Housing,Leeds Building Services,Supplies and Services,Operational Materials,205,15/06/2018,0618-00057,0,416.56,R,A J H  Pump Supply & Repair Ltd,No
Http://opendatacommunities.org/id/metropolitan-district-council/leeds,Leeds City Council,30/06/2018,Resources and Housing,Leeds Building Services,Supplies and Services,Operational Materials,205,15/06/2018,0618-00058,0,48,R,A J H  Pump Supply & Repair Ltd,No
Http://opendatacommunities.org/id/metropolitan-district-council/leeds,Leeds City Council,30/06/2018,Resources and Housing,Leeds Building Services,Supplies and Services,Operational Materials,205,15/06/2018,0618-00059,0,113.25,R,A J H  Pump Supply & Repair Ltd,No
Http://opendatacommunities.org/id/metropolitan-district-council/leeds,Leeds City Council,30/06/2018,Resources and Housing,Leeds Building Services,Supplies and Services,Operational Materials,205,15/06/2018,0618-00060,0,180.8,R,A J H  Pump Supply & Repair Ltd,No
Http://opendatacommunities.org/id/metropolitan-district-council/leeds,Leeds City Council,30/06/2018,Resources and Housing,Leeds Building Services,Supplies and Services,Operational Materials,205,18/06/2018,0618-00061,0,650.9,R,A J H  Pump Supply & Repair Ltd,No
Http://opendatacommunities.org/id/metropolitan-district-council/leeds,Leeds City Council,30/06/2018,Resources and Housing,Leeds Building Services,Supplies and Services,Other Hired And Contracted Services,265,20/06/2018,0618-00062,0,323,R,A J H  Pump Supply & Repair Ltd,No
Http://opendatacommunities.org/id/metropolitan-district-council/leeds,Leeds City Council,30/06/2018,Resources and Housing,Leeds Building Services,Supplies and Services,Other Hired And Contracted Services,265,20/06/2018,0618-00063,0,180,R,A J H  Pump Supply & Repair Ltd,No
Http://opendatacommunities.org/id/metropolitan-district-council/leeds,Leeds City Council,30/06/2018,Resources and Housing,Leeds Building Services,Supplies and Services,Operational Materials,205,25/06/2018,0618-00064,0,16.5,R,A J H  Pump Supply & Repair Ltd,No
Http://opendatacommunities.org/id/metropolitan-district-council/leeds,Leeds City Council,30/06/2018,Resources and Housing,Leeds Building Services,Supplies and Services,Operational Materials,205,25/06/2018,0618-00065,0,32.7,R,A J H  Pump Supply & Repair Ltd,No
Http://opendatacommunities.org/id/metropolitan-district-council/leeds,Leeds City Council,30/06/2018,Resources and Housing,Leeds Building Services,Supplies and Services,Operational Materials,205,25/06/2018,0618-00066,0,39.61,R,A J H  Pump Supply & Repair Ltd,No
Http://opendatacommunities.org/id/metropolitan-district-council/leeds,Leeds City Council,30/06/2018,Resources and Housing,Leeds Building Services,Supplies and Services,Operational Materials,205,25/06/2018,0618-00067,0,750,R,A J H  Pump Supply & Repair Ltd,No
Http://opendatacommunities.org/id/metropolitan-district-council/leeds,Leeds City Council,30/06/2018,Resources and Housing,Leeds Building Services,Supplies and Services,Operational Materials,205,25/06/2018,0618-00068,0,126.25,R,A J H  Pump Supply & Repair Ltd,No
Http://opendatacommunities.org/id/metropolitan-district-council/leeds,Leeds City Council,30/06/2018,Resources and Housing,Leeds Building Services,Supplies and Services,Operational Materials,205,25/06/2018,0618-00069,0,37.94,R,A J H  Pump Supply & Repair Ltd,No
Http://opendatacommunities.org/id/metropolitan-district-council/leeds,Leeds City Council,30/06/2018,Resources and Housing,Leeds Building Services,Supplies and Services,Operational Materials,205,25/06/2018,0618-00070,0,180,R,A J H  Pump Supply & Repair Ltd,No
Http://opendatacommunities.org/id/metropolitan-district-council/leeds,Leeds City Council,30/06/2018,Communities and Environment,Customer Access,Supplies and Services,Resaleable Materials,204,08/06/2018,0618-00071,0,50.22,R,A J Promotions,No
Http://opendatacommunities.org/id/metropolitan-district-council/leeds,Leeds City Council,30/06/2018,Communities and Environment,Parks and Countryside,Supplies and Services,Resaleable Materials,204,28/06/2018,0618-00072,0,2026.08,R,A J Promotions,No
Http://opendatacommunities.org/id/metropolitan-district-council/leeds,Leeds City Council,30/06/2018,Children and Families,Social Care,Third Party Payments,Services Rendered By Other Organisations,511,01/06/2018,0618-00073,0,71,R,A K Walsh,No
Http://opendatacommunities.org/id/metropolitan-district-council/leeds,Leeds City Council,30/06/2018,Children and Families,Social Care,Third Party Payments,Services Rendered By Other Organisations,511,01/06/2018,0618-00074,0,214,R,A K Walsh,No
Http://opendatacommunities.org/id/metropolitan-district-council/leeds,Leeds City Council,30/06/2018,Adults and Health,Public Health,Third Party Payments,Public Health Commissioned Services,526,01/06/2018,0618-00075,0,214,R,A Khan & K Muneer,No
Http://opendatacommunities.org/id/metropolitan-district-council/leeds,Leeds City Council,30/06/2018,Children and Families,Social Care,Third Party Payments,Services Rendered By Other Organisations,511,08/06/2018,0618-00076,0,-43.75,R,A Little Something Extra Ltd,No
Http://opendatacommunities.org/id/metropolitan-district-council/leeds,Leeds City Council,30/06/2018,Children and Families,Social Care,Third Party Payments,Services Rendered By Voluntary Sector,505,08/06/2018,0618-00077,0,87.5,R,A Little Something Extra Ltd,No
Http://opendatacommunities.org/id/metropolitan-district-council/leeds,Leeds City Council,30/06/2018,Children and Families,Social Care,Third Party Payments,Services Rendered By Voluntary Sector,505,12/06/2018,0618-00078,0,770,R,A Little Something Extra Ltd,No
Http://opendatacommunities.org/id/metropolitan-district-council/leeds,Leeds City Council,30/06/2018,Strategic Landlord,Housing Management,Supplies and Services,Grants To Voluntary Organisations,293,14/06/2018,0618-00079,0,170.64,R,A Little Something Extra Ltd,No
Http://opendatacommunities.org/id/metropolitan-district-council/leeds,Leeds City Council,30/06/2018,Communities and Environment,Customer Access,Supplies and Services,Other Hired And Contracted Services,265,04/06/2018,0618-00080,0,939.25,R,A Mohammed,No
Http://opendatacommunities.org/id/metropolitan-district-council/leeds,Leeds City Council,30/06/2018,Communities and Environment,Customer Access,Supplies and Services,Other Hired And Contracted Services,265,04/06/2018,0618-00081,0,274,R,A Namaki,No
Http://opendatacommunities.org/id/metropolitan-district-council/leeds,Leeds City Council,30/06/2018,Resources and Housing,HRA Housing Leeds,Capital,Other Costs,7,21/06/2018,0618-00082,0,40,C,REDACTED PERSONAL DATA,No
Http://opendatacommunities.org/id/metropolitan-district-council/leeds,Leeds City Council,30/06/2018,City Development,Libraries  Arts & Heritage,Supplies and Services,Non-Recurring Grants,227,18/06/2018,0618-00083,0,4000,R,A Quiet Word Ltd,No
Http://opendatacommunities.org/id/metropolitan-district-council/leeds,Leeds City Council,30/06/2018,Resources and Housing,Shared Services,Supplies and Services,Other Hired And Contracted Services,265,07/06/2018,0618-00084,0,65,R,A Star Couriers Ltd,No
Http://opendatacommunities.org/id/metropolitan-district-council/leeds,Leeds City Council,30/06/2018,Resources and Housing,Shared Services,Supplies and Services,Other Hired And Contracted Services,265,20/06/2018,0618-00085,0,46.25,R,A Star Couriers Ltd,No
Http://opendatacommunities.org/id/metropolitan-district-council/leeds,Leeds City Council,30/06/2018,City Development,Markets & City Centre Management,Supplies and Services,Publication And Promotion,267,05/06/2018,0618-00086,0,300,R,A T Graphics Limited,No
Http://opendatacommunities.org/id/metropolitan-district-council/leeds,Leeds City Council,30/06/2018,City Development,Markets & City Centre Management,Supplies and Services,Publication And Promotion,267,05/06/2018,0618-00087,0,100,R,A T Graphics Limited,No
Http://opendatacommunities.org/id/metropolitan-district-council/leeds,Leeds City Council,30/06/2018,Communities and Environment,Waste Management,Employees,Training & Development,70,22/06/2018,0618-00088,0,515,R,A T Nerac Ltd,No
Http://opendatacommunities.org/id/metropolitan-district-council/leeds,Leeds City Council,30/06/2018,Children and Families,Social Care,Third Party Payments,Services Rendered By Other Organisations,511,01/06/2018,0618-00089,0,106.67,R,REDACTED PERSONAL DATA,No
Http://opendatacommunities.org/id/metropolitan-district-council/leeds,Leeds City Council,30/06/2018,Children and Families,Social Care,Third Party Payments,Services Rendered By Other Organisations,511,01/06/2018,0618-00090,0,272,R,REDACTED PERSONAL DATA,No
Http://opendatacommunities.org/id/metropolitan-district-council/leeds,Leeds City Council,30/06/2018,Children and Families,Social Care,Third Party Payments,Services Rendered By Other Organisations,511,01/06/2018,0618-00091,0,125,R,REDACTED PERSONAL DATA,No
Http://opendatacommunities.org/id/metropolitan-district-council/leeds,Leeds City Council,30/06/2018,Children and Families,Social Care,Third Party Payments,Services Rendered By Other Organisations,511,01/06/2018,0618-00092,0,377,R,REDACTED PERSONAL DATA,No
Http://opendatacommunities.org/id/metropolitan-district-council/leeds,Leeds City Council,30/06/2018,Children and Families,Social Care,Third Party Payments,Services Rendered By Other Organisations,511,01/06/2018,0618-00093,0,214,R,REDACTED PERSONAL DATA,No
Http://opendatacommunities.org/id/metropolitan-district-council/leeds,Leeds City Council,30/06/2018,Children and Families,Social Care,Third Party Payments,General External Residential Placements,507,04/06/2018,0618-00094,0,18422.68,R,A Wilderness Way Ltd,No
Http://opendatacommunities.org/id/metropolitan-district-council/leeds,Leeds City Council,30/06/2018,Children and Families,Social Care,Third Party Payments,General External Residential Placements,507,04/06/2018,0618-00095,0,1260,R,A Wilderness Way Ltd,No
Http://opendatacommunities.org/id/metropolitan-district-council/leeds,Leeds City Council,30/06/2018,Communities and Environment,Waste Management,Capital,Furniture And Equipment,5,01/06/2018,0618-00096,0,8747,C,A&C Weber Uk Ltd,No
Http://opendatacommunities.org/id/metropolitan-district-council/leeds,Leeds City Council,30/06/2018,Communities and Environment,Waste Management,Capital,Furniture And Equipment,5,19/06/2018,0618-00097,0,4860,C,A&C Weber Uk Ltd,No
Http://opendatacommunities.org/id/metropolitan-district-council/leeds,Leeds City Council,30/06/2018,Resources and Housing,Leeds Building Services,Supplies and Services,Other Hired And Contracted Services,265,11/06/2018,0618-00098,0,550,R,A1 Stair Lift Services,No
Http://opendatacommunities.org/id/metropolitan-district-council/leeds,Leeds City Council,30/06/2018,Resources and Housing,Leeds Building Services,Supplies and Services,Other Hired And Contracted Services,265,11/06/2018,0618-00099,0,550,R,A1 Stair Lift Services,No
Http://opendatacommunities.org/id/metropolitan-district-council/leeds,Leeds City Council,30/06/2018,Adults and Health,Services For Older People - 65 And Over,Third Party Payments,Residential Care Dementia,571,27/06/2018,0618-00100,0,14584.37,R,Aaron Court Care Home,No
Http://opendatacommunities.org/id/metropolitan-district-council/leeds,Leeds City Council as Accountable Body,30/06/2018,Social Services Pooled Budgets,Leeds Community Equip Store Pooled Budgt,Supplies and Services,Other Equipment,203,20/06/2018,0618-00101,0,458,R,Aat (Gb) Ltd,No
Http://opendatacommunities.org/id/metropolitan-district-council/leeds,Leeds City Council as Accountable Body,30/06/2018,Social Services Pooled Budgets,Leeds Community Equip Store Pooled Budgt,Supplies and Services,Other Equipment,203,20/06/2018,0618-00102,0,534,R,Aat (Gb) Ltd,No
Http://opendatacommunities.org/id/metropolitan-district-council/leeds,Leeds City Council as Accountable Body,30/06/2018,Social Services Pooled Budgets,Leeds Community Equip Store Pooled Budgt,Supplies and Services,Other Equipment,203,25/06/2018,0618-00103,0,360,R,Aat (Gb) Ltd,No
Http://opendatacommunities.org/id/metropolitan-district-council/leeds,Leeds City Council,30/06/2018,Adults and Health,Social Services Support Services,Transport,Public Transport Expenses,310,13/06/2018,0618-00104,0,340,R,Ab Cars (Garforth) Ltd,No
Http://opendatacommunities.org/id/metropolitan-district-council/leeds,Leeds City Council,30/06/2018,Communities and Environment,Car Parking Services  ,Supplies and Services,Postages,212,10/05/2018,0618-00105,0,13.5,R,Abacus Express,Yes
Http://opendatacommunities.org/id/metropolitan-district-council/leeds,Leeds City Council,30/06/2018,City Development,Planning & Sustainable Development,Supplies and Services,Other Hired And Contracted Services,265,01/06/2018,0618-00106,0,46.76,R,Abacus Express Limited,No
Http://opendatacommunities.org/id/metropolitan-district-council/leeds,Leeds City Council,30/06/2018,Children and Families,Social Care,Support Services,Legal Disbursements,411,07/06/2018,0618-00107,0,31.02,R,Abacus Express Limited,No
Http://opendatacommunities.org/id/metropolitan-district-council/leeds,Leeds City Council,30/06/2018,Children and Families,Social Care,Support Services,Legal Disbursements,411,07/06/2018,0618-00108,0,31.02,R,Abacus Express Limited,No
Http://opendatacommunities.org/id/metropolitan-district-council/leeds,Leeds City Council,30/06/2018,Children and Families,Social Care,Support Services,Legal Disbursements,411,07/06/2018,0618-00109,0,31.02,R,Abacus Express Limited,No
Http://opendatacommunities.org/id/metropolitan-district-council/leeds,Leeds City Council,30/06/2018,Children and Families,Social Care,Support Services,Legal Disbursements,411,18/06/2018,0618-00110,0,1200,R,Abacus Express Limited,No
Http://opendatacommunities.org/id/metropolitan-district-council/leeds,Leeds City Council,30/06/2018,Children and Families,Social Care,Support Services,Legal Disbursements,411,20/06/2018,0618-00111,0,31.02,R,Abacus Express Limited,No
Http://opendatacommunities.org/id/metropolitan-district-council/leeds,Leeds City Council,30/06/2018,City Development,Planning & Sustainable Development,Supplies and Services,Other Hired And Contracted Services,265,21/06/2018,0618-00112,0,15.58,R,Abacus Express Limited,No
Http://opendatacommunities.org/id/metropolitan-district-council/leeds,Leeds City Council,30/06/2018,Adults and Health,Services For Older People - 65 And Over,Third Party Payments,Nursing Care Dementia,574,27/06/2018,0618-00113,0,1556,R,Abbendon Nursing Home,No
Http://opendatacommunities.org/id/metropolitan-district-council/leeds,Leeds City Council,30/06/2018,Resources and Housing,Technology,Supplies and Services,Conference Meetings,253,14/06/2018,0618-00114,0,158,R,Abbey Grange C Of E Academy Trust,No
Http://opendatacommunities.org/id/metropolitan-district-council/leeds,Leeds City Council,30/06/2018,Adults and Health,Public Health,Third Party Payments,Public Health Commissioned Services,526,01/06/2018,0618-00115,0,2407.73,R,Abbey Grange Medical Practice,No
Http://opendatacommunities.org/id/metropolitan-district-council/leeds,Leeds City Council,30/06/2018,Resources and Housing,Human Resources,Employees,Occupational Health,85,07/06/2018,0618-00116,0,65,R,Abbey Grange Medical Practice,No
Http://opendatacommunities.org/id/metropolitan-district-council/leeds,Leeds City Council,30/06/2018,Adults and Health,Services For Adults Under 65 Mental/Dis,Third Party Payments,Nursing Home,570,27/06/2018,0618-00117,0,1852,R,Abbey Grange Nursing Home,No
Http://opendatacommunities.org/id/metropolitan-district-council/leeds,Leeds City Council,30/06/2018,City Development,Libraries  Arts & Heritage  ,Supplies and Services,Teaching Materials,202,30/05/2018,0618-00118,0,19.08,R,Abbey House Museum,Yes
Http://opendatacommunities.org/id/metropolitan-district-council/leeds,Leeds City Council,30/06/2018,Communities and Environment,Cleaner Neighbourhood Teams,Supplies and Services,Bought In Professional Services,277,29/06/2018,0618-00119,0,93.57,R,Abbey House Veterinary Hospital,No
Http://opendatacommunities.org/id/metropolitan-district-council/leeds,Leeds City Council,30/06/2018,Communities and Environment,Parks And Countryside  ,Supplies and Services,Other Hired And Contracted Services,265,09/05/2018,0618-00120,0,4240,R,Abbotts Memorial Compa,Yes
Http://opendatacommunities.org/id/metropolitan-district-council/leeds,Leeds City Council,30/06/2018,Children and Families,Social Care,Third Party Payments,Services Rendered By Other Organisations,511,01/06/2018,0618-00121,0,272.67,R,Abc Daycare And Ozone Out Of School,No
Http://opendatacommunities.org/id/metropolitan-district-council/leeds,Leeds City Council,30/06/2018,Children and Families,Social Care,Third Party Payments,Services Rendered By Other Organisations,511,01/06/2018,0618-00122,0,938,R,Abc Daycare And Ozone Out Of School,No
Http://opendatacommunities.org/id/metropolitan-district-council/leeds,Leeds City Council,30/06/2018,Children and Families,Social Care,Third Party Payments,Services Rendered By Other Organisations,511,01/06/2018,0618-00123,0,1362.33,R,Abc Nursery At Lufc,No
Http://opendatacommunities.org/id/metropolitan-district-council/leeds,Leeds City Council,30/06/2018,Children and Families,Social Care,Third Party Payments,Services Rendered By Other Organisations,511,01/06/2018,0618-00124,0,975,R,Abc Nursery At Lufc,No
Http://opendatacommunities.org/id/metropolitan-district-council/leeds,Leeds City Council,30/06/2018,Children and Families,Social Care,Third Party Payments,Services Rendered By Other Organisations,511,01/06/2018,0618-00125,0,630.33,R,Abc@D'S Childcare Services,No
Http://opendatacommunities.org/id/metropolitan-district-council/leeds,Leeds City Council,30/06/2018,Children and Families,Social Care,Third Party Payments,Services Rendered By Other Organisations,511,01/06/2018,0618-00126,0,1648,R,Abc@D'S Childcare Services,No
Http://opendatacommunities.org/id/metropolitan-district-council/leeds,Leeds City Council,30/06/2018,Insurance,Insurance,Supplies and Services,Insurance Claims,248,04/06/2018,0618-00127,0,450,R,REDACTED PERSONAL DATA,No
Http://opendatacommunities.org/id/metropolitan-district-council/leeds,Leeds City Council,30/06/2018,Communities and Environment,Customer Access,Supplies and Services,Other Hired And Contracted Services,265,04/06/2018,0618-00128,0,96.5,R,Abdul Wadood Kazizadha,No
Http://opendatacommunities.org/id/metropolitan-district-council/leeds,Leeds City Council,30/06/2018,Adults and Health,Services For Older People - 65 And Over,Third Party Payments,Nursing Home,570,27/06/2018,0618-00129,0,36870.16,R,Aberford Hall,No
Http://opendatacommunities.org/id/metropolitan-district-council/leeds,Leeds City Council,30/06/2018,Adults and Health,Services For Older People - 65 And Over,Third Party Payments,Nursing Care Dementia,574,27/06/2018,0618-00130,0,3857.84,R,Aberford Hall,No
Http://opendatacommunities.org/id/metropolitan-district-council/leeds,Leeds City Council,30/06/2018,Adults and Health,Services For Older People - 65 And Over,Third Party Payments,Residential,580,27/06/2018,0618-00131,0,10682.84,R,Aberford Hall,No
Http://opendatacommunities.org/id/metropolitan-district-council/leeds,Leeds City Council,30/06/2018,Resources and Housing,Leeds Building Services,Supplies and Services,Operational Materials,205,28/06/2018,0618-00132,0,13.33,R,Abi Garage Doors Ltd,No
Http://opendatacommunities.org/id/metropolitan-district-council/leeds,Leeds City Council,30/06/2018,Communities and Environment,Elections  Licensing and Registration,Income,Admissions  Booking Fees & Ticket Sales,933,07/06/2018,0618-00133,0,958,R,REDACTED PERSONAL DATA,No
Http://opendatacommunities.org/id/metropolitan-district-council/leeds,Leeds City Council,30/06/2018,Insurance,Insurance,Supplies and Services,Insurance Claims,248,12/06/2018,0618-00134,0,240,R,Absolute Law,No
Http://opendatacommunities.org/id/metropolitan-district-council/leeds,Leeds City Council,30/06/2018,Children and Families,Social Care,Employees,Agency Staff,8,08/06/2018,0618-00135,0,1410,R,Academic Appointments Ltd,No
Http://opendatacommunities.org/id/metropolitan-district-council/leeds,Leeds City Council,30/06/2018,Children and Families,Social Care,Employees,Agency Staff,8,15/06/2018,0618-00136,0,1128,R,Academic Appointments Ltd,No
Http://opendatacommunities.org/id/metropolitan-district-council/leeds,Leeds City Council,30/06/2018,Children and Families,Social Care,Employees,Agency Staff,8,21/06/2018,0618-00137,0,1269,R,Academic Appointments Ltd,No
Http://opendatacommunities.org/id/metropolitan-district-council/leeds,Leeds City Council,30/06/2018,Children and Families,Social Care,Employees,Agency Staff,8,29/06/2018,0618-00138,0,1410,R,Academic Appointments Ltd,No
Http://opendatacommunities.org/id/metropolitan-district-council/leeds,Leeds City Council,30/06/2018,City Development,Planning & Sustainable Development,Supplies and Services,Memberships,226,14/06/2018,0618-00139,0,240,R,Academy Of Urbanism,No
Http://opendatacommunities.org/id/metropolitan-district-council/leeds,Leeds City Council,30/06/2018,Resources and Housing,Strategic Housing Partnerships,Capital,Construction,3,28/06/2018,0618-00140,0,2268,C,Accent Homes Ltd,No
Http://opendatacommunities.org/id/metropolitan-district-council/leeds,Leeds City Council,30/06/2018,City Development,Economic Development  ,Supplies and Services,Subsistence,256,14/05/2018,0618-00141,0,14.93,R,Accente Restaurant Servic,Yes
Http://opendatacommunities.org/id/metropolitan-district-council/leeds,Leeds City Council,30/06/2018,Communities and Environment,Community Safety,Transport,Hire Of Movable Plant & Machinery,315,29/06/2018,0618-00142,0,1310.86,R,Access Hire Nationwide Ltd,No
Http://opendatacommunities.org/id/metropolitan-district-council/leeds,Leeds City Council,30/06/2018,Communities and Environment,Cleaner Neighbourhood Teams  ,Supplies and Services,Operational Furniture And Equipment,203,02/05/2018,0618-00143,0,72.45,R,Access Locksmiths,Yes
Http://opendatacommunities.org/id/metropolitan-district-council/leeds,Leeds City Council,30/06/2018,Communities and Environment,Parks And Countryside  ,Supplies and Services,Operational Materials,205,04/05/2018,0618-00144,0,17.5,R,Access Locksmiths,Yes
Http://opendatacommunities.org/id/metropolitan-district-council/leeds,Leeds City Council,30/06/2018,Communities and Environment,Cleaner Neighbourhood Teams  ,Supplies and Services,Operational Furniture And Equipment,203,18/05/2018,0618-00145,0,16.75,R,Access Locksmiths,Yes
Http://opendatacommunities.org/id/metropolitan-district-council/leeds,Leeds City Council,30/06/2018,Resources and Housing,Commercial Services  ,Supplies and Services,Operational Materials,205,18/05/2018,0618-00146,0,525.04,R,Access Locksmiths,Yes
Http://opendatacommunities.org/id/metropolitan-district-council/leeds,Leeds City Council,30/06/2018,Resources and Housing,Leeds Building Services,Supplies and Services,Office Furniture & Equipment,201,01/06/2018,0618-00147,0,12.5,R,Access Locksmiths (Leeds) Limited,No
Http://opendatacommunities.org/id/metropolitan-district-council/leeds,Leeds City Council,30/06/2018,Strategic Landlord,Property and Contracts,Premises,General Maintenance,104,07/06/2018,0618-00148,0,103,R,Access Locksmiths (Leeds) Limited,No
Http://opendatacommunities.org/id/metropolitan-district-council/leeds,Leeds City Council,30/06/2018,Strategic Landlord,Property and Contracts,Premises,General Maintenance,104,07/06/2018,0618-00149,0,202.1,R,Access Locksmiths (Leeds) Limited,No
Http://opendatacommunities.org/id/metropolitan-district-council/leeds,Leeds City Council,30/06/2018,Resources and Housing,Leeds Building Services,Supplies and Services,Operational Materials,205,11/06/2018,0618-00150,0,251.24,R,Access Locksmiths (Leeds) Limited,No
Http://opendatacommunities.org/id/metropolitan-district-council/leeds,Leeds City Council,30/06/2018,Resources and Housing,Leeds Building Services,Supplies and Services,Operational Materials,205,15/06/2018,0618-00151,0,20.48,R,Access Locksmiths (Leeds) Limited,No
Http://opendatacommunities.org/id/metropolitan-district-council/leeds,Leeds City Council,30/06/2018,Resources and Housing,Leeds Building Services,Supplies and Services,Operational Materials,205,15/06/2018,0618-00152,0,17.55,R,Access Locksmiths (Leeds) Limited,No
Http://opendatacommunities.org/id/metropolitan-district-council/leeds,Leeds City Council,30/06/2018,Resources and Housing,Leeds Building Services,Supplies and Services,Operational Materials,205,15/06/2018,0618-00153,0,20.01,R,Access Locksmiths (Leeds) Limited,No
Http://opendatacommunities.org/id/metropolitan-district-council/leeds,Leeds City Council,30/06/2018,Resources and Housing,Leeds Building Services,Supplies and Services,Operational Materials,205,15/06/2018,0618-00154,0,34.88,R,Access Locksmiths (Leeds) Limited,No
Http://opendatacommunities.org/id/metropolitan-district-council/leeds,Leeds City Council,30/06/2018,Resources and Housing,Leeds Building Services,Supplies and Services,Operational Materials,205,15/06/2018,0618-00155,0,33.66,R,Access Locksmiths (Leeds) Limited,No
Http://opendatacommunities.org/id/metropolitan-district-council/leeds,Leeds City Council,30/06/2018,Resources and Housing,Leeds Building Services,Supplies and Services,Operational Materials,205,15/06/2018,0618-00156,0,25.02,R,Access Locksmiths (Leeds) Limited,No
Http://opendatacommunities.org/id/metropolitan-district-council/leeds,Leeds City Council,30/06/2018,Resources and Housing,HRA Housing Leeds,Capital,Other Costs,7,20/06/2018,0618-00157,0,102,C,Access Locksmiths (Leeds) Limited,No
Http://opendatacommunities.org/id/metropolitan-district-council/leeds,Leeds City Council,30/06/2018,Strategic Landlord,Housing Management,Supplies and Services,Resaleable Materials,204,20/06/2018,0618-00158,0,26.58,R,Access Locksmiths (Leeds) Limited,No
Http://opendatacommunities.org/id/metropolitan-district-council/leeds,Leeds City Council,30/06/2018,Resources and Housing,HRA Housing Leeds,Capital,Other Costs,7,20/06/2018,0618-00159,0,53.16,C,Access Locksmiths (Leeds) Limited,No
Http://opendatacommunities.org/id/metropolitan-district-council/leeds,Leeds City Council,30/06/2018,Resources and Housing,HRA Housing Leeds,Capital,Construction,3,20/06/2018,0618-00160,0,589.36,C,Access Locksmiths (Leeds) Limited,No
Http://opendatacommunities.org/id/metropolitan-district-council/leeds,Leeds City Council,30/06/2018,Strategic Landlord,Housing Management,Supplies and Services,Resaleable Materials,204,20/06/2018,0618-00161,0,5,R,Access Locksmiths (Leeds) Limited,No
Http://opendatacommunities.org/id/metropolitan-district-council/leeds,Leeds City Council,30/06/2018,Strategic Landlord,Property and Contracts,Premises,General Maintenance,104,20/06/2018,0618-00162,0,224.2,R,Access Locksmiths (Leeds) Limited,No
Http://opendatacommunities.org/id/metropolitan-district-council/leeds,Leeds City Council,30/06/2018,Strategic Landlord,Property and Contracts,Supplies and Services,Office Consumables,210,22/06/2018,0618-00163,0,40.36,R,Access Locksmiths (Leeds) Limited,No
Http://opendatacommunities.org/id/metropolitan-district-council/leeds,Leeds City Council,30/06/2018,Strategic Landlord,Housing Management,Supplies and Services,Resaleable Materials,204,22/06/2018,0618-00164,0,123.5,R,Access Locksmiths (Leeds) Limited,No
Http://opendatacommunities.org/id/metropolitan-district-council/leeds,Leeds City Council,30/06/2018,Resources and Housing,HRA Housing Leeds,Capital,Other Costs,7,22/06/2018,0618-00165,0,22.8,C,Access Locksmiths (Leeds) Limited,No
Http://opendatacommunities.org/id/metropolitan-district-council/leeds,Leeds City Council,30/06/2018,Strategic Landlord,Property and Contracts,Premises,General Maintenance,104,28/06/2018,0618-00166,0,173.87,R,Access Locksmiths (Leeds) Limited,No
Http://opendatacommunities.org/id/metropolitan-district-council/leeds,Leeds City Council,30/06/2018,Strategic Landlord,Housing Management,Support Services,Property Management  Charges,452,28/06/2018,0618-00167,0,37.5,R,Access Locksmiths (Leeds) Limited,No
Http://opendatacommunities.org/id/metropolitan-district-council/leeds,Leeds City Council,30/06/2018,Communities and Environment,Parks and Countryside,Supplies and Services,Operational Materials,205,29/06/2018,0618-00168,0,170.3,R,Access Locksmiths (Leeds) Limited,No
Http://opendatacommunities.org/id/metropolitan-district-council/leeds,Leeds City Council,30/06/2018,Resources and Housing,HRA Housing Leeds,Capital,Other Costs,7,29/06/2018,0618-00169,0,21.32,C,Access Locksmiths (Leeds) Limited,No
Http://opendatacommunities.org/id/metropolitan-district-council/leeds,Leeds City Council,30/06/2018,Strategic Landlord,Housing Management,Supplies and Services,Resaleable Materials,204,29/06/2018,0618-00170,0,100.9,R,Access Locksmiths (Leeds) Limited,No
Http://opendatacommunities.org/id/metropolitan-district-council/leeds,Leeds City Council,30/06/2018,Strategic Landlord,Housing Management,Supplies and Services,Resaleable Materials,204,29/06/2018,0618-00171,0,41.8,R,Access Locksmiths (Leeds) Limited,No
Http://opendatacommunities.org/id/metropolitan-district-council/leeds,Leeds City Council,30/06/2018,Strategic Landlord,Housing Management,Premises,General Maintenance,104,29/06/2018,0618-00172,0,798,R,Access Locksmiths (Leeds) Limited,No
Http://opendatacommunities.org/id/metropolitan-district-council/leeds,Leeds City Council,30/06/2018,Communities and Environment,Waste Management,Supplies and Services,Operational Furniture And Equipment,203,29/06/2018,0618-00173,0,521.5,R,Access Locksmiths (Leeds) Limited,No
Http://opendatacommunities.org/id/metropolitan-district-council/leeds,Leeds City Council,30/06/2018,Resources and Housing,Leeds Building Services,Supplies and Services,Operational Materials,205,04/06/2018,0618-00174,0,38.5,R,Access Opening Systems,No
Http://opendatacommunities.org/id/metropolitan-district-council/leeds,Leeds City Council,30/06/2018,Resources and Housing,Leeds Building Services,Supplies and Services,Operational Materials,205,08/06/2018,0618-00175,0,107.5,R,Access Opening Systems,No
Http://opendatacommunities.org/id/metropolitan-district-council/leeds,Leeds City Council,30/06/2018,Resources and Housing,Leeds Building Services,Supplies and Services,Operational Materials,205,08/06/2018,0618-00176,0,400,R,Access Opening Systems,No
Http://opendatacommunities.org/id/metropolitan-district-council/leeds,Leeds City Council,30/06/2018,Resources and Housing,Leeds Building Services,Supplies and Services,Operational Materials,205,08/06/2018,0618-00177,0,97.5,R,Access Opening Systems,No
Http://opendatacommunities.org/id/metropolitan-district-council/leeds,Leeds City Council,30/06/2018,Resources and Housing,Leeds Building Services,Supplies and Services,Operational Materials,205,08/06/2018,0618-00178,0,162.5,R,Access Opening Systems,No
Http://opendatacommunities.org/id/metropolitan-district-council/leeds,Leeds City Council,30/06/2018,Resources and Housing,Leeds Building Services,Supplies and Services,Operational Materials,205,08/06/2018,0618-00179,0,107.5,R,Access Opening Systems,No
Http://opendatacommunities.org/id/metropolitan-district-council/leeds,Leeds City Council,30/06/2018,Resources and Housing,Leeds Building Services,Supplies and Services,Operational Materials,205,08/06/2018,0618-00180,0,97.5,R,Access Opening Systems,No
Http://opendatacommunities.org/id/metropolitan-district-council/leeds,Leeds City Council,30/06/2018,Resources and Housing,Leeds Building Services,Supplies and Services,Other Hired And Contracted Services,265,11/06/2018,0618-00181,0,95,R,Access Opening Systems,No
Http://opendatacommunities.org/id/metropolitan-district-council/leeds,Leeds City Council,30/06/2018,Resources and Housing,Leeds Building Services,Supplies and Services,Other Hired And Contracted Services,265,15/06/2018,0618-00182,0,380.1,R,Access Opening Systems,No
Http://opendatacommunities.org/id/metropolitan-district-council/leeds,Leeds City Council,30/06/2018,Resources and Housing,Leeds Building Services,Supplies and Services,Operational Materials,205,15/06/2018,0618-00183,0,335,R,Access Opening Systems,No
Http://opendatacommunities.org/id/metropolitan-district-council/leeds,Leeds City Council,30/06/2018,Resources and Housing,Leeds Building Services,Supplies and Services,Operational Materials,205,20/06/2018,0618-00184,0,95,R,Access Opening Systems,No
Http://opendatacommunities.org/id/metropolitan-district-council/leeds,Leeds City Council,30/06/2018,Resources and Housing,Leeds Building Services,Supplies and Services,Operational Materials,205,20/06/2018,0618-00185,0,210,R,Access Opening Systems,No
Http://opendatacommunities.org/id/metropolitan-district-council/leeds,Leeds City Council,30/06/2018,Resources and Housing,Leeds Building Services,Supplies and Services,Operational Materials,205,26/06/2018,0618-00186,0,75,R,Access Opening Systems,No
Http://opendatacommunities.org/id/metropolitan-district-council/leeds,Leeds City Council,30/06/2018,Resources and Housing,Leeds Building Services,Supplies and Services,Operational Materials,205,26/06/2018,0618-00187,0,1500,R,Access Opening Systems,No
Http://opendatacommunities.org/id/metropolitan-district-council/leeds,Leeds City Council,30/06/2018,Resources and Housing,Leeds Building Services,Supplies and Services,Operational Materials,205,26/06/2018,0618-00188,0,107.5,R,Access Opening Systems,No
Http://opendatacommunities.org/id/metropolitan-district-council/leeds,Leeds City Council,30/06/2018,Resources and Housing,Leeds Building Services,Supplies and Services,Operational Materials,205,28/06/2018,0618-00189,0,40.75,R,Access Opening Systems,No
Http://opendatacommunities.org/id/metropolitan-district-council/leeds,Leeds City Council,30/06/2018,Resources and Housing,Leeds Building Services,Supplies and Services,Operational Materials,205,28/06/2018,0618-00190,0,915,R,Access Opening Systems,No
Http://opendatacommunities.org/id/metropolitan-district-council/leeds,Leeds City Council,30/06/2018,Resources and Housing,Leeds Building Services,Supplies and Services,Operational Materials,205,28/06/2018,0618-00191,0,200,R,Access Opening Systems,No
Http://opendatacommunities.org/id/metropolitan-district-council/leeds,Leeds City Council,30/06/2018,Resources and Housing,Leeds Building Services,Supplies and Services,Operational Materials,205,28/06/2018,0618-00192,0,12.5,R,Access Opening Systems,No
Http://opendatacommunities.org/id/metropolitan-district-council/leeds,Leeds City Council,30/06/2018,Resources and Housing,Leeds Building Services,Supplies and Services,Operational Materials,205,28/06/2018,0618-00193,0,12.5,R,Access Opening Systems,No
Http://opendatacommunities.org/id/metropolitan-district-council/leeds,Leeds City Council,30/06/2018,Resources and Housing,Leeds Building Services,Supplies and Services,Operational Materials,205,28/06/2018,0618-00194,0,770,R,Access Opening Systems,No
Http://opendatacommunities.org/id/metropolitan-district-council/leeds,Leeds City Council,30/06/2018,Insurance,Insurance,Supplies and Services,Insurance Claims,248,21/06/2018,0618-00195,0,3000,R,Accountant General Of The Senior Courts,No
Http://opendatacommunities.org/id/metropolitan-district-council/leeds,Leeds City Council,30/06/2018,City Development,Libraries  Arts & Heritage,Transport,Miscellaneous Transport Related Costs,324,12/06/2018,0618-00196,0,120,R,Ace Container Services Limited,No
Http://opendatacommunities.org/id/metropolitan-district-council/leeds,Leeds City Council,30/06/2018,City Development,Recreation,Transport,External Hire -Occasional,304,29/06/2018,0618-00197,0,124.5,R,Ace Container Services Limited,No
Http://opendatacommunities.org/id/metropolitan-district-council/leeds,Leeds City Council,30/06/2018,Strategic Landlord,Property and Contracts,Supplies and Services,Memberships,226,04/06/2018,0618-00198,0,100,R,Aces,No
Http://opendatacommunities.org/id/metropolitan-district-council/leeds,Leeds City Council,30/06/2018,Adults and Health,Services For Older People - 65 And Over,Third Party Payments,Nursing Care Dementia,574,27/06/2018,0618-00199,0,1610.8,R,Acorn Nursing Home,No
Http://opendatacommunities.org/id/metropolitan-district-council/leeds,Leeds City Council,30/06/2018,City Development,Libraries  Arts & Heritage,Supplies and Services,Other Hired And Contracted Services,265,01/06/2018,0618-00200,0,9140,R,Acorn Scaffolding (Yorkshire) Ltd,No
Http://opendatacommunities.org/id/metropolitan-district-council/leeds,Leeds City Council,30/06/2018,City Development,Libraries  Arts & Heritage,Supplies and Services,Other Hired And Contracted Services,265,07/06/2018,0618-00201,0,1786.35,R,Acorn Scaffolding (Yorkshire) Ltd,No
Http://opendatacommunities.org/id/metropolitan-district-council/leeds,Leeds City Council,30/06/2018,City Development,Libraries  Arts & Heritage,Supplies and Services,Other Hired And Contracted Services,265,22/06/2018,0618-00202,0,2759.36,R,Acorn Scaffolding (Yorkshire) Ltd,No
Http://opendatacommunities.org/id/metropolitan-district-council/leeds,Leeds City Council,30/06/2018,Children and Families,Social Care,Third Party Payments,Services Rendered By Other Organisations,511,01/06/2018,0618-00203,0,340,R,Acorns Nursery,No
Http://opendatacommunities.org/id/metropolitan-district-council/leeds,Leeds City Council,30/06/2018,Communities and Environment,Parks and Countryside,Supplies and Services,Operational Furniture And Equipment,203,29/06/2018,0618-00204,0,2921.62,R,Acoustic Arrangments Limited,No
Http://opendatacommunities.org/id/metropolitan-district-council/leeds,Leeds City Council,30/06/2018,Communities and Environment,Parks and Countryside,Supplies and Services,Other Hired And Contracted Services,265,29/06/2018,0618-00205,0,1126,R,Acoustic Arrangments Limited,No
Http://opendatacommunities.org/id/metropolitan-district-council/leeds,Leeds City Council,30/06/2018,Communities and Environment,Parks and Countryside,Supplies and Services,Other Hired And Contracted Services,265,29/06/2018,0618-00206,0,154,R,Acoustic Arrangments Limited,No
Http://opendatacommunities.org/id/metropolitan-district-council/leeds,Leeds City Council,30/06/2018,Adults and Health,Services For Older People - 65 And Over,Third Party Payments,Nursing Home,570,27/06/2018,0618-00207,0,34495.41,R,Acre Green,No
Http://opendatacommunities.org/id/metropolitan-district-council/leeds,Leeds City Council,30/06/2018,Adults and Health,Services For Older People - 65 And Over,Third Party Payments,Nursing Care Dementia,574,27/06/2018,0618-00208,0,884.6,R,Acre Green,No
Http://opendatacommunities.org/id/metropolitan-district-council/leeds,Leeds City Council,30/06/2018,Adults and Health,Services For Older People - 65 And Over,Third Party Payments,Residential,580,27/06/2018,0618-00209,0,5644.78,R,Acre Green,No
Http://opendatacommunities.org/id/metropolitan-district-council/leeds,Leeds City Council,30/06/2018,Adults and Health,Services For Older People Under 65 P/Dis,Third Party Payments,Nursing Home,570,27/06/2018,0618-00210,0,2357.86,R,Acre Green,No
Http://opendatacommunities.org/id/metropolitan-district-council/leeds,Leeds City Council,30/06/2018,Adults and Health,Services For Older People Under 65 P/Dis,Third Party Payments,Residential,580,27/06/2018,0618-00211,0,3900.92,R,Acre Green,No
Http://opendatacommunities.org/id/metropolitan-district-council/leeds,Leeds City Council,30/06/2018,Children and Families,Social Care,Third Party Payments,Services Rendered By Other Organisations,511,01/06/2018,0618-00212,0,1272.67,R,Acre Wood Day Nursery,No
Http://opendatacommunities.org/id/metropolitan-district-council/leeds,Leeds City Council,30/06/2018,Children and Families,Social Care,Third Party Payments,Services Rendered By Other Organisations,511,01/06/2018,0618-00213,0,1550,R,Acre Wood Day Nursery,No
Http://opendatacommunities.org/id/metropolitan-district-council/leeds,Leeds City Council,30/06/2018,Resources and Housing,Leeds Building Services,Supplies and Services,Operational Materials,205,18/06/2018,0618-00214,0,140,R,Actavo (Leeds H & S),No
Http://opendatacommunities.org/id/metropolitan-district-council/leeds,Leeds City Council,30/06/2018,Adults and Health,Services For Adults Under 65 Mental/Dis,Third Party Payments,Fees - Level 4,520,14/06/2018,0618-00215,0,250,R,Action First Recruitment Ltd,No
Http://opendatacommunities.org/id/metropolitan-district-council/leeds,Leeds City Council,30/06/2018,Adults and Health,Services For Adults Under 65 Mental/Dis,Third Party Payments,Fees - Level 4,520,14/06/2018,0618-00216,0,250,R,Action First Recruitment Ltd,No
Http://opendatacommunities.org/id/metropolitan-district-council/leeds,Leeds City Council,30/06/2018,Adults and Health,Services For Adults Under 65 Mental/Dis,Third Party Payments,Fees - Level 4,520,14/06/2018,0618-00217,0,220,R,Action First Recruitment Ltd,No
Http://opendatacommunities.org/id/metropolitan-district-council/leeds,Leeds City Council,30/06/2018,Adults and Health,Services For Adults Under 65 Mental/Dis,Third Party Payments,Fees - Level 4,520,14/06/2018,0618-00218,0,250,R,Action First Recruitment Ltd,No
Http://opendatacommunities.org/id/metropolitan-district-council/leeds,Leeds City Council,30/06/2018,Adults and Health,Services For Adults Under 65 Mental/Dis,Third Party Payments,Fees - Level 4,520,14/06/2018,0618-00219,0,220,R,Action First Recruitment Ltd,No
Http://opendatacommunities.org/id/metropolitan-district-council/leeds,Leeds City Council,30/06/2018,Adults and Health,Services For Adults Under 65 Mental/Dis,Third Party Payments,Fees - Level 4,520,14/06/2018,0618-00220,0,220,R,Action First Recruitment Ltd,No
Http://opendatacommunities.org/id/metropolitan-district-council/leeds,Leeds City Council,30/06/2018,Adults and Health,Services For Adults Under 65 Mental/Dis,Third Party Payments,Fees - Level 4,520,14/06/2018,0618-00221,0,220,R,Action First Recruitment Ltd,No
Http://opendatacommunities.org/id/metropolitan-district-council/leeds,Leeds City Council,30/06/2018,Adults and Health,Services For Adults Under 65 Mental/Dis,Third Party Payments,Fees - Level 4,520,14/06/2018,0618-00222,0,220,R,Action First Recruitment Ltd,No
Http://opendatacommunities.org/id/metropolitan-district-council/leeds,Leeds City Council,30/06/2018,Adults and Health,Services For Adults Under 65 Mental/Dis,Third Party Payments,Fees - Level 4,520,14/06/2018,0618-00223,0,220,R,Action First Recruitment Ltd,No
Http://opendatacommunities.org/id/metropolitan-district-council/leeds,Leeds City Council,30/06/2018,Adults and Health,Services For Adults Under 65 Mental/Dis,Third Party Payments,Fees - Level 4,520,14/06/2018,0618-00224,0,220,R,Action First Recruitment Ltd,No
Http://opendatacommunities.org/id/metropolitan-district-council/leeds,Leeds City Council,30/06/2018,Adults and Health,Services For Adults Under 65 Mental/Dis,Third Party Payments,Fees - Level 4,520,14/06/2018,0618-00225,0,220,R,Action First Recruitment Ltd,No
Http://opendatacommunities.org/id/metropolitan-district-council/leeds,Leeds City Council,30/06/2018,Adults and Health,Services For Adults Under 65 Mental/Dis,Third Party Payments,Fees - Level 4,520,14/06/2018,0618-00226,0,220,R,Action First Recruitment Ltd,No
Http://opendatacommunities.org/id/metropolitan-district-council/leeds,Leeds City Council,30/06/2018,Adults and Health,Services For Adults Under 65 Mental/Dis,Third Party Payments,Fees - Level 4,520,14/06/2018,0618-00227,0,250,R,Action First Recruitment Ltd,No
Http://opendatacommunities.org/id/metropolitan-district-council/leeds,Leeds City Council,30/06/2018,Adults and Health,Services For Adults Under 65 Mental/Dis,Third Party Payments,Fees - Level 4,520,14/06/2018,0618-00228,0,250,R,Action First Recruitment Ltd,No
Http://opendatacommunities.org/id/metropolitan-district-council/leeds,Leeds City Council,30/06/2018,Adults and Health,Services For Adults Under 65 Mental/Dis,Third Party Payments,Fees - Level 4,520,14/06/2018,0618-00229,0,250,R,Action First Recruitment Ltd,No
Http://opendatacommunities.org/id/metropolitan-district-council/leeds,Leeds City Council,30/06/2018,Adults and Health,Services For Adults Under 65 Mental/Dis,Third Party Payments,Fees - Level 4,520,14/06/2018,0618-00230,0,250,R,Action First Recruitment Ltd,No
Http://opendatacommunities.org/id/metropolitan-district-council/leeds,Leeds City Council,30/06/2018,Adults and Health,Services For Adults Under 65 Mental/Dis,Third Party Payments,Fees - Level 4,520,14/06/2018,0618-00231,0,250,R,Action First Recruitment Ltd,No
Http://opendatacommunities.org/id/metropolitan-district-council/leeds,Leeds City Council,30/06/2018,Adults and Health,Services For Adults Under 65 Mental/Dis,Third Party Payments,Fees - Level 4,520,14/06/2018,0618-00232,0,250,R,Action First Recruitment Ltd,No
Http://opendatacommunities.org/id/metropolitan-district-council/leeds,Leeds City Council,30/06/2018,Adults and Health,Services For Adults Under 65 Mental/Dis,Third Party Payments,Fees - Level 4,520,14/06/2018,0618-00233,0,250,R,Action First Recruitment Ltd,No
Http://opendatacommunities.org/id/metropolitan-district-council/leeds,Leeds City Council,30/06/2018,Adults and Health,Services For Adults Under 65 Mental/Dis,Third Party Payments,Fees - Level 4,520,14/06/2018,0618-00234,0,250,R,Action First Recruitment Ltd,No
Http://opendatacommunities.org/id/metropolitan-district-council/leeds,Leeds City Council,30/06/2018,Adults and Health,Services For Adults Under 65 Mental/Dis,Third Party Payments,Fees - Level 4,520,14/06/2018,0618-00235,0,220,R,Action First Recruitment Ltd,No
Http://opendatacommunities.org/id/metropolitan-district-council/leeds,Leeds City Council,30/06/2018,Adults and Health,Services For Adults Under 65 Mental/Dis,Third Party Payments,Fees - Level 4,520,14/06/2018,0618-00236,0,220,R,Action First Recruitment Ltd,No
Http://opendatacommunities.org/id/metropolitan-district-council/leeds,Leeds City Council,30/06/2018,Adults and Health,Services For Adults Under 65 Mental/Dis,Third Party Payments,Fees - Level 4,520,14/06/2018,0618-00237,0,220,R,Action First Recruitment Ltd,No
Http://opendatacommunities.org/id/metropolitan-district-council/leeds,Leeds City Council,30/06/2018,Adults and Health,Services For Adults Under 65 Mental/Dis,Third Party Payments,Fees - Level 4,520,14/06/2018,0618-00238,0,220,R,Action First Recruitment Ltd,No
Http://opendatacommunities.org/id/metropolitan-district-council/leeds,Leeds City Council,30/06/2018,Adults and Health,Services For Adults Under 65 Mental/Dis,Third Party Payments,Fees - Level 4,520,14/06/2018,0618-00239,0,220,R,Action First Recruitment Ltd,No
Http://opendatacommunities.org/id/metropolitan-district-council/leeds,Leeds City Council,30/06/2018,Adults and Health,Services For Adults Under 65 Mental/Dis,Third Party Payments,Fees - Level 4,520,14/06/2018,0618-00240,0,220,R,Action First Recruitment Ltd,No
Http://opendatacommunities.org/id/metropolitan-district-council/leeds,Leeds City Council,30/06/2018,Adults and Health,Services For Adults Under 65 Mental/Dis,Third Party Payments,Fees - Level 4,520,14/06/2018,0618-00241,0,220,R,Action First Recruitment Ltd,No
Http://opendatacommunities.org/id/metropolitan-district-council/leeds,Leeds City Council,30/06/2018,Adults and Health,Services For Adults Under 65 Mental/Dis,Third Party Payments,Fees - Level 4,520,14/06/2018,0618-00242,0,220,R,Action First Recruitment Ltd,No
Http://opendatacommunities.org/id/metropolitan-district-council/leeds,Leeds City Council,30/06/2018,Adults and Health,Services For Adults Under 65 Mental/Dis,Third Party Payments,Fees - Level 4,520,14/06/2018,0618-00243,0,220,R,Action First Recruitment Ltd,No
Http://opendatacommunities.org/id/metropolitan-district-council/leeds,Leeds City Council,30/06/2018,Adults and Health,Services For Adults Under 65 Mental/Dis,Third Party Payments,Fees - Level 4,520,14/06/2018,0618-00244,0,250,R,Action First Recruitment Ltd,No
Http://opendatacommunities.org/id/metropolitan-district-council/leeds,Leeds City Council,30/06/2018,Adults and Health,Services For Adults Under 65 Mental/Dis,Third Party Payments,Fees - Level 4,520,18/06/2018,0618-00245,0,250,R,Action First Recruitment Ltd,No
Http://opendatacommunities.org/id/metropolitan-district-council/leeds,Leeds City Council,30/06/2018,Adults and Health,Services For Adults Under 65 Mental/Dis,Third Party Payments,Fees - Level 4,520,18/06/2018,0618-00246,0,250,R,Action First Recruitment Ltd,No
Http://opendatacommunities.org/id/metropolitan-district-council/leeds,Leeds City Council,30/06/2018,Adults and Health,Services For Adults Under 65 Mental/Dis,Third Party Payments,Fees - Level 4,520,18/06/2018,0618-00247,0,220,R,Action First Recruitment Ltd,No
Http://opendatacommunities.org/id/metropolitan-district-council/leeds,Leeds City Council,30/06/2018,Adults and Health,Services For Adults Under 65 Mental/Dis,Third Party Payments,Fees - Level 4,520,18/06/2018,0618-00248,0,220,R,Action First Recruitment Ltd,No
Http://opendatacommunities.org/id/metropolitan-district-council/leeds,Leeds City Council,30/06/2018,Adults and Health,Services For Adults Under 65 Mental/Dis,Third Party Payments,Fees - Level 4,520,18/06/2018,0618-00249,0,220,R,Action First Recruitment Ltd,No
Http://opendatacommunities.org/id/metropolitan-district-council/leeds,Leeds City Council,30/06/2018,Adults and Health,Services For Adults Under 65 Mental/Dis,Third Party Payments,Fees - Level 4,520,18/06/2018,0618-00250,0,220,R,Action First Recruitment Ltd,No
Http://opendatacommunities.org/id/metropolitan-district-council/leeds,Leeds City Council,30/06/2018,Adults and Health,Services For Adults Under 65 Mental/Dis,Third Party Payments,Fees - Level 4,520,18/06/2018,0618-00251,0,220,R,Action First Recruitment Ltd,No
Http://opendatacommunities.org/id/metropolitan-district-council/leeds,Leeds City Council,30/06/2018,Adults and Health,Services For Adults Under 65 Mental/Dis,Third Party Payments,Fees - Level 4,520,18/06/2018,0618-00252,0,220,R,Action First Recruitment Ltd,No
Http://opendatacommunities.org/id/metropolitan-district-council/leeds,Leeds City Council,30/06/2018,Adults and Health,Services For Adults Under 65 Mental/Dis,Third Party Payments,Fees - Level 4,520,18/06/2018,0618-00253,0,220,R,Action First Recruitment Ltd,No
Http://opendatacommunities.org/id/metropolitan-district-council/leeds,Leeds City Council,30/06/2018,Adults and Health,Services For Adults Under 65 Mental/Dis,Third Party Payments,Fees - Level 4,520,18/06/2018,0618-00254,0,220,R,Action First Recruitment Ltd,No
Http://opendatacommunities.org/id/metropolitan-district-council/leeds,Leeds City Council,30/06/2018,Adults and Health,Services For Adults Under 65 Mental/Dis,Third Party Payments,Fees - Level 4,520,18/06/2018,0618-00255,0,220,R,Action First Recruitment Ltd,No
Http://opendatacommunities.org/id/metropolitan-district-council/leeds,Leeds City Council,30/06/2018,Adults and Health,Services For Adults Under 65 Mental/Dis,Third Party Payments,Fees - Level 4,520,18/06/2018,0618-00256,0,220,R,Action First Recruitment Ltd,No
Http://opendatacommunities.org/id/metropolitan-district-council/leeds,Leeds City Council,30/06/2018,Adults and Health,Services For Adults Under 65 Mental/Dis,Third Party Payments,Fees - Level 4,520,18/06/2018,0618-00257,0,220,R,Action First Recruitment Ltd,No
Http://opendatacommunities.org/id/metropolitan-district-council/leeds,Leeds City Council,30/06/2018,Adults and Health,Services For Adults Under 65 Mental/Dis,Third Party Payments,Fees - Level 4,520,18/06/2018,0618-00258,0,220,R,Action First Recruitment Ltd,No
Http://opendatacommunities.org/id/metropolitan-district-council/leeds,Leeds City Council,30/06/2018,Adults and Health,Services For Adults Under 65 Mental/Dis,Third Party Payments,Fees - Level 4,520,18/06/2018,0618-00259,0,250,R,Action First Recruitment Ltd,No
Http://opendatacommunities.org/id/metropolitan-district-council/leeds,Leeds City Council,30/06/2018,Adults and Health,Services For Adults Under 65 Mental/Dis,Third Party Payments,Fees - Level 4,520,25/06/2018,0618-00260,0,220,R,Action First Recruitment Ltd,No
Http://opendatacommunities.org/id/metropolitan-district-council/leeds,Leeds City Council,30/06/2018,Adults and Health,Services For Adults Under 65 Mental/Dis,Third Party Payments,Fees - Level 4,520,28/06/2018,0618-00261,0,250,R,Action First Recruitment Ltd,No
Http://opendatacommunities.org/id/metropolitan-district-council/leeds,Leeds City Council,30/06/2018,Adults and Health,Services For Adults Under 65 Mental/Dis,Third Party Payments,Fees - Level 4,520,28/06/2018,0618-00262,0,250,R,Action First Recruitment Ltd,No
Http://opendatacommunities.org/id/metropolitan-district-council/leeds,Leeds City Council,30/06/2018,Adults and Health,Services For Adults Under 65 Mental/Dis,Third Party Payments,Fees - Level 4,520,28/06/2018,0618-00263,0,220,R,Action First Recruitment Ltd,No
Http://opendatacommunities.org/id/metropolitan-district-council/leeds,Leeds City Council,30/06/2018,Adults and Health,Services For Adults Under 65 Mental/Dis,Third Party Payments,Fees - Level 4,520,28/06/2018,0618-00264,0,250,R,Action First Recruitment Ltd,No
Http://opendatacommunities.org/id/metropolitan-district-council/leeds,Leeds City Council,30/06/2018,Adults and Health,Services For Adults Under 65 Mental/Dis,Third Party Payments,Fees - Level 4,520,28/06/2018,0618-00265,0,250,R,Action First Recruitment Ltd,No
Http://opendatacommunities.org/id/metropolitan-district-council/leeds,Leeds City Council,30/06/2018,Adults and Health,Services For Adults Under 65 Mental/Dis,Third Party Payments,Fees - Level 4,520,28/06/2018,0618-00266,0,250,R,Action First Recruitment Ltd,No
Http://opendatacommunities.org/id/metropolitan-district-council/leeds,Leeds City Council,30/06/2018,Adults and Health,Services For Adults Under 65 Mental/Dis,Third Party Payments,Fees - Level 4,520,28/06/2018,0618-00267,0,250,R,Action First Recruitment Ltd,No
Http://opendatacommunities.org/id/metropolitan-district-council/leeds,Leeds City Council,30/06/2018,Children and Families,Social Care,Third Party Payments,Independent Fostering Agencies,509,12/06/2018,0618-00268,0,4776.48,R,Action For Children,No
Http://opendatacommunities.org/id/metropolitan-district-council/leeds,Leeds City Council,30/06/2018,Children and Families,Social Care,Third Party Payments,Independent Fostering Agencies,509,12/06/2018,0618-00269,0,4776.48,R,Action For Children,No
Http://opendatacommunities.org/id/metropolitan-district-council/leeds,Leeds City Council,30/06/2018,Children and Families,Social Care,Third Party Payments,Independent Fostering Agencies,509,12/06/2018,0618-00270,0,4776.48,R,Action For Children,No
Http://opendatacommunities.org/id/metropolitan-district-council/leeds,Leeds City Council,30/06/2018,Children and Families,Social Care,Third Party Payments,Independent Fostering Agencies,509,12/06/2018,0618-00271,0,4776.48,R,Action For Children,No
Http://opendatacommunities.org/id/metropolitan-district-council/leeds,Leeds City Council,30/06/2018,Children and Families,Social Care,Third Party Payments,Independent Fostering Agencies,509,15/06/2018,0618-00272,0,4776.48,R,Action For Children,No
Http://opendatacommunities.org/id/metropolitan-district-council/leeds,Leeds City Council,30/06/2018,Children and Families,Social Care,Third Party Payments,Independent Fostering Agencies,509,15/06/2018,0618-00273,0,4776.48,R,Action For Children,No
Http://opendatacommunities.org/id/metropolitan-district-council/leeds,Leeds City Council,30/06/2018,Children and Families,Social Care,Third Party Payments,Independent Fostering Agencies,509,15/06/2018,0618-00274,0,4776.48,R,Action For Children,No
Http://opendatacommunities.org/id/metropolitan-district-council/leeds,Leeds City Council,30/06/2018,Children and Families,Social Care,Third Party Payments,Independent Fostering Agencies,509,15/06/2018,0618-00275,0,4776.48,R,Action For Children,No
Http://opendatacommunities.org/id/metropolitan-district-council/leeds,Leeds City Council,30/06/2018,Children and Families,Social Care,Third Party Payments,Independent Fostering Agencies,509,15/06/2018,0618-00276,0,5060.44,R,Action For Children Services Ltd,No
Http://opendatacommunities.org/id/metropolitan-district-council/leeds,Leeds City Council,30/06/2018,Adults and Health,Services For Older People - 65 And Over,Third Party Payments,Payments To Voluntary Organisations,561,29/06/2018,0618-00277,0,34505.5,R,Action For Gipton Elderly,No
Http://opendatacommunities.org/id/metropolitan-district-council/leeds,Leeds City Council,30/06/2018,Children and Families,Social Care,Third Party Payments,Services Rendered By Other Organisations,511,01/06/2018,0618-00278,0,183.67,R,Active Kids Yeadon Llp,No
Http://opendatacommunities.org/id/metropolitan-district-council/leeds,Leeds City Council,30/06/2018,Communities and Environment,Waste Management  ,Supplies and Services,Clothing & Uniforms,241,18/05/2018,0618-00279,0,411.6,R,Active Workwear,Yes
Http://opendatacommunities.org/id/metropolitan-district-council/leeds,Leeds City Council,30/06/2018,Communities and Environment,Waste Management,Supplies and Services,Recycling & Reuse Charges,234,01/06/2018,0618-00280,0,2829.41,R,Acumen Waste Services Ltd,No
Http://opendatacommunities.org/id/metropolitan-district-council/leeds,Leeds City Council,30/06/2018,Communities and Environment,Cleaner Neighbourhood Teams,Premises,Removal Of Workplace Waste,126,01/06/2018,0618-00281,0,110,R,Acumen Waste Services Ltd,No
Http://opendatacommunities.org/id/metropolitan-district-council/leeds,Leeds City Council,30/06/2018,Communities and Environment,Cleaner Neighbourhood Teams,Premises,Removal Of Workplace Waste,126,01/06/2018,0618-00282,0,110,R,Acumen Waste Services Ltd,No
Http://opendatacommunities.org/id/metropolitan-district-council/leeds,Leeds City Council,30/06/2018,Communities and Environment,Cleaner Neighbourhood Teams,Premises,Removal Of Workplace Waste,126,08/06/2018,0618-00283,0,110,R,Acumen Waste Services Ltd,No
Http://opendatacommunities.org/id/metropolitan-district-council/leeds,Leeds City Council,30/06/2018,Communities and Environment,Cleaner Neighbourhood Teams,Premises,Removal Of Workplace Waste,126,08/06/2018,0618-00284,0,110,R,Acumen Waste Services Ltd,No
Http://opendatacommunities.org/id/metropolitan-district-council/leeds,Leeds City Council,30/06/2018,Communities and Environment,Cleaner Neighbourhood Teams,Premises,Removal Of Workplace Waste,126,08/06/2018,0618-00285,0,110,R,Acumen Waste Services Ltd,No
Http://opendatacommunities.org/id/metropolitan-district-council/leeds,Leeds City Council,30/06/2018,Communities and Environment,Waste Management,Supplies and Services,Recycling & Reuse Charges,234,08/06/2018,0618-00286,0,5593.16,R,Acumen Waste Services Ltd,No
Http://opendatacommunities.org/id/metropolitan-district-council/leeds,Leeds City Council,30/06/2018,Communities and Environment,Waste Management,Supplies and Services,Recycling & Reuse Charges,234,15/06/2018,0618-00287,0,7538.84,R,Acumen Waste Services Ltd,No
Http://opendatacommunities.org/id/metropolitan-district-council/leeds,Leeds City Council,30/06/2018,Communities and Environment,Cleaner Neighbourhood Teams,Premises,Removal Of Workplace Waste,126,20/06/2018,0618-00288,0,110,R,Acumen Waste Services Ltd,No
Http://opendatacommunities.org/id/metropolitan-district-council/leeds,Leeds City Council,30/06/2018,Communities and Environment,Cleaner Neighbourhood Teams,Premises,Removal Of Workplace Waste,126,20/06/2018,0618-00289,0,110,R,Acumen Waste Services Ltd,No
Http://opendatacommunities.org/id/metropolitan-district-council/leeds,Leeds City Council,30/06/2018,Communities and Environment,Cleaner Neighbourhood Teams,Premises,Removal Of Workplace Waste,126,20/06/2018,0618-00290,0,110,R,Acumen Waste Services Ltd,No
Http://opendatacommunities.org/id/metropolitan-district-council/leeds,Leeds City Council,30/06/2018,Communities and Environment,Waste Management,Supplies and Services,Recycling & Reuse Charges,234,20/06/2018,0618-00291,0,6809.88,R,Acumen Waste Services Ltd,No
Http://opendatacommunities.org/id/metropolitan-district-council/leeds,Leeds City Council,30/06/2018,Communities and Environment,Cleaner Neighbourhood Teams,Premises,Removal Of Workplace Waste,126,22/06/2018,0618-00292,0,110,R,Acumen Waste Services Ltd,No
Http://opendatacommunities.org/id/metropolitan-district-council/leeds,Leeds City Council,30/06/2018,Communities and Environment,Cleaner Neighbourhood Teams,Premises,Removal Of Workplace Waste,126,22/06/2018,0618-00293,0,110,R,Acumen Waste Services Ltd,No
Http://opendatacommunities.org/id/metropolitan-district-council/leeds,Leeds City Council,30/06/2018,Communities and Environment,Cleaner Neighbourhood Teams,Premises,Removal Of Workplace Waste,126,22/06/2018,0618-00294,0,110,R,Acumen Waste Services Ltd,No
Http://opendatacommunities.org/id/metropolitan-district-council/leeds,Leeds City Council,30/06/2018,Communities and Environment,Cleaner Neighbourhood Teams,Premises,Removal Of Workplace Waste,126,22/06/2018,0618-00295,0,110,R,Acumen Waste Services Ltd,No
Http://opendatacommunities.org/id/metropolitan-district-council/leeds,Leeds City Council,30/06/2018,Communities and Environment,Cleaner Neighbourhood Teams,Premises,Removal Of Workplace Waste,126,22/06/2018,0618-00296,0,110,R,Acumen Waste Services Ltd,No
Http://opendatacommunities.org/id/metropolitan-district-council/leeds,Leeds City Council,30/06/2018,Communities and Environment,Cleaner Neighbourhood Teams,Premises,Removal Of Workplace Waste,126,22/06/2018,0618-00297,0,110,R,Acumen Waste Services Ltd,No
Http://opendatacommunities.org/id/metropolitan-district-council/leeds,Leeds City Council,30/06/2018,Communities and Environment,Cleaner Neighbourhood Teams,Premises,Removal Of Workplace Waste,126,22/06/2018,0618-00298,0,110,R,Acumen Waste Services Ltd,No
Http://opendatacommunities.org/id/metropolitan-district-council/leeds,Leeds City Council,30/06/2018,Communities and Environment,Cleaner Neighbourhood Teams,Premises,Removal Of Workplace Waste,126,29/06/2018,0618-00299,0,110,R,Acumen Waste Services Ltd,No
Http://opendatacommunities.org/id/metropolitan-district-council/leeds,Leeds City Council,30/06/2018,Communities and Environment,Cleaner Neighbourhood Teams,Premises,Removal Of Workplace Waste,126,29/06/2018,0618-00300,0,110,R,Acumen Waste Services Ltd,No
Http://opendatacommunities.org/id/metropolitan-district-council/leeds,Leeds City Council,30/06/2018,Communities and Environment,Cleaner Neighbourhood Teams,Premises,Removal Of Workplace Waste,126,29/06/2018,0618-00301,0,110,R,Acumen Waste Services Ltd,No
Http://opendatacommunities.org/id/metropolitan-district-council/leeds,Leeds City Council,30/06/2018,Communities and Environment,Cleaner Neighbourhood Teams,Premises,Removal Of Workplace Waste,126,29/06/2018,0618-00302,0,110,R,Acumen Waste Services Ltd,No
Http://opendatacommunities.org/id/metropolitan-district-council/leeds,Leeds City Council,30/06/2018,Communities and Environment,Cleaner Neighbourhood Teams,Premises,Removal Of Workplace Waste,126,29/06/2018,0618-00303,0,110,R,Acumen Waste Services Ltd,No
Http://opendatacommunities.org/id/metropolitan-district-council/leeds,Leeds City Council,30/06/2018,Communities and Environment,Parks and Countryside,Supplies and Services,Resaleable Materials,204,01/06/2018,0618-00304,0,274.5,R,Acushnet Europe Limited,No
Http://opendatacommunities.org/id/metropolitan-district-council/leeds,Leeds City Council,30/06/2018,Communities and Environment,Parks and Countryside,Supplies and Services,Resaleable Materials,204,08/06/2018,0618-00305,0,145,R,Acushnet Europe Limited,No
Http://opendatacommunities.org/id/metropolitan-district-council/leeds,Leeds City Council,30/06/2018,Communities and Environment,Parks and Countryside,Supplies and Services,Resaleable Materials,204,22/06/2018,0618-00306,0,277.5,R,Acushnet Europe Limited,No
Http://opendatacommunities.org/id/metropolitan-district-council/leeds,Leeds City Council,30/06/2018,Resources and Housing,Shared Services,Supplies and Services,Other Hired And Contracted Services,265,07/06/2018,0618-00307,0,96.44,R,Ad3 Envelope Printers Limited,No
Http://opendatacommunities.org/id/metropolitan-district-council/leeds,Leeds City Council,30/06/2018,Resources and Housing,Shared Services,Supplies and Services,Operational Materials,205,15/06/2018,0618-00308,0,705,R,Ad3 Envelope Printers Limited,No
Http://opendatacommunities.org/id/metropolitan-district-council/leeds,Leeds City Council,30/06/2018,Adults and Health,Services For Older People - 65 And Over,Third Party Payments,Nursing Home,570,27/06/2018,0618-00309,0,3897.12,R,Adbolton Hall,No
Http://opendatacommunities.org/id/metropolitan-district-council/leeds,Leeds City Council,30/06/2018,Children and Families,Social Care,Supplies and Services,Conference Meetings,253,01/06/2018,0618-00310,0,416,R,Adcs,No
Http://opendatacommunities.org/id/metropolitan-district-council/leeds,Leeds City Council,30/06/2018,Resources and Housing,HRA Housing Leeds,Capital,Internal Fees,6,07/06/2018,0618-00311,0,6367,C,Addleshaw Goddard Llp,No
Http://opendatacommunities.org/id/metropolitan-district-council/leeds,Leeds City Council,30/06/2018,Adults and Health,Public Health,Third Party Payments,Public Health Commissioned Services,526,01/06/2018,0618-00312,0,4860.49,R,Addlestone & Partners,No
Http://opendatacommunities.org/id/metropolitan-district-council/leeds,Leeds City Council,30/06/2018,Communities and Environment,Parks and Countryside,Supplies and Services,Other Hired And Contracted Services,265,12/06/2018,0618-00313,0,8918,R,Addlestone & Partners,No
Http://opendatacommunities.org/id/metropolitan-district-council/leeds,Leeds City Council,30/06/2018,Resources and Housing,Human Resources,Employees,Occupational Health,85,15/06/2018,0618-00314,0,60,R,Addlestone & Partners,No
Http://opendatacommunities.org/id/metropolitan-district-council/leeds,Leeds City Council,30/06/2018,Resources and Housing,Technology  ,Employees,Agency Staff,8,15/05/2018,0618-00315,0,49158.43,R,Adecco Alfred Marks,Yes
Http://opendatacommunities.org/id/metropolitan-district-council/leeds,Leeds City Council,30/06/2018,Children and Families,Social Care,Third Party Payments,Services Rendered By Voluntary Sector,505,01/06/2018,0618-00316,0,960.67,R,Adel Pre School,No
Http://opendatacommunities.org/id/metropolitan-district-council/leeds,Leeds City Council,30/06/2018,Children and Families,Social Care,Third Party Payments,Services Rendered By Voluntary Sector,505,01/06/2018,0618-00317,0,1642,R,Adel Pre School,No
Http://opendatacommunities.org/id/metropolitan-district-council/leeds,Leeds City Council,30/06/2018,Strategic Landlord,Housing Management,Supplies and Services,Compensation Claims,200,26/06/2018,0618-00318,0,75,R,REDACTED PERSONAL DATA,No
Http://opendatacommunities.org/id/metropolitan-district-council/leeds,Leeds City Council,30/06/2018,Children and Families,Social Care,Third Party Payments,Services Rendered By Other Organisations,511,01/06/2018,0618-00319,0,237.33,R,REDACTED PERSONAL DATA,No
Http://opendatacommunities.org/id/metropolitan-district-council/leeds,Leeds City Council,30/06/2018,Children and Families,Social Care,Third Party Payments,Services Rendered By Other Organisations,511,01/06/2018,0618-00320,0,536,R,REDACTED PERSONAL DATA,No
Http://opendatacommunities.org/id/metropolitan-district-council/leeds,Leeds City Council,30/06/2018,Adults and Health,Services For Older People - 65 And Over,Third Party Payments,Nursing Home,570,27/06/2018,0618-00321,0,1333.26,R,Aden House,No
Http://opendatacommunities.org/id/metropolitan-district-council/leeds,Leeds City Council,30/06/2018,Resources and Housing,Leeds Building Services,Supplies and Services,Operational Materials,205,01/06/2018,0618-00322,0,253.58,R,Adi Global,No
Http://opendatacommunities.org/id/metropolitan-district-council/leeds,Leeds City Council,30/06/2018,Resources and Housing,Leeds Building Services,Supplies and Services,Operational Materials,205,01/06/2018,0618-00323,0,1058,R,Adi Global,No
Http://opendatacommunities.org/id/metropolitan-district-council/leeds,Leeds City Council,30/06/2018,Resources and Housing,Leeds Building Services,Supplies and Services,Operational Materials,205,01/06/2018,0618-00324,0,103.84,R,Adi Global,No
Http://opendatacommunities.org/id/metropolitan-district-council/leeds,Leeds City Council,30/06/2018,Resources and Housing,Leeds Building Services,Supplies and Services,Operational Materials,205,01/06/2018,0618-00325,0,1168.8,R,Adi Global,No
Http://opendatacommunities.org/id/metropolitan-district-council/leeds,Leeds City Council,30/06/2018,Resources and Housing,Leeds Building Services,Supplies and Services,Operational Materials,205,01/06/2018,0618-00326,0,241.04,R,Adi Global,No
Http://opendatacommunities.org/id/metropolitan-district-council/leeds,Leeds City Council,30/06/2018,Resources and Housing,Leeds Building Services,Supplies and Services,Operational Materials,205,01/06/2018,0618-00327,0,831.14,R,Adi Global,No
Http://opendatacommunities.org/id/metropolitan-district-council/leeds,Leeds City Council,30/06/2018,Resources and Housing,Leeds Building Services,Supplies and Services,Operational Materials,205,20/06/2018,0618-00328,0,135.72,R,Adi Global,No
Http://opendatacommunities.org/id/metropolitan-district-council/leeds,Leeds City Council,30/06/2018,Resources and Housing,Leeds Building Services,Supplies and Services,Operational Materials,205,25/06/2018,0618-00329,0,256.05,R,Adi Global,No
Http://opendatacommunities.org/id/metropolitan-district-council/leeds,Leeds City Council,30/06/2018,Resources and Housing,Leeds Building Services,Supplies and Services,Operational Materials,205,25/06/2018,0618-00330,0,35.54,R,Adi Global,No
Http://opendatacommunities.org/id/metropolitan-district-council/leeds,Leeds City Council,30/06/2018,Resources and Housing,Leeds Building Services,Supplies and Services,Operational Materials,205,25/06/2018,0618-00331,0,1168.8,R,Adi Global,No
Http://opendatacommunities.org/id/metropolitan-district-council/leeds,Leeds City Council,30/06/2018,Resources and Housing,Leeds Building Services,Supplies and Services,Operational Materials,205,25/06/2018,0618-00332,0,1168.8,R,Adi Global,No
Http://opendatacommunities.org/id/metropolitan-district-council/leeds,Leeds City Council,30/06/2018,Resources and Housing,Leeds Building Services,Supplies and Services,Operational Materials,205,25/06/2018,0618-00333,0,13.92,R,Adi Global,No
Http://opendatacommunities.org/id/metropolitan-district-council/leeds,Leeds City Council,30/06/2018,Resources and Housing,Leeds Building Services,Supplies and Services,Operational Materials,205,28/06/2018,0618-00334,0,21.84,R,Adi Global,No
Http://opendatacommunities.org/id/metropolitan-district-council/leeds,Leeds City Council,30/06/2018,Resources and Housing,Leeds Building Services,Supplies and Services,Operational Materials,205,28/06/2018,0618-00335,0,31.73,R,Adi Global,No
Http://opendatacommunities.org/id/metropolitan-district-council/leeds,Leeds City Council,30/06/2018,Resources and Housing,Leeds Building Services,Supplies and Services,Operational Materials,205,28/06/2018,0618-00336,0,1168.8,R,Adi Global,No
Http://opendatacommunities.org/id/metropolitan-district-council/leeds,Leeds City Council,30/06/2018,Resources and Housing,Leeds Building Services,Supplies and Services,Operational Materials,205,28/06/2018,0618-00337,0,1168.8,R,Adi Global,No
Http://opendatacommunities.org/id/metropolitan-district-council/leeds,Leeds City Council,30/06/2018,Resources and Housing,Leeds Building Services,Supplies and Services,Operational Materials,205,28/06/2018,0618-00338,0,1168.8,R,Adi Global,No
Http://opendatacommunities.org/id/metropolitan-district-council/leeds,Leeds City Council,30/06/2018,Resources and Housing,Leeds Building Services,Supplies and Services,Operational Materials,205,28/06/2018,0618-00339,0,1168.8,R,Adi Global,No
Http://opendatacommunities.org/id/metropolitan-district-council/leeds,Leeds City Council,30/06/2018,Resources and Housing,Leeds Building Services,Supplies and Services,Operational Materials,205,28/06/2018,0618-00340,0,1168.8,R,Adi Global,No
Http://opendatacommunities.org/id/metropolitan-district-council/leeds,Leeds City Council,30/06/2018,Resources and Housing,Leeds Building Services,Supplies and Services,Operational Materials,205,28/06/2018,0618-00341,0,1168.8,R,Adi Global,No
Http://opendatacommunities.org/id/metropolitan-district-council/leeds,Leeds City Council,30/06/2018,Resources and Housing,Leeds Building Services,Supplies and Services,Operational Materials,205,28/06/2018,0618-00342,0,1168.8,R,Adi Global,No
Http://opendatacommunities.org/id/metropolitan-district-council/leeds,Leeds City Council,30/06/2018,Resources and Housing,Leeds Building Services,Supplies and Services,Operational Materials,205,28/06/2018,0618-00343,0,1168.8,R,Adi Global,No
Http://opendatacommunities.org/id/metropolitan-district-council/leeds,Leeds City Council,30/06/2018,Resources and Housing,Leeds Building Services,Supplies and Services,Operational Materials,205,28/06/2018,0618-00344,0,1168.8,R,Adi Global,No
Http://opendatacommunities.org/id/metropolitan-district-council/leeds,Leeds City Council,30/06/2018,Communities and Environment,Community Safety  ,Supplies and Services,Other Hired And Contracted Services,265,10/05/2018,0618-00345,0,20.22,R,Adi-Gardiner Ltd,Yes
Http://opendatacommunities.org/id/metropolitan-district-council/leeds,Leeds City Council,30/06/2018,Communities and Environment,Community Safety  ,Supplies and Services,Other Hired And Contracted Services,265,24/05/2018,0618-00346,0,635,R,Adi-Gardiner Ltd,Yes
Http://opendatacommunities.org/id/metropolitan-district-council/leeds,Leeds City Council,30/06/2018,Adults and Health,Services For Older People - 65 And Over,Third Party Payments,Home Care,568,08/06/2018,0618-00347,0,4492,R,Adjuvo (North) Support For Living Ltd,No
Http://opendatacommunities.org/id/metropolitan-district-council/leeds,Leeds City Council,30/06/2018,Adults and Health,Services For Older People - 65 And Over,Third Party Payments,Home Care,568,08/06/2018,0618-00348,0,6727.75,R,Adjuvo (North) Support For Living Ltd,No
Http://opendatacommunities.org/id/metropolitan-district-council/leeds,Leeds City Council,30/06/2018,Adults and Health,Services For Older People Under 65 P/Dis,Third Party Payments,Home Care,568,08/06/2018,0618-00349,0,1020,R,Adjuvo (North) Support For Living Ltd,No
Http://opendatacommunities.org/id/metropolitan-district-council/leeds,Leeds City Council,30/06/2018,Children and Families,Social Care,Third Party Payments,Independent Fostering Agencies,509,15/06/2018,0618-00350,0,2850,R,Adolescent And Childrens Trust,No
Http://opendatacommunities.org/id/metropolitan-district-council/leeds,Leeds City Council,30/06/2018,Children and Families,Social Care,Third Party Payments,Independent Fostering Agencies,509,15/06/2018,0618-00351,0,2850,R,Adolescent And Childrens Trust,No
Http://opendatacommunities.org/id/metropolitan-district-council/leeds,Leeds City Council,30/06/2018,Children and Families,Social Care,Third Party Payments,Independent Fostering Agencies,509,18/06/2018,0618-00352,0,2850,R,Adolescent And Childrens Trust,No
Http://opendatacommunities.org/id/metropolitan-district-council/leeds,Leeds City Council,30/06/2018,Children and Families,Social Care,Third Party Payments,Independent Fostering Agencies,509,18/06/2018,0618-00353,0,2850,R,Adolescent And Childrens Trust,No
Http://opendatacommunities.org/id/metropolitan-district-council/leeds,Leeds City Council,30/06/2018,Children and Families,Social Care,Third Party Payments,Independent Fostering Agencies,509,18/06/2018,0618-00354,0,936,R,Adolescent And Childrens Trust,No
Http://opendatacommunities.org/id/metropolitan-district-council/leeds,Leeds City Council,30/06/2018,Children and Families,Social Care,Third Party Payments,Independent Fostering Agencies,509,18/06/2018,0618-00355,0,3016,R,Adolescent And Childrens Trust,No
Http://opendatacommunities.org/id/metropolitan-district-council/leeds,Leeds City Council,30/06/2018,Children and Families,Social Care,Third Party Payments,Independent Fostering Agencies,509,18/06/2018,0618-00356,0,545.9,R,Adolescent And Childrens Trust,No
Http://opendatacommunities.org/id/metropolitan-district-council/leeds,Leeds City Council,30/06/2018,Children and Families,Social Care,Third Party Payments,Section 17,551,01/06/2018,0618-00357,0,142.86,R,REDACTED PERSONAL DATA,No
Http://opendatacommunities.org/id/metropolitan-district-council/leeds,Leeds City Council,30/06/2018,Children and Families,Social Care,Third Party Payments,Placement Support,550,06/06/2018,0618-00358,0,119.35,R,REDACTED PERSONAL DATA,No
Http://opendatacommunities.org/id/metropolitan-district-council/leeds,Leeds City Council,30/06/2018,Children and Families,Social Care,Third Party Payments,Placement Support,550,08/06/2018,0618-00359,0,142.86,R,REDACTED PERSONAL DATA,No
Http://opendatacommunities.org/id/metropolitan-district-council/leeds,Leeds City Council,30/06/2018,Children and Families,Social Care,Third Party Payments,Placement Support,550,15/06/2018,0618-00360,0,142.86,R,REDACTED PERSONAL DATA,No
Http://opendatacommunities.org/id/metropolitan-district-council/leeds,Leeds City Council,30/06/2018,Children and Families,Social Care,Third Party Payments,Placement Support,550,22/06/2018,0618-00361,0,142.86,R,REDACTED PERSONAL DATA,No
Http://opendatacommunities.org/id/metropolitan-district-council/leeds,Leeds City Council as Accountable Body,30/06/2018,Social Services Pooled Budgets,Jcs For People With Learning Disabilitie,Third Party Payments,Residential,580,14/06/2018,0618-00362,0,2609.36,R,Adrian House,No
Http://opendatacommunities.org/id/metropolitan-district-council/leeds,Leeds City Council,30/06/2018,Resources and Housing,Shared Services,Supplies and Services,Licences,266,06/06/2018,0618-00363,0,-241.09,R,Adt Fire And Security Plc,No
Http://opendatacommunities.org/id/metropolitan-district-council/leeds,Leeds City Council,30/06/2018,Resources and Housing,Shared Services,Supplies and Services,Licences,266,06/06/2018,0618-00364,0,-282.92,R,Adt Fire And Security Plc,No
Http://opendatacommunities.org/id/metropolitan-district-council/leeds,Leeds City Council,30/06/2018,Resources and Housing,Shared Services,Supplies and Services,Licences,266,06/06/2018,0618-00365,0,-147.54,R,Adt Fire And Security Plc,No
Http://opendatacommunities.org/id/metropolitan-district-council/leeds,Leeds City Council,30/06/2018,Resources and Housing,Shared Services,Supplies and Services,Licences,266,06/06/2018,0618-00366,0,-695.54,R,Adt Fire And Security Plc,No
Http://opendatacommunities.org/id/metropolitan-district-council/leeds,Leeds City Council,30/06/2018,Resources and Housing,Shared Services,Supplies and Services,Licences,266,06/06/2018,0618-00367,0,-149,R,Adt Fire And Security Plc,No
Http://opendatacommunities.org/id/metropolitan-district-council/leeds,Leeds City Council,30/06/2018,Resources and Housing,Shared Services,Supplies and Services,Licences,266,06/06/2018,0618-00368,0,-159,R,Adt Fire And Security Plc,No
Http://opendatacommunities.org/id/metropolitan-district-council/leeds,Leeds City Council,30/06/2018,Strategic Landlord,Housing Management,Premises,Premises Security Services,162,08/06/2018,0618-00369,0,985.37,R,Adt Fire And Security Plc,No
Http://opendatacommunities.org/id/metropolitan-district-council/leeds,Leeds City Council,30/06/2018,City Development,Libraries  Arts & Heritage,Supplies and Services,Other Hired And Contracted Services,265,27/06/2018,0618-00370,0,783.16,R,Adt Fire And Security Plc,No
Http://opendatacommunities.org/id/metropolitan-district-council/leeds,Leeds City Council,30/06/2018,City Development,Libraries  Arts & Heritage,Supplies and Services,External Audit Fees,261,01/06/2018,0618-00371,0,90,R,Advance Stocks Ltd,No
Http://opendatacommunities.org/id/metropolitan-district-council/leeds,Leeds City Council,30/06/2018,City Development,Libraries  Arts & Heritage,Supplies and Services,Other Hired And Contracted Services,265,01/06/2018,0618-00372,0,85,R,Advance Stocks Ltd,No
Http://opendatacommunities.org/id/metropolitan-district-council/leeds,Leeds City Council,30/06/2018,Children and Families,Social Care,Support Services,Legal Disbursements,411,08/06/2018,0618-00373,0,284.35,R,Advanced Child Care Assessments Ltd,No
Http://opendatacommunities.org/id/metropolitan-district-council/leeds,Leeds City Council,30/06/2018,Children and Families,Social Care,Support Services,Legal Disbursements,411,28/06/2018,0618-00374,0,200.95,R,Advanced Child Care Assessments Ltd,No
Http://opendatacommunities.org/id/metropolitan-district-council/leeds,Leeds City Council,30/06/2018,Children and Families,Social Care,Support Services,Legal Disbursements,411,28/06/2018,0618-00375,0,265.34,R,Advanced Child Care Assessments Ltd,No
Http://opendatacommunities.org/id/metropolitan-district-council/leeds,Leeds City Council as Accountable Body,30/06/2018,Social Services Pooled Budgets,Jcs For People With Learning Disabilitie,Third Party Payments,Day Centre,564,08/06/2018,0618-00376,0,454.2,R,Advitam Ltd,No
Http://opendatacommunities.org/id/metropolitan-district-council/leeds,Leeds City Council as Accountable Body,30/06/2018,Social Services Pooled Budgets,Jcs For People With Learning Disabilitie,Third Party Payments,Residential,580,27/06/2018,0618-00377,0,17782.08,R,Advitam Ltd,No
Http://opendatacommunities.org/id/metropolitan-district-council/leeds,Leeds City Council,30/06/2018,Adults and Health,Services For Older People - 65 And Over,Third Party Payments,Payments To Voluntary Organisations,561,06/06/2018,0618-00378,0,103916.67,R,Advonet,No
Http://opendatacommunities.org/id/metropolitan-district-council/leeds,Leeds City Council as Accountable Body,30/06/2018,Social Services Pooled Budgets,Jcs For People With Learning Disabilitie,Third Party Payments,Other Agency Services,561,28/06/2018,0618-00379,0,11372.3,R,Advonet,No
Http://opendatacommunities.org/id/metropolitan-district-council/leeds,Leeds City Council as Accountable Body,30/06/2018,Social Services Pooled Budgets,Jcs For People With Learning Disabilitie,Third Party Payments,Other Agency Services,561,28/06/2018,0618-00380,0,6567.66,R,Advonet,No
Http://opendatacommunities.org/id/metropolitan-district-council/leeds,Leeds City Council,30/06/2018,City Development,Highways,Capital,Other Costs,7,01/06/2018,0618-00381,0,30422.12,C,Aecom Limited,No
Http://opendatacommunities.org/id/metropolitan-district-council/leeds,Leeds City Council,30/06/2018,City Development,Highways,Capital,Construction,3,08/06/2018,0618-00382,0,6119.2,C,Aecom Limited,No
Http://opendatacommunities.org/id/metropolitan-district-council/leeds,Leeds City Council,30/06/2018,City Development,Highways,Capital,Other Costs,7,15/06/2018,0618-00383,0,20,C,Aecom Limited,No
Http://opendatacommunities.org/id/metropolitan-district-council/leeds,Leeds City Council,30/06/2018,City Development,Highways,Capital,Other Costs,7,20/06/2018,0618-00384,0,18520.19,C,Aecom Limited,No
Http://opendatacommunities.org/id/metropolitan-district-council/leeds,Leeds City Council,30/06/2018,Insurance,Insurance,Supplies and Services,Insurance Claims,248,19/06/2018,0618-00385,0,22500,R,Aequitas Legal Solicitors Limited,No
Http://opendatacommunities.org/id/metropolitan-district-council/leeds,Leeds City Council,30/06/2018,Communities and Environment,Customer Access,Supplies and Services,Other Hired And Contracted Services,265,04/06/2018,0618-00386,0,12.72,R,Afbedel Ltd,No
Http://opendatacommunities.org/id/metropolitan-district-council/leeds,Leeds City Council as Accountable Body,30/06/2018,Social Services Pooled Budgets,Jcs For People With Learning Disabilitie,Third Party Payments,Day Centre,564,01/06/2018,0618-00387,0,1260,R,Affinity Trust,No
Http://opendatacommunities.org/id/metropolitan-district-council/leeds,Leeds City Council as Accountable Body,30/06/2018,Social Services Pooled Budgets,Jcs For People With Learning Disabilitie,Third Party Payments,Day Centre,564,01/06/2018,0618-00388,0,1065.33,R,Affinity Trust,No
Http://opendatacommunities.org/id/metropolitan-district-council/leeds,Leeds City Council as Accountable Body,30/06/2018,Social Services Pooled Budgets,Jcs For People With Learning Disabilitie,Third Party Payments,Home Care,568,01/06/2018,0618-00389,0,967.5,R,Affinity Trust,No
Http://opendatacommunities.org/id/metropolitan-district-council/leeds,Leeds City Council as Accountable Body,30/06/2018,Social Services Pooled Budgets,Jcs For People With Learning Disabilitie,Third Party Payments,Home Care,568,01/06/2018,0618-00390,0,1365,R,Affinity Trust,No
Http://opendatacommunities.org/id/metropolitan-district-council/leeds,Leeds City Council as Accountable Body,30/06/2018,Social Services Pooled Budgets,Jcs For People With Learning Disabilitie,Third Party Payments,Home Care,568,01/06/2018,0618-00391,0,2272.8,R,Affinity Trust,No
Http://opendatacommunities.org/id/metropolitan-district-council/leeds,Leeds City Council as Accountable Body,30/06/2018,Social Services Pooled Budgets,Jcs For People With Learning Disabilitie,Third Party Payments,Home Care,568,01/06/2018,0618-00392,0,1519.59,R,Affinity Trust,No
Http://opendatacommunities.org/id/metropolitan-district-council/leeds,Leeds City Council as Accountable Body,30/06/2018,Social Services Pooled Budgets,Jcs For People With Learning Disabilitie,Third Party Payments,Home Care,568,01/06/2018,0618-00393,0,870.66,R,Affinity Trust,No
Http://opendatacommunities.org/id/metropolitan-district-council/leeds,Leeds City Council as Accountable Body,30/06/2018,Social Services Pooled Budgets,Jcs For People With Learning Disabilitie,Third Party Payments,Day Centre,564,01/06/2018,0618-00394,0,938.56,R,Affinity Trust,No
Http://opendatacommunities.org/id/metropolitan-district-council/leeds,Leeds City Council as Accountable Body,30/06/2018,Social Services Pooled Budgets,Jcs For People With Learning Disabilitie,Third Party Payments,Home Care,568,01/06/2018,0618-00395,0,394.29,R,Affinity Trust,No
Http://opendatacommunities.org/id/metropolitan-district-council/leeds,Leeds City Council as Accountable Body,30/06/2018,Social Services Pooled Budgets,Jcs For People With Learning Disabilitie,Third Party Payments,Home Care,568,01/06/2018,0618-00396,0,703.92,R,Affinity Trust,No
Http://opendatacommunities.org/id/metropolitan-district-council/leeds,Leeds City Council as Accountable Body,30/06/2018,Social Services Pooled Budgets,Jcs For People With Learning Disabilitie,Third Party Payments,Home Care,568,01/06/2018,0618-00397,0,1083.88,R,Affinity Trust,No
Http://opendatacommunities.org/id/metropolitan-district-council/leeds,Leeds City Council as Accountable Body,30/06/2018,Social Services Pooled Budgets,Jcs For People With Learning Disabilitie,Third Party Payments,Home Care,568,01/06/2018,0618-00398,0,921.8,R,Affinity Trust,No
Http://opendatacommunities.org/id/metropolitan-district-council/leeds,Leeds City Council as Accountable Body,30/06/2018,Social Services Pooled Budgets,Jcs For People With Learning Disabilitie,Third Party Payments,Home Care,568,01/06/2018,0618-00399,0,360,R,Affinity Trust,No
Http://opendatacommunities.org/id/metropolitan-district-council/leeds,Leeds City Council as Accountable Body,30/06/2018,Social Services Pooled Budgets,Jcs For People With Learning Disabilitie,Third Party Payments,Day Centre,564,01/06/2018,0618-00400,0,601.92,R,Affinity Trust,No
Http://opendatacommunities.org/id/metropolitan-district-council/leeds,Leeds City Council as Accountable Body,30/06/2018,Social Services Pooled Budgets,Jcs For People With Learning Disabilitie,Third Party Payments,Day Centre,564,01/06/2018,0618-00401,0,1025.28,R,Affinity Trust,No
Http://opendatacommunities.org/id/metropolitan-district-council/leeds,Leeds City Council as Accountable Body,30/06/2018,Social Services Pooled Budgets,Jcs For People With Learning Disabilitie,Third Party Payments,Day Centre,564,01/06/2018,0618-00402,0,1786.95,R,Affinity Trust,No
Http://opendatacommunities.org/id/metropolitan-district-council/leeds,Leeds City Council as Accountable Body,30/06/2018,Social Services Pooled Budgets,Jcs For People With Learning Disabilitie,Third Party Payments,Home Care,568,04/06/2018,0618-00403,0,3274.46,R,Affinity Trust,No
Http://opendatacommunities.org/id/metropolitan-district-council/leeds,Leeds City Council,30/06/2018,Adults and Health,Services For Older People Under 65 P/Dis,Third Party Payments,Home Care,568,04/06/2018,0618-00404,0,319.6,R,Affinity Trust,No
Http://opendatacommunities.org/id/metropolitan-district-council/leeds,Leeds City Council as Accountable Body,30/06/2018,Social Services Pooled Budgets,Jcs For People With Learning Disabilitie,Third Party Payments,Home Care,568,04/06/2018,0618-00405,0,1086.64,R,Affinity Trust,No
Http://opendatacommunities.org/id/metropolitan-district-council/leeds,Leeds City Council as Accountable Body,30/06/2018,Social Services Pooled Budgets,Jcs For People With Learning Disabilitie,Third Party Payments,Day Centre,564,05/06/2018,0618-00406,0,14162.33,R,Affinity Trust,No
Http://opendatacommunities.org/id/metropolitan-district-council/leeds,Leeds City Council as Accountable Body,30/06/2018,Social Services Pooled Budgets,Jcs For People With Learning Disabilitie,Third Party Payments,Home Care,568,06/06/2018,0618-00407,0,1441.41,R,Affinity Trust,No
Http://opendatacommunities.org/id/metropolitan-district-council/leeds,Leeds City Council as Accountable Body,30/06/2018,Social Services Pooled Budgets,Jcs For People With Learning Disabilitie,Third Party Payments,Home Care,568,07/06/2018,0618-00408,0,2460.92,R,Affinity Trust,No
Http://opendatacommunities.org/id/metropolitan-district-council/leeds,Leeds City Council as Accountable Body,30/06/2018,Social Services Pooled Budgets,Jcs For People With Learning Disabilitie,Third Party Payments,Home Care,568,07/06/2018,0618-00409,0,1086.64,R,Affinity Trust,No
Http://opendatacommunities.org/id/metropolitan-district-council/leeds,Leeds City Council as Accountable Body,30/06/2018,Social Services Pooled Budgets,Jcs For People With Learning Disabilitie,Third Party Payments,Home Care,568,07/06/2018,0618-00410,0,2948.31,R,Affinity Trust,No
Http://opendatacommunities.org/id/metropolitan-district-council/leeds,Leeds City Council as Accountable Body,30/06/2018,Social Services Pooled Budgets,Jcs For People With Learning Disabilitie,Third Party Payments,Day Centre,564,07/06/2018,0618-00411,0,938.56,R,Affinity Trust,No
Http://opendatacommunities.org/id/metropolitan-district-council/leeds,Leeds City Council as Accountable Body,30/06/2018,Social Services Pooled Budgets,Jcs For People With Learning Disabilitie,Third Party Payments,Day Centre,564,07/06/2018,0618-00412,0,3290.76,R,Affinity Trust,No
Http://opendatacommunities.org/id/metropolitan-district-council/leeds,Leeds City Council as Accountable Body,30/06/2018,Social Services Pooled Budgets,Jcs For People With Learning Disabilitie,Third Party Payments,Day Centre,564,07/06/2018,0618-00413,0,2229.08,R,Affinity Trust,No
Http://opendatacommunities.org/id/metropolitan-district-council/leeds,Leeds City Council as Accountable Body,30/06/2018,Social Services Pooled Budgets,Jcs For People With Learning Disabilitie,Third Party Payments,Home Care,568,07/06/2018,0618-00414,0,2397,R,Affinity Trust,No
Http://opendatacommunities.org/id/metropolitan-district-council/leeds,Leeds City Council as Accountable Body,30/06/2018,Social Services Pooled Budgets,Jcs For People With Learning Disabilitie,Third Party Payments,Home Care,568,07/06/2018,0618-00415,0,2852.43,R,Affinity Trust,No
Http://opendatacommunities.org/id/metropolitan-district-council/leeds,Leeds City Council as Accountable Body,30/06/2018,Social Services Pooled Budgets,Jcs For People With Learning Disabilitie,Third Party Payments,Home Care,568,07/06/2018,0618-00416,0,617.31,R,Affinity Trust,No
Http://opendatacommunities.org/id/metropolitan-district-council/leeds,Leeds City Council as Accountable Body,30/06/2018,Social Services Pooled Budgets,Jcs For People With Learning Disabilitie,Third Party Payments,Home Care,568,07/06/2018,0618-00417,0,3102.12,R,Affinity Trust,No
Http://opendatacommunities.org/id/metropolitan-district-council/leeds,Leeds City Council as Accountable Body,30/06/2018,Social Services Pooled Budgets,Jcs For People With Learning Disabilitie,Third Party Payments,Day Centre,564,07/06/2018,0618-00418,0,3385.08,R,Affinity Trust,No
Http://opendatacommunities.org/id/metropolitan-district-council/leeds,Leeds City Council as Accountable Body,30/06/2018,Social Services Pooled Budgets,Jcs For People With Learning Disabilitie,Third Party Payments,Home Care,568,07/06/2018,0618-00419,0,1561.32,R,Affinity Trust,No
Http://opendatacommunities.org/id/metropolitan-district-council/leeds,Leeds City Council as Accountable Body,30/06/2018,Social Services Pooled Budgets,Jcs For People With Learning Disabilitie,Third Party Payments,Day Centre,564,07/06/2018,0618-00420,0,17538,R,Affinity Trust,No
Http://opendatacommunities.org/id/metropolitan-district-council/leeds,Leeds City Council,30/06/2018,Adults and Health,Services For Adults Under 65 Mental/Dis,Third Party Payments,Home Care,568,08/06/2018,0618-00421,0,191.76,R,Affinity Trust,No
Http://opendatacommunities.org/id/metropolitan-district-council/leeds,Leeds City Council,30/06/2018,Adults and Health,Services For Older People - 65 And Over,Third Party Payments,Home Care,568,08/06/2018,0618-00422,0,1076.48,R,Affinity Trust,No
Http://opendatacommunities.org/id/metropolitan-district-council/leeds,Leeds City Council,30/06/2018,Adults and Health,Services For Older People Under 65 P/Dis,Third Party Payments,Home Care,568,08/06/2018,0618-00423,0,1957.55,R,Affinity Trust,No
Http://opendatacommunities.org/id/metropolitan-district-council/leeds,Leeds City Council as Accountable Body,30/06/2018,Social Services Pooled Budgets,Jcs For People With Learning Disabilitie,Third Party Payments,Home Care,568,12/06/2018,0618-00424,0,1035.99,R,Affinity Trust,No
Http://opendatacommunities.org/id/metropolitan-district-council/leeds,Leeds City Council,30/06/2018,Adults and Health,Services For Older People Under 65 P/Dis,Third Party Payments,Home Care,568,12/06/2018,0618-00425,0,134.56,R,Affinity Trust,No
Http://opendatacommunities.org/id/metropolitan-district-council/leeds,Leeds City Council,30/06/2018,Adults and Health,Services For Older People Under 65 P/Dis,Third Party Payments,Home Care,568,12/06/2018,0618-00426,0,302.76,R,Affinity Trust,No
Http://opendatacommunities.org/id/metropolitan-district-council/leeds,Leeds City Council as Accountable Body,30/06/2018,Social Services Pooled Budgets,Jcs For People With Learning Disabilitie,Third Party Payments,Home Care,568,14/06/2018,0618-00427,0,1199.31,R,Affinity Trust,No
Http://opendatacommunities.org/id/metropolitan-district-council/leeds,Leeds City Council as Accountable Body,30/06/2018,Social Services Pooled Budgets,Jcs For People With Learning Disabilitie,Third Party Payments,Home Care,568,14/06/2018,0618-00428,0,1680.66,R,Affinity Trust,No
Http://opendatacommunities.org/id/metropolitan-district-council/leeds,Leeds City Council as Accountable Body,30/06/2018,Social Services Pooled Budgets,Jcs For People With Learning Disabilitie,Third Party Payments,Day Centre,564,14/06/2018,0618-00429,0,312.48,R,Affinity Trust,No
Http://opendatacommunities.org/id/metropolitan-district-council/leeds,Leeds City Council as Accountable Body,30/06/2018,Social Services Pooled Budgets,Jcs For People With Learning Disabilitie,Third Party Payments,Day Centre,564,22/06/2018,0618-00430,0,1350,R,Affinity Trust,No
Http://opendatacommunities.org/id/metropolitan-district-council/leeds,Leeds City Council as Accountable Body,30/06/2018,Social Services Pooled Budgets,Jcs For People With Learning Disabilitie,Third Party Payments,Day Centre,564,22/06/2018,0618-00431,0,1035.99,R,Affinity Trust,No
Http://opendatacommunities.org/id/metropolitan-district-council/leeds,Leeds City Council as Accountable Body,30/06/2018,Social Services Pooled Budgets,Jcs For People With Learning Disabilitie,Third Party Payments,Home Care,568,22/06/2018,0618-00432,0,1050,R,Affinity Trust,No
Http://opendatacommunities.org/id/metropolitan-district-council/leeds,Leeds City Council as Accountable Body,30/06/2018,Social Services Pooled Budgets,Jcs For People With Learning Disabilitie,Third Party Payments,Home Care,568,22/06/2018,0618-00433,0,602.64,R,Affinity Trust,No
Http://opendatacommunities.org/id/metropolitan-district-council/leeds,Leeds City Council as Accountable Body,30/06/2018,Social Services Pooled Budgets,Jcs For People With Learning Disabilitie,Third Party Payments,Home Care,568,22/06/2018,0618-00434,0,1365,R,Affinity Trust,No
Http://opendatacommunities.org/id/metropolitan-district-council/leeds,Leeds City Council as Accountable Body,30/06/2018,Social Services Pooled Budgets,Jcs For People With Learning Disabilitie,Third Party Payments,Home Care,568,22/06/2018,0618-00435,0,2512.8,R,Affinity Trust,No
Http://opendatacommunities.org/id/metropolitan-district-council/leeds,Leeds City Council as Accountable Body,30/06/2018,Social Services Pooled Budgets,Jcs For People With Learning Disabilitie,Third Party Payments,Home Care,568,22/06/2018,0618-00436,0,990,R,Affinity Trust,No
Http://opendatacommunities.org/id/metropolitan-district-council/leeds,Leeds City Council as Accountable Body,30/06/2018,Social Services Pooled Budgets,Jcs For People With Learning Disabilitie,Third Party Payments,Home Care,568,22/06/2018,0618-00437,0,3274.46,R,Affinity Trust,No
Http://opendatacommunities.org/id/metropolitan-district-council/leeds,Leeds City Council as Accountable Body,30/06/2018,Social Services Pooled Budgets,Jcs For People With Learning Disabilitie,Third Party Payments,Day Centre,564,22/06/2018,0618-00438,0,838,R,Affinity Trust,No
Http://opendatacommunities.org/id/metropolitan-district-council/leeds,Leeds City Council as Accountable Body,30/06/2018,Social Services Pooled Budgets,Jcs For People With Learning Disabilitie,Third Party Payments,Home Care,568,22/06/2018,0618-00439,0,454.95,R,Affinity Trust,No
Http://opendatacommunities.org/id/metropolitan-district-council/leeds,Leeds City Council as Accountable Body,30/06/2018,Social Services Pooled Budgets,Jcs For People With Learning Disabilitie,Third Party Payments,Day Centre,564,22/06/2018,0618-00440,0,2880.08,R,Affinity Trust,No
Http://opendatacommunities.org/id/metropolitan-district-council/leeds,Leeds City Council as Accountable Body,30/06/2018,Social Services Pooled Budgets,Jcs For People With Learning Disabilitie,Third Party Payments,Home Care,568,22/06/2018,0618-00441,0,754.2,R,Affinity Trust,No
Http://opendatacommunities.org/id/metropolitan-district-council/leeds,Leeds City Council as Accountable Body,30/06/2018,Social Services Pooled Budgets,Jcs For People With Learning Disabilitie,Third Party Payments,Home Care,568,22/06/2018,0618-00442,0,1247.75,R,Affinity Trust,No
Http://opendatacommunities.org/id/metropolitan-district-council/leeds,Leeds City Council as Accountable Body,30/06/2018,Social Services Pooled Budgets,Jcs For People With Learning Disabilitie,Third Party Payments,Home Care,568,22/06/2018,0618-00443,0,1201.32,R,Affinity Trust,No
Http://opendatacommunities.org/id/metropolitan-district-council/leeds,Leeds City Council as Accountable Body,30/06/2018,Social Services Pooled Budgets,Jcs For People With Learning Disabilitie,Third Party Payments,Home Care,568,22/06/2018,0618-00444,0,1005.6,R,Affinity Trust,No
Http://opendatacommunities.org/id/metropolitan-district-council/leeds,Leeds City Council as Accountable Body,30/06/2018,Social Services Pooled Budgets,Jcs For People With Learning Disabilitie,Third Party Payments,Home Care,568,22/06/2018,0618-00445,0,360,R,Affinity Trust,No
Http://opendatacommunities.org/id/metropolitan-district-council/leeds,Leeds City Council as Accountable Body,30/06/2018,Social Services Pooled Budgets,Jcs For People With Learning Disabilitie,Third Party Payments,Day Centre,564,22/06/2018,0618-00446,0,648.95,R,Affinity Trust,No
Http://opendatacommunities.org/id/metropolitan-district-council/leeds,Leeds City Council as Accountable Body,30/06/2018,Social Services Pooled Budgets,Jcs For People With Learning Disabilitie,Third Party Payments,Day Centre,564,22/06/2018,0618-00447,0,2229.08,R,Affinity Trust,No
Http://opendatacommunities.org/id/metropolitan-district-council/leeds,Leeds City Council as Accountable Body,30/06/2018,Social Services Pooled Budgets,Jcs For People With Learning Disabilitie,Third Party Payments,Day Centre,564,22/06/2018,0618-00448,0,1071.27,R,Affinity Trust,No
Http://opendatacommunities.org/id/metropolitan-district-council/leeds,Leeds City Council as Accountable Body,30/06/2018,Social Services Pooled Budgets,Jcs For People With Learning Disabilitie,Third Party Payments,Day Centre,564,22/06/2018,0618-00449,0,1909.22,R,Affinity Trust,No
Http://opendatacommunities.org/id/metropolitan-district-council/leeds,Leeds City Council as Accountable Body,30/06/2018,Social Services Pooled Budgets,Jcs For People With Learning Disabilitie,Third Party Payments,Home Care,568,22/06/2018,0618-00450,0,1463.25,R,Affinity Trust,No
Http://opendatacommunities.org/id/metropolitan-district-council/leeds,Leeds City Council as Accountable Body,30/06/2018,Social Services Pooled Budgets,Jcs For People With Learning Disabilitie,Third Party Payments,Home Care,568,25/06/2018,0618-00451,0,1248.24,R,Affinity Trust,No
Http://opendatacommunities.org/id/metropolitan-district-council/leeds,Leeds City Council,30/06/2018,Adults and Health,Services For Older People Under 65 P/Dis,Third Party Payments,Home Care,568,25/06/2018,0618-00452,0,319.6,R,Affinity Trust,No
Http://opendatacommunities.org/id/metropolitan-district-council/leeds,Leeds City Council as Accountable Body,30/06/2018,Social Services Pooled Budgets,Jcs For People With Learning Disabilitie,Third Party Payments,Day Centre,564,28/06/2018,0618-00453,0,2111.76,R,Affinity Trust,No
Http://opendatacommunities.org/id/metropolitan-district-council/leeds,Leeds City Council as Accountable Body,30/06/2018,Social Services Pooled Budgets,Jcs For People With Learning Disabilitie,Third Party Payments,Day Centre,564,29/06/2018,0618-00454,0,-938.56,R,Affinity Trust,No
Http://opendatacommunities.org/id/metropolitan-district-council/leeds,Leeds City Council as Accountable Body,30/06/2018,Social Services Pooled Budgets,Jcs For People With Learning Disabilitie,Third Party Payments,Day Centre,564,29/06/2018,0618-00455,0,191.76,R,Affinity Trust,No
Http://opendatacommunities.org/id/metropolitan-district-council/leeds,Leeds City Council,30/06/2018,Adults and Health,Services For Adults Under 65 Mental/Dis,Third Party Payments,Home Care,568,29/06/2018,0618-00456,0,191.76,R,Affinity Trust,No
Http://opendatacommunities.org/id/metropolitan-district-council/leeds,Leeds City Council,30/06/2018,Adults and Health,Services For Older People - 65 And Over,Third Party Payments,Home Care,568,29/06/2018,0618-00457,0,1076.48,R,Affinity Trust,No
Http://opendatacommunities.org/id/metropolitan-district-council/leeds,Leeds City Council,30/06/2018,Adults and Health,Services For Older People Under 65 P/Dis,Third Party Payments,Home Care,568,29/06/2018,0618-00458,0,1046.69,R,Affinity Trust,No
Http://opendatacommunities.org/id/metropolitan-district-council/leeds,Leeds City Council as Accountable Body,30/06/2018,Social Services Pooled Budgets,Jcs For People With Learning Disabilitie,Third Party Payments,Sheltered Accommodation,569,27/06/2018,0618-00459,0,114145.64,R,Affinity Trust North Divisional Office,No
Http://opendatacommunities.org/id/metropolitan-district-council/leeds,Leeds City Council,30/06/2018,Communities and Environment,Parks and Countryside,Transport,Hire Of Movable Plant & Machinery,315,08/06/2018,0618-00460,0,950,R,Afi-Uplift Limited,No
Http://opendatacommunities.org/id/metropolitan-district-council/leeds,Leeds City Council,30/06/2018,Communities and Environment,Parks and Countryside,Transport,Hire Of Movable Plant & Machinery,315,14/06/2018,0618-00461,0,950,R,Afi-Uplift Limited,No
Http://opendatacommunities.org/id/metropolitan-district-council/leeds,Leeds City Council,30/06/2018,Communities and Environment,Parks and Countryside,Transport,Hire Of Movable Plant & Machinery,315,19/06/2018,0618-00462,0,950,R,Afi-Uplift Limited,No
Http://opendatacommunities.org/id/metropolitan-district-council/leeds,Leeds City Council,30/06/2018,Communities and Environment,Parks and Countryside,Transport,Hire Of Movable Plant & Machinery,315,26/06/2018,0618-00463,0,950,R,Afi-Uplift Limited,No
Http://opendatacommunities.org/id/metropolitan-district-council/leeds,Leeds City Council,30/06/2018,Adults and Health,Services For Older People - 65 And Over,Third Party Payments,Payments To Voluntary Organisations,561,29/06/2018,0618-00464,0,10599.75,R,Age Uk Leeds,No
Http://opendatacommunities.org/id/metropolitan-district-council/leeds,Leeds City Council,30/06/2018,Resources and Housing,Human Resources,Employees,Occupational Health,85,07/06/2018,0618-00465,0,50,R,Ai Lyn Tan,No
Http://opendatacommunities.org/id/metropolitan-district-council/leeds,Leeds City Council,30/06/2018,Children and Families,Learning,Supplies and Services,Teaching Materials,202,01/06/2018,0618-00466,0,38.52,R,Aid Training & Operations Ltd,No
Http://opendatacommunities.org/id/metropolitan-district-council/leeds,Leeds City Council as Accountable Body,30/06/2018,Social Services Pooled Budgets,Leeds Community Equip Store Pooled Budgt,Supplies and Services,Other Equipment,203,01/06/2018,0618-00467,0,102.6,R,Aidapt Bathrooms Ltd,No
Http://opendatacommunities.org/id/metropolitan-district-council/leeds,Leeds City Council as Accountable Body,30/06/2018,Social Services Pooled Budgets,Leeds Community Equip Store Pooled Budgt,Supplies and Services,Other Equipment,203,13/06/2018,0618-00468,0,799.6,R,Aidapt Bathrooms Ltd,No
Http://opendatacommunities.org/id/metropolitan-district-council/leeds,Leeds City Council as Accountable Body,30/06/2018,Social Services Pooled Budgets,Leeds Community Equip Store Pooled Budgt,Supplies and Services,Other Equipment,203,13/06/2018,0618-00469,0,806.9,R,Aidapt Bathrooms Ltd,No
Http://opendatacommunities.org/id/metropolitan-district-council/leeds,Leeds City Council as Accountable Body,30/06/2018,Social Services Pooled Budgets,Leeds Community Equip Store Pooled Budgt,Supplies and Services,Other Equipment,203,13/06/2018,0618-00470,0,74.4,R,Aidapt Bathrooms Ltd,No
Http://opendatacommunities.org/id/metropolitan-district-council/leeds,Leeds City Council as Accountable Body,30/06/2018,Social Services Pooled Budgets,Leeds Community Equip Store Pooled Budgt,Supplies and Services,Other Equipment,203,20/06/2018,0618-00471,0,2109.1,R,Aidapt Bathrooms Ltd,No
Http://opendatacommunities.org/id/metropolitan-district-council/leeds,Leeds City Council as Accountable Body,30/06/2018,Social Services Pooled Budgets,Leeds Community Equip Store Pooled Budgt,Supplies and Services,Other Equipment,203,22/06/2018,0618-00472,0,999.25,R,Aidapt Bathrooms Ltd,No
Http://opendatacommunities.org/id/metropolitan-district-council/leeds,Leeds City Council as Accountable Body,30/06/2018,Social Services Pooled Budgets,Leeds Community Equip Store Pooled Budgt,Supplies and Services,Other Equipment,203,22/06/2018,0618-00473,0,102.6,R,Aidapt Bathrooms Ltd,No
Http://opendatacommunities.org/id/metropolitan-district-council/leeds,Leeds City Council as Accountable Body,30/06/2018,Social Services Pooled Budgets,Leeds Community Equip Store Pooled Budgt,Supplies and Services,Other Equipment,203,22/06/2018,0618-00474,0,632.2,R,Aidapt Bathrooms Ltd,No
Http://opendatacommunities.org/id/metropolitan-district-council/leeds,Leeds City Council as Accountable Body,30/06/2018,Social Services Pooled Budgets,Leeds Community Equip Store Pooled Budgt,Supplies and Services,Other Equipment,203,22/06/2018,0618-00475,0,1099.4,R,Aidapt Bathrooms Ltd,No
Http://opendatacommunities.org/id/metropolitan-district-council/leeds,Leeds City Council as Accountable Body,30/06/2018,Social Services Pooled Budgets,Leeds Community Equip Store Pooled Budgt,Supplies and Services,Other Equipment,203,29/06/2018,0618-00476,0,102.6,R,Aidapt Bathrooms Ltd,No
Http://opendatacommunities.org/id/metropolitan-district-council/leeds,Leeds City Council as Accountable Body,30/06/2018,Social Services Pooled Budgets,Jcs For People With Learning Disabilitie,Third Party Payments,Day Centre,564,01/06/2018,0618-00477,0,57.59,R,Aid-Call Ltd,No
Http://opendatacommunities.org/id/metropolitan-district-council/leeds,Leeds City Council,30/06/2018,Resources and Housing,Leeds Building Services,Supplies and Services,Operational Materials,205,01/06/2018,0618-00478,0,33,R,Air Conditioning Accessories,No
Http://opendatacommunities.org/id/metropolitan-district-council/leeds,Leeds City Council,30/06/2018,Resources and Housing,Leeds Building Services,Supplies and Services,Operational Materials,205,11/06/2018,0618-00479,0,35.14,R,Air Conditioning Accessories,No
Http://opendatacommunities.org/id/metropolitan-district-council/leeds,Leeds City Council,30/06/2018,Resources and Housing,Leeds Building Services,Supplies and Services,Operational Materials,205,15/06/2018,0618-00480,0,154.7,R,Air Conditioning Accessories,No
Http://opendatacommunities.org/id/metropolitan-district-council/leeds,Leeds City Council,30/06/2018,Resources and Housing,Leeds Building Services,Supplies and Services,Operational Materials,205,15/06/2018,0618-00481,0,674.7,R,Air Conditioning Accessories,No
Http://opendatacommunities.org/id/metropolitan-district-council/leeds,Leeds City Council,30/06/2018,Resources and Housing,Commercial Services  ,Supplies and Services,Operational Materials,205,14/05/2018,0618-00482,0,60,R,Air Force Pneumati,Yes
Http://opendatacommunities.org/id/metropolitan-district-council/leeds,Leeds City Council,30/06/2018,Resources and Housing,Commercial Services  ,Supplies and Services,Operational Materials,205,14/05/2018,0618-00483,0,94.25,R,Air Force Pneumati,Yes
Http://opendatacommunities.org/id/metropolitan-district-council/leeds,Leeds City Council,30/06/2018,Resources and Housing,Leeds Building Services,Supplies and Services,Operational Materials,205,01/06/2018,0618-00484,0,189.71,R,Air Liquide Uk,No
Http://opendatacommunities.org/id/metropolitan-district-council/leeds,Leeds City Council,30/06/2018,Communities and Environment,Environmental Health,Supplies and Services,Other Hired And Contracted Services,265,01/06/2018,0618-00485,0,9.86,R,Air Liquide Uk,No
Http://opendatacommunities.org/id/metropolitan-district-council/leeds,Leeds City Council,30/06/2018,Communities and Environment,Environmental Health,Supplies and Services,Other Hired And Contracted Services,265,01/06/2018,0618-00486,0,15.03,R,Air Liquide Uk,No
Http://opendatacommunities.org/id/metropolitan-district-council/leeds,Leeds City Council,30/06/2018,Communities and Environment,Environmental Health,Supplies and Services,Other Hired And Contracted Services,265,01/06/2018,0618-00487,0,69.02,R,Air Liquide Uk,No
Http://opendatacommunities.org/id/metropolitan-district-council/leeds,Leeds City Council,30/06/2018,Communities and Environment,Environmental Health,Supplies and Services,Other Hired And Contracted Services,265,15/06/2018,0618-00488,0,9.86,R,Air Liquide Uk,No
Http://opendatacommunities.org/id/metropolitan-district-council/leeds,Leeds City Council,30/06/2018,City Development,Libraries  Arts & Heritage,Supplies and Services,Other Hired And Contracted Services,265,22/06/2018,0618-00489,0,144.76,R,Aire Valley Gas Ltd,No
Http://opendatacommunities.org/id/metropolitan-district-council/leeds,Leeds City Council,30/06/2018,Communities and Environment,Parks and Countryside,Supplies and Services,Other Hired And Contracted Services,265,20/06/2018,0618-00490,0,335,R,Aire Valley Tree Services Ltd,No
Http://opendatacommunities.org/id/metropolitan-district-council/leeds,Leeds City Council,30/06/2018,Adults and Health,Services For Older People - 65 And Over,Third Party Payments,Residential Care Dementia,571,27/06/2018,0618-00491,0,53472.88,R,Aire View Residential Home,No
Http://opendatacommunities.org/id/metropolitan-district-council/leeds,Leeds City Council,30/06/2018,Adults and Health,Services For Older People - 65 And Over,Third Party Payments,Residential,580,27/06/2018,0618-00492,0,20846.71,R,Aire View Residential Home,No
Http://opendatacommunities.org/id/metropolitan-district-council/leeds,Leeds City Council,30/06/2018,Adults and Health,Public Health,Third Party Payments,Public Health Commissioned Services,526,01/06/2018,0618-00493,0,1018.17,R,Aireborough Family Practice,No
Http://opendatacommunities.org/id/metropolitan-district-council/leeds,Leeds City Council,30/06/2018,Adults and Health,Services For Older People - 65 And Over,Third Party Payments,Residential Care Dementia,571,27/06/2018,0618-00494,0,4695.48,R,Airedale Care Home,No
Http://opendatacommunities.org/id/metropolitan-district-council/leeds,Leeds City Council,30/06/2018,Adults and Health,Services For Older People - 65 And Over,Third Party Payments,Residential,580,27/06/2018,0618-00495,0,10779.99,R,Airedale Care Home,No
Http://opendatacommunities.org/id/metropolitan-district-council/leeds,Leeds City Council,30/06/2018,Children and Families,Social Care,Supplies and Services,Operational Furniture And Equipment,203,13/06/2018,0618-00496,0,198,R,Airedale Catering Equipment Ltd,No
Http://opendatacommunities.org/id/metropolitan-district-council/leeds,Leeds City Council,30/06/2018,Resources and Housing,Commercial Services,Supplies and Services,Operational Furniture And Equipment,203,15/06/2018,0618-00497,0,1390.53,R,Airedale Catering Equipment Ltd,No
Http://opendatacommunities.org/id/metropolitan-district-council/leeds,Leeds City Council,30/06/2018,Resources and Housing,Commercial Services,Supplies and Services,Operational Furniture And Equipment,203,27/06/2018,0618-00498,0,1111,R,Airedale Catering Equipment Ltd,No
Http://opendatacommunities.org/id/metropolitan-district-council/leeds,Leeds City Council,30/06/2018,Adults and Health,Assessment And Care Management,Employees,Training Costs,71,01/06/2018,0618-00499,0,120,R,Airedale Community Trading (Act) Ltd,No
Http://opendatacommunities.org/id/metropolitan-district-council/leeds,Leeds City Council,30/06/2018,Adults and Health,Assessment And Care Management,Employees,Training Costs,71,29/06/2018,0618-00500,0,150,R,Airedale Community Trading (Act) Ltd,No
Http://opendatacommunities.org/id/metropolitan-district-council/leeds,Leeds City Council,30/06/2018,Communities and Environment,Environmental Health,Supplies and Services,Other Hired And Contracted Services,265,01/06/2018,0618-00501,0,1175.01,R,Aireworth Vets,No
Http://opendatacommunities.org/id/metropolitan-district-council/leeds,Leeds City Council,30/06/2018,Resources and Housing,Commercial Services,Supplies and Services,Other Hired And Contracted Services,265,29/06/2018,0618-00502,0,225,R,Air-Weigh Europe Limited,No
Http://opendatacommunities.org/id/metropolitan-district-council/leeds,Leeds City Council,30/06/2018,Adults and Health,Services For Adults Under 65 Mental/Dis,Third Party Payments,Services Provided By Other NHS Bodies,522,01/06/2018,0618-00503,0,175,R,Ait Mitra,No
Http://opendatacommunities.org/id/metropolitan-district-council/leeds,Leeds City Council,30/06/2018,Adults and Health,Services For Adults Under 65 Mental/Dis,Third Party Payments,Services Provided By Other NHS Bodies,522,01/06/2018,0618-00504,0,175,R,Ait Mitra,No
Http://opendatacommunities.org/id/metropolitan-district-council/leeds,Leeds City Council,30/06/2018,Adults and Health,Services For Adults Under 65 Mental/Dis,Third Party Payments,Services Provided By Other NHS Bodies,522,01/06/2018,0618-00505,0,175,R,Ait Mitra,No
Http://opendatacommunities.org/id/metropolitan-district-council/leeds,Leeds City Council,30/06/2018,Adults and Health,Services For Adults Under 65 Mental/Dis,Third Party Payments,Services Provided By Other NHS Bodies,522,01/06/2018,0618-00506,0,175,R,Ait Mitra,No
Http://opendatacommunities.org/id/metropolitan-district-council/leeds,Leeds City Council,30/06/2018,Adults and Health,Services For Adults Under 65 Mental/Dis,Third Party Payments,Services Provided By Other NHS Bodies,522,01/06/2018,0618-00507,0,175,R,Ait Mitra,No
Http://opendatacommunities.org/id/metropolitan-district-council/leeds,Leeds City Council,30/06/2018,Adults and Health,Services For Adults Under 65 Mental/Dis,Third Party Payments,Services Provided By Other NHS Bodies,522,07/06/2018,0618-00508,0,175,R,Ait Mitra,No
Http://opendatacommunities.org/id/metropolitan-district-council/leeds,Leeds City Council,30/06/2018,Adults and Health,Services For Adults Under 65 Mental/Dis,Third Party Payments,Services Provided By Other NHS Bodies,522,07/06/2018,0618-00509,0,175,R,Ait Mitra,No
Http://opendatacommunities.org/id/metropolitan-district-council/leeds,Leeds City Council,30/06/2018,Adults and Health,Services For Adults Under 65 Mental/Dis,Third Party Payments,Services Provided By Other NHS Bodies,522,07/06/2018,0618-00510,0,230.9,R,Ait Mitra,No
Http://opendatacommunities.org/id/metropolitan-district-council/leeds,Leeds City Council,30/06/2018,Adults and Health,Services For Adults Under 65 Mental/Dis,Third Party Payments,Services Provided By Other NHS Bodies,522,08/06/2018,0618-00511,0,175,R,Ait Mitra,No
Http://opendatacommunities.org/id/metropolitan-district-council/leeds,Leeds City Council as Accountable Body,30/06/2018,Social Services Pooled Budgets,Jcs For People With Learning Disabilitie,Third Party Payments,Residential,580,27/06/2018,0618-00512,0,6173.24,R,Aitch Care Homes,No
Http://opendatacommunities.org/id/metropolitan-district-council/leeds,Leeds City Council,30/06/2018,Resources and Housing,Commercial Services,Supplies and Services,Other Hired And Contracted Services,265,18/06/2018,0618-00513,0,450,R,REDACTED PERSONAL DATA,No
Http://opendatacommunities.org/id/metropolitan-district-council/leeds,Leeds City Council,30/06/2018,Resources and Housing,Commercial Services,Supplies and Services,Other Hired And Contracted Services,265,18/06/2018,0618-00514,0,600,R,REDACTED PERSONAL DATA,No
Http://opendatacommunities.org/id/metropolitan-district-council/leeds,Leeds City Council,30/06/2018,Adults and Health,Services For Older People - 65 And Over,Third Party Payments,Home Care,568,01/06/2018,0618-00515,0,7059.05,R,Aj Community Care Ltd,No
Http://opendatacommunities.org/id/metropolitan-district-council/leeds,Leeds City Council,30/06/2018,Adults and Health,Services For Older People - 65 And Over,Third Party Payments,Home Care,568,01/06/2018,0618-00516,0,1023.39,R,Aj Community Care Ltd,No
Http://opendatacommunities.org/id/metropolitan-district-council/leeds,Leeds City Council,30/06/2018,Adults and Health,Services For Older People - 65 And Over,Third Party Payments,Home Care,568,01/06/2018,0618-00517,0,17297.38,R,Aj Community Care Ltd,No
Http://opendatacommunities.org/id/metropolitan-district-council/leeds,Leeds City Council,30/06/2018,Adults and Health,Services For Older People Under 65 P/Dis,Third Party Payments,Home Care,568,01/06/2018,0618-00518,0,6924.69,R,Aj Community Care Ltd,No
Http://opendatacommunities.org/id/metropolitan-district-council/leeds,Leeds City Council,30/06/2018,Adults and Health,Services For Older People - 65 And Over,Third Party Payments,Home Care,568,29/06/2018,0618-00519,0,5242.44,R,Aj Community Care Ltd,No
Http://opendatacommunities.org/id/metropolitan-district-council/leeds,Leeds City Council,30/06/2018,Adults and Health,Services For Older People - 65 And Over,Third Party Payments,Home Care,568,29/06/2018,0618-00520,0,1141.42,R,Aj Community Care Ltd,No
Http://opendatacommunities.org/id/metropolitan-district-council/leeds,Leeds City Council,30/06/2018,Adults and Health,Services For Older People - 65 And Over,Third Party Payments,Home Care,568,29/06/2018,0618-00521,0,16269.06,R,Aj Community Care Ltd,No
Http://opendatacommunities.org/id/metropolitan-district-council/leeds,Leeds City Council,30/06/2018,Adults and Health,Services For Older People Under 65 P/Dis,Third Party Payments,Home Care,568,29/06/2018,0618-00522,0,6857.46,R,Aj Community Care Ltd,No
Http://opendatacommunities.org/id/metropolitan-district-council/leeds,Leeds City Council,30/06/2018,Resources and Housing,Leeds Building Services,Supplies and Services,Operational Furniture And Equipment,203,04/06/2018,0618-00523,0,2943.5,R,Ajm Fixings & Power Tools Ltd,No
Http://opendatacommunities.org/id/metropolitan-district-council/leeds,Leeds City Council,30/06/2018,Resources and Housing,Leeds Building Services,Supplies and Services,Operational Furniture And Equipment,203,04/06/2018,0618-00524,0,1317.4,R,Ajm Fixings & Power Tools Ltd,No
Http://opendatacommunities.org/id/metropolitan-district-council/leeds,Leeds City Council,30/06/2018,Resources and Housing,Leeds Building Services,Supplies and Services,Operational Furniture And Equipment,203,04/06/2018,0618-00525,0,6526.2,R,Ajm Fixings & Power Tools Ltd,No
Http://opendatacommunities.org/id/metropolitan-district-council/leeds,Leeds City Council,30/06/2018,Resources and Housing,Leeds Building Services,Supplies and Services,Operational Furniture And Equipment,203,04/06/2018,0618-00526,0,765.98,R,Ajm Fixings & Power Tools Ltd,No
Http://opendatacommunities.org/id/metropolitan-district-council/leeds,Leeds City Council,30/06/2018,Resources and Housing,Leeds Building Services,Supplies and Services,Operational Furniture And Equipment,203,08/06/2018,0618-00527,0,3467.9,R,Ajm Fixings & Power Tools Ltd,No
Http://opendatacommunities.org/id/metropolitan-district-council/leeds,Leeds City Council,30/06/2018,Resources and Housing,Leeds Building Services,Supplies and Services,Operational Furniture And Equipment,203,08/06/2018,0618-00528,0,212,R,Ajm Fixings & Power Tools Ltd,No
Http://opendatacommunities.org/id/metropolitan-district-council/leeds,Leeds City Council,30/06/2018,Resources and Housing,Leeds Building Services,Supplies and Services,Stores - Central And Other Depots,5,11/06/2018,0618-00529,0,35.48,R,Ajm Fixings & Power Tools Ltd,No
Http://opendatacommunities.org/id/metropolitan-district-council/leeds,Leeds City Council,30/06/2018,Resources and Housing,Leeds Building Services,Supplies and Services,Stores - Central And Other Depots,5,11/06/2018,0618-00530,0,661.2,R,Ajm Fixings & Power Tools Ltd,No
Http://opendatacommunities.org/id/metropolitan-district-council/leeds,Leeds City Council,30/06/2018,Resources and Housing,Leeds Building Services,Supplies and Services,Operational Furniture And Equipment,203,11/06/2018,0618-00531,0,390,R,Ajm Fixings & Power Tools Ltd,No
Http://opendatacommunities.org/id/metropolitan-district-council/leeds,Leeds City Council,30/06/2018,Resources and Housing,Leeds Building Services,Supplies and Services,Operational Materials,205,11/06/2018,0618-00532,0,16.25,R,Ajm Fixings & Power Tools Ltd,No
Http://opendatacommunities.org/id/metropolitan-district-council/leeds,Leeds City Council,30/06/2018,Resources and Housing,Leeds Building Services,Supplies and Services,Operational Furniture And Equipment,203,15/06/2018,0618-00533,0,1508.2,R,Ajm Fixings & Power Tools Ltd,No
Http://opendatacommunities.org/id/metropolitan-district-council/leeds,Leeds City Council,30/06/2018,Resources and Housing,Leeds Building Services,Supplies and Services,Operational Furniture And Equipment,203,25/06/2018,0618-00534,0,56.4,R,Ajm Fixings & Power Tools Ltd,No
Http://opendatacommunities.org/id/metropolitan-district-council/leeds,Leeds City Council,30/06/2018,Resources and Housing,Leeds Building Services,Supplies and Services,Operational Furniture And Equipment,203,25/06/2018,0618-00535,0,442.5,R,Ajm Fixings & Power Tools Ltd,No
Http://opendatacommunities.org/id/metropolitan-district-council/leeds,Leeds City Council,30/06/2018,Resources and Housing,Leeds Building Services,Supplies and Services,Stores - Central And Other Depots,5,25/06/2018,0618-00536,0,396,R,Ajm Fixings & Power Tools Ltd,No
Http://opendatacommunities.org/id/metropolitan-district-council/leeds,Leeds City Council,30/06/2018,Resources and Housing,Leeds Building Services,Supplies and Services,Operational Materials,205,25/06/2018,0618-00537,0,207,R,Ajm Fixings & Power Tools Ltd,No
Http://opendatacommunities.org/id/metropolitan-district-council/leeds,Leeds City Council,30/06/2018,Resources and Housing,Leeds Building Services,Supplies and Services,Operational Furniture And Equipment,203,25/06/2018,0618-00538,0,8920,R,Ajm Fixings & Power Tools Ltd,No
Http://opendatacommunities.org/id/metropolitan-district-council/leeds,Leeds City Council,30/06/2018,Resources and Housing,Leeds Building Services,Supplies and Services,Operational Furniture And Equipment,203,25/06/2018,0618-00539,0,228,R,Ajm Fixings & Power Tools Ltd,No
Http://opendatacommunities.org/id/metropolitan-district-council/leeds,Leeds City Council,30/06/2018,Resources and Housing,Leeds Building Services,Supplies and Services,Operational Materials,205,25/06/2018,0618-00540,0,117.86,R,Ajm Fixings & Power Tools Ltd,No
Http://opendatacommunities.org/id/metropolitan-district-council/leeds,Leeds City Council,30/06/2018,Resources and Housing,Leeds Building Services,Supplies and Services,Operational Furniture And Equipment,203,28/06/2018,0618-00541,0,150,R,Ajm Fixings & Power Tools Ltd,No
Http://opendatacommunities.org/id/metropolitan-district-council/leeds,Leeds City Council,30/06/2018,Resources and Housing,Leeds Building Services,Supplies and Services,Operational Furniture And Equipment,203,28/06/2018,0618-00542,0,49,R,Ajm Fixings & Power Tools Ltd,No
Http://opendatacommunities.org/id/metropolitan-district-council/leeds,Leeds City Council,30/06/2018,Resources and Housing,Leeds Building Services,Supplies and Services,Stores - Central And Other Depots,5,28/06/2018,0618-00543,0,729.5,R,Ajm Fixings & Power Tools Ltd,No
Http://opendatacommunities.org/id/metropolitan-district-council/leeds,Leeds City Council,30/06/2018,Resources and Housing,Leeds Building Services,Supplies and Services,Operational Materials,205,28/06/2018,0618-00544,0,28,R,Ajm Fixings & Power Tools Ltd,No
Http://opendatacommunities.org/id/metropolitan-district-council/leeds,Leeds City Council as Accountable Body,30/06/2018,Social Services Pooled Budgets,Jcs For People With Learning Disabilitie,Transfer Payments,Direct Payments,626,27/06/2018,0618-00545,0,2110.5,R,REDACTED PERSONAL DATA,No
Http://opendatacommunities.org/id/metropolitan-district-council/leeds,Leeds City Council,30/06/2018,Communities and Environment,Elections  Licensing and Registration,Income,Admissions  Booking Fees & Ticket Sales,933,14/06/2018,0618-00546,0,145,R,REDACTED PERSONAL DATA,No
Http://opendatacommunities.org/id/metropolitan-district-council/leeds,Leeds City Council,30/06/2018,Resources and Housing,Commercial Services,Premises,Maintenance Of Buildings,101,01/06/2018,0618-00547,0,273.25,R,Akua Uk Ltd,No
Http://opendatacommunities.org/id/metropolitan-district-council/leeds,Leeds City Council,30/06/2018,Resources and Housing,Commercial Services,Premises,Maintenance Of Buildings,101,01/06/2018,0618-00548,0,625.2,R,Akua Uk Ltd,No
Http://opendatacommunities.org/id/metropolitan-district-council/leeds,Leeds City Council,30/06/2018,Resources and Housing,Commercial Services,Premises,Maintenance Of Buildings,101,01/06/2018,0618-00549,0,229.3,R,Akua Uk Ltd,No
Http://opendatacommunities.org/id/metropolitan-district-council/leeds,Leeds City Council,30/06/2018,Resources and Housing,Leeds Building Services,Supplies and Services,Operational Materials,205,04/06/2018,0618-00550,0,56.31,R,Akw Medicare Ltd,No
Http://opendatacommunities.org/id/metropolitan-district-council/leeds,Leeds City Council,30/06/2018,Resources and Housing,Leeds Building Services,Supplies and Services,Operational Materials,205,15/06/2018,0618-00551,0,56.31,R,Akw Medicare Ltd,No
Http://opendatacommunities.org/id/metropolitan-district-council/leeds,Leeds City Council,30/06/2018,Adults and Health,Services For Older People - 65 And Over,Third Party Payments,Payments To Voluntary Organisations,561,29/06/2018,0618-00552,0,3000,R,Al Khidmat Centre,No
Http://opendatacommunities.org/id/metropolitan-district-council/leeds,Leeds City Council,30/06/2018,Children and Families,Social Care  ,Transfer Payments,Leaving Care Grants,635,01/05/2018,0618-00553,0,99.15,R,Al Murad Diy Ltd,Yes
Http://opendatacommunities.org/id/metropolitan-district-council/leeds,Leeds City Council,30/06/2018,Children and Families,Social Care  ,Transfer Payments,Leaving Care Grants,635,23/05/2018,0618-00554,0,14.48,R,Al Murad Diy Ltd,Yes
Http://opendatacommunities.org/id/metropolitan-district-council/leeds,Leeds City Council,30/06/2018,Children and Families,Social Care,Third Party Payments,Services Rendered By Other Organisations,511,01/06/2018,0618-00555,0,100,R,REDACTED PERSONAL DATA,No
Http://opendatacommunities.org/id/metropolitan-district-council/leeds,Leeds City Council,30/06/2018,Resources and Housing,Commercial Services,Supplies and Services,Other Hired And Contracted Services,265,05/06/2018,0618-00556,0,490.15,R,Albert Farnell Ltd,No
Http://opendatacommunities.org/id/metropolitan-district-council/leeds,Leeds City Council,30/06/2018,Resources and Housing,Commercial Services,Supplies and Services,Other Hired And Contracted Services,265,08/06/2018,0618-00557,0,539.24,R,Albert Farnell Ltd,No
Http://opendatacommunities.org/id/metropolitan-district-council/leeds,Leeds City Council,30/06/2018,City Development,Markets & City Centre Management,Supplies and Services,Clothing & Uniforms,241,15/06/2018,0618-00558,0,130.45,R,Albert Haywood & Sons Ltd,No
Http://opendatacommunities.org/id/metropolitan-district-council/leeds,Leeds City Council,30/06/2018,Children and Families,Social Care  ,Supplies and Services,Food & Drink,231,09/05/2018,0618-00559,0,12.01,R,Aldi 11 779,Yes
Http://opendatacommunities.org/id/metropolitan-district-council/leeds,Leeds City Council,30/06/2018,Children and Families,Social Care  ,Supplies and Services,Food & Drink,231,22/05/2018,0618-00560,0,8.19,R,Aldi 40 779,Yes
Http://opendatacommunities.org/id/metropolitan-district-council/leeds,Leeds City Council,30/06/2018,Children and Families,Social Care  ,Supplies and Services,Advertising,211,15/05/2018,0618-00561,0,59.05,R,Aldi 49 779,Yes
Http://opendatacommunities.org/id/metropolitan-district-council/leeds,Leeds City Council,30/06/2018,Communities and Environment,Customer Access  ,Supplies and Services,Office Consumables,210,25/05/2018,0618-00562,0,9.99,R,Aldi 779-90,Yes
Http://opendatacommunities.org/id/metropolitan-district-council/leeds,Leeds City Council,30/06/2018,Resources and Housing,Strategic Housing Partnership & Support  ,Supplies and Services,Other Hired And Contracted Services,265,15/05/2018,0618-00563,0,56.06,R,Aldi 85 779,Yes
Http://opendatacommunities.org/id/metropolitan-district-council/leeds,Leeds City Council,30/06/2018,Children and Families,Social Care  ,Supplies and Services,Food & Drink,231,22/05/2018,0618-00564,0,51.28,R,Aldi 85 779,Yes
Http://opendatacommunities.org/id/metropolitan-district-council/leeds,Leeds City Council,30/06/2018,Children and Families,Social Care  ,Supplies and Services,Food & Drink,231,30/05/2018,0618-00565,0,5.87,R,Aldi 85 779,Yes
Http://opendatacommunities.org/id/metropolitan-district-council/leeds,Leeds City Council,30/06/2018,Communities and Environment,Waste Management  ,Supplies and Services,Operational Furniture And Equipment,203,08/05/2018,0618-00566,0,2.48,R,Aldi 89 779,Yes
Http://opendatacommunities.org/id/metropolitan-district-council/leeds,Leeds City Council,30/06/2018,Children and Families,Social Care  ,Supplies and Services,Food & Drink,231,15/05/2018,0618-00567,0,6.82,R,Aldi Stores,Yes
Http://opendatacommunities.org/id/metropolitan-district-council/leeds,Leeds City Council,30/06/2018,Communities and Environment,Customer Access,Supplies and Services,Other Hired And Contracted Services,265,04/06/2018,0618-00568,0,208.75,R,Alena Zueva,No
Http://opendatacommunities.org/id/metropolitan-district-council/leeds,Leeds City Council,30/06/2018,Children and Families,Social Care,Support Services,Legal Disbursements,411,13/06/2018,0618-00569,0,237,R,Alere Toxicology Plc,No
Http://opendatacommunities.org/id/metropolitan-district-council/leeds,Leeds City Council,30/06/2018,Children and Families,Social Care,Support Services,Legal Disbursements,411,29/06/2018,0618-00570,0,131.75,R,Alere Toxicology Plc,No
Http://opendatacommunities.org/id/metropolitan-district-council/leeds,Leeds City Council,30/06/2018,Children and Families,Social Care,Support Services,Legal Disbursements,411,01/06/2018,0618-00571,0,5540,R,Alex Taylor,No
Http://opendatacommunities.org/id/metropolitan-district-council/leeds,Leeds City Council,30/06/2018,Resources and Housing,Commercial Services,Supplies and Services,Other Hired And Contracted Services,265,07/06/2018,0618-00572,0,105,R,Alex Wagg,No
Http://opendatacommunities.org/id/metropolitan-district-council/leeds,Leeds City Council,30/06/2018,Resources and Housing,Commercial Services,Supplies and Services,Other Hired And Contracted Services,265,07/06/2018,0618-00573,0,110,R,Alex Wagg,No
Http://opendatacommunities.org/id/metropolitan-district-council/leeds,Leeds City Council,30/06/2018,Resources and Housing,Commercial Services,Supplies and Services,Other Hired And Contracted Services,265,07/06/2018,0618-00574,0,250,R,Alex Wagg,No
Http://opendatacommunities.org/id/metropolitan-district-council/leeds,Leeds City Council,30/06/2018,Resources and Housing,Commercial Services,Supplies and Services,Other Hired And Contracted Services,265,14/06/2018,0618-00575,0,50,R,Alex Wagg,No
Http://opendatacommunities.org/id/metropolitan-district-council/leeds,Leeds City Council,30/06/2018,Resources and Housing,Commercial Services,Transport,Vehicle Spares,345,21/06/2018,0618-00576,0,210,R,Alex Wagg,No
Http://opendatacommunities.org/id/metropolitan-district-council/leeds,Leeds City Council,30/06/2018,Resources and Housing,Commercial Services,Supplies and Services,Other Hired And Contracted Services,265,21/06/2018,0618-00577,0,100,R,Alex Wagg,No
Http://opendatacommunities.org/id/metropolitan-district-council/leeds,Leeds City Council,30/06/2018,Resources and Housing,Commercial Services,Supplies and Services,Other Hired And Contracted Services,265,21/06/2018,0618-00578,0,310,R,Alex Wagg,No
Http://opendatacommunities.org/id/metropolitan-district-council/leeds,Leeds City Council,30/06/2018,Resources and Housing,Commercial Services,Supplies and Services,Other Hired And Contracted Services,265,21/06/2018,0618-00579,0,60,R,Alex Wagg,No
Http://opendatacommunities.org/id/metropolitan-district-council/leeds,Leeds City Council,30/06/2018,Resources and Housing,Commercial Services,Supplies and Services,Other Hired And Contracted Services,265,21/06/2018,0618-00580,0,40,R,Alex Wagg,No
Http://opendatacommunities.org/id/metropolitan-district-council/leeds,Leeds City Council,30/06/2018,Resources and Housing,Commercial Services,Supplies and Services,Other Hired And Contracted Services,265,28/06/2018,0618-00581,0,80,R,Alex Wagg,No
Http://opendatacommunities.org/id/metropolitan-district-council/leeds,Leeds City Council,30/06/2018,Resources and Housing,Commercial Services,Supplies and Services,Other Hired And Contracted Services,265,28/06/2018,0618-00582,0,45,R,Alex Wagg,No
Http://opendatacommunities.org/id/metropolitan-district-council/leeds,Leeds City Council,30/06/2018,Resources and Housing,Commercial Services,Supplies and Services,Other Hired And Contracted Services,265,28/06/2018,0618-00583,0,60,R,Alex Wagg,No
Http://opendatacommunities.org/id/metropolitan-district-council/leeds,Leeds City Council,30/06/2018,Resources and Housing,Commercial Services,Supplies and Services,Other Hired And Contracted Services,265,28/06/2018,0618-00584,0,50,R,Alex Wagg,No
Http://opendatacommunities.org/id/metropolitan-district-council/leeds,Leeds City Council,30/06/2018,Adults and Health,Services For Older People - 65 And Over,Third Party Payments,Residential Care Dementia,571,27/06/2018,0618-00585,0,14844.84,R,Alexander Residential Home,No
Http://opendatacommunities.org/id/metropolitan-district-council/leeds,Leeds City Council,30/06/2018,Adults and Health,Services For Older People - 65 And Over,Third Party Payments,Residential,580,27/06/2018,0618-00586,0,27942.29,R,Alexander Residential Home,No
Http://opendatacommunities.org/id/metropolitan-district-council/leeds,Leeds City Council,30/06/2018,Resources and Housing,Human Resources,Employees,Occupational Health,85,11/06/2018,0618-00587,0,70,R,Alexander Simms,No
Http://opendatacommunities.org/id/metropolitan-district-council/leeds,Leeds City Council,30/06/2018,Communities and Environment,Customer Access,Supplies and Services,Other Hired And Contracted Services,265,04/06/2018,0618-00588,0,742.75,R,Alexandra Costenco,No
Http://opendatacommunities.org/id/metropolitan-district-council/leeds,Leeds City Council,30/06/2018,Adults and Health,Services For Older People - 65 And Over,Third Party Payments,Residential,580,27/06/2018,0618-00589,0,8080.84,R,Alexandra Court,No
Http://opendatacommunities.org/id/metropolitan-district-council/leeds,Leeds City Council,30/06/2018,Communities and Environment,Customer Access,Supplies and Services,Other Hired And Contracted Services,265,04/06/2018,0618-00590,0,76.5,R,Alexandra Hirst,No
Http://opendatacommunities.org/id/metropolitan-district-council/leeds,Leeds City Council,30/06/2018,Children and Families,Social Care,Third Party Payments,Services Rendered By Other Organisations,511,01/06/2018,0618-00591,0,120,R,REDACTED PERSONAL DATA,No
Http://opendatacommunities.org/id/metropolitan-district-council/leeds,Leeds City Council,30/06/2018,Resources and Housing,Leeds Building Services,Supplies and Services,Other Hired And Contracted Services,265,20/06/2018,0618-00592,0,5107,R,Alfred Bagnall & Sons (Leeds) Ltd,No
Http://opendatacommunities.org/id/metropolitan-district-council/leeds,Leeds City Council,30/06/2018,City Development,Asset Management,Capital,Construction,3,20/06/2018,0618-00593,0,8790,C,Alfred Bagnall & Sons (Leeds) Ltd,No
Http://opendatacommunities.org/id/metropolitan-district-council/leeds,Leeds City Council,30/06/2018,Resources and Housing,Leeds Building Services,Supplies and Services,Other Hired And Contracted Services,265,22/06/2018,0618-00594,0,600,R,Alfred Bagnall & Sons (Leeds) Ltd,No
Http://opendatacommunities.org/id/metropolitan-district-council/leeds,Leeds City Council,30/06/2018,Resources and Housing,Leeds Building Services,Supplies and Services,Other Hired And Contracted Services,265,22/06/2018,0618-00595,0,400,R,Alfred Bagnall & Sons (Leeds) Ltd,No
Http://opendatacommunities.org/id/metropolitan-district-council/leeds,Leeds City Council,30/06/2018,Resources and Housing,Leeds Building Services,Supplies and Services,Other Hired And Contracted Services,265,22/06/2018,0618-00596,0,400,R,Alfred Bagnall & Sons (Leeds) Ltd,No
Http://opendatacommunities.org/id/metropolitan-district-council/leeds,Leeds City Council,30/06/2018,Communities and Environment,Parks and Countryside,Supplies and Services,Other Hired And Contracted Services,265,22/06/2018,0618-00597,0,1800,R,Alfred Bagnall & Sons (Leeds) Ltd,No
Http://opendatacommunities.org/id/metropolitan-district-council/leeds,Leeds City Council,30/06/2018,Resources and Housing,Leeds Building Services,Supplies and Services,Other Hired And Contracted Services,265,22/06/2018,0618-00598,0,200,R,Alfred Bagnall & Sons (Leeds) Ltd,No
Http://opendatacommunities.org/id/metropolitan-district-council/leeds,Leeds City Council,30/06/2018,Resources and Housing,Leeds Building Services,Supplies and Services,Other Hired And Contracted Services,265,22/06/2018,0618-00599,0,200,R,Alfred Bagnall & Sons (Leeds) Ltd,No
Http://opendatacommunities.org/id/metropolitan-district-council/leeds,Leeds City Council,30/06/2018,Resources and Housing,Leeds Building Services,Supplies and Services,Other Hired And Contracted Services,265,22/06/2018,0618-00600,0,400,R,Alfred Bagnall & Sons (Leeds) Ltd,No
Http://opendatacommunities.org/id/metropolitan-district-council/leeds,Leeds City Council,30/06/2018,Resources and Housing,Leeds Building Services,Supplies and Services,Other Hired And Contracted Services,265,22/06/2018,0618-00601,0,200,R,Alfred Bagnall & Sons (Leeds) Ltd,No
Http://opendatacommunities.org/id/metropolitan-district-council/leeds,Leeds City Council,30/06/2018,Resources and Housing,Leeds Building Services,Supplies and Services,Other Hired And Contracted Services,265,22/06/2018,0618-00602,0,200,R,Alfred Bagnall & Sons (Leeds) Ltd,No
Http://opendatacommunities.org/id/metropolitan-district-council/leeds,Leeds City Council,30/06/2018,Resources and Housing,Leeds Building Services,Supplies and Services,Other Hired And Contracted Services,265,22/06/2018,0618-00603,0,200,R,Alfred Bagnall & Sons (Leeds) Ltd,No
Http://opendatacommunities.org/id/metropolitan-district-council/leeds,Leeds City Council,30/06/2018,Resources and Housing,Leeds Building Services,Supplies and Services,Other Hired And Contracted Services,265,25/06/2018,0618-00604,0,200,R,Alfred Bagnall & Sons (Leeds) Ltd,No
Http://opendatacommunities.org/id/metropolitan-district-council/leeds,Leeds City Council,30/06/2018,Resources and Housing,Leeds Building Services,Supplies and Services,Other Hired And Contracted Services,265,25/06/2018,0618-00605,0,200,R,Alfred Bagnall & Sons (Leeds) Ltd,No
Http://opendatacommunities.org/id/metropolitan-district-council/leeds,Leeds City Council,30/06/2018,Resources and Housing,Leeds Building Services,Supplies and Services,Other Hired And Contracted Services,265,25/06/2018,0618-00606,0,200,R,Alfred Bagnall & Sons (Leeds) Ltd,No
Http://opendatacommunities.org/id/metropolitan-district-council/leeds,Leeds City Council,30/06/2018,Resources and Housing,Leeds Building Services,Supplies and Services,Other Hired And Contracted Services,265,25/06/2018,0618-00607,0,200,R,Alfred Bagnall & Sons (Leeds) Ltd,No
Http://opendatacommunities.org/id/metropolitan-district-council/leeds,Leeds City Council,30/06/2018,Resources and Housing,Leeds Building Services,Supplies and Services,Other Hired And Contracted Services,265,25/06/2018,0618-00608,0,600,R,Alfred Bagnall & Sons (Leeds) Ltd,No
Http://opendatacommunities.org/id/metropolitan-district-council/leeds,Leeds City Council,30/06/2018,Resources and Housing,Leeds Building Services,Supplies and Services,Other Hired And Contracted Services,265,25/06/2018,0618-00609,0,400,R,Alfred Bagnall & Sons (Leeds) Ltd,No
Http://opendatacommunities.org/id/metropolitan-district-council/leeds,Leeds City Council,30/06/2018,Resources and Housing,Leeds Building Services,Supplies and Services,Other Hired And Contracted Services,265,26/06/2018,0618-00610,0,5995,R,Alfred Bagnall & Sons (Leeds) Ltd,No
Http://opendatacommunities.org/id/metropolitan-district-council/leeds,Leeds City Council,30/06/2018,Communities and Environment,Parks and Countryside,Premises,Roads Paths Seats & Shelters,113,28/06/2018,0618-00611,0,2214,R,Alfred Bagnall & Sons (Leeds) Ltd,No
Http://opendatacommunities.org/id/metropolitan-district-council/leeds,Leeds City Council,30/06/2018,Resources and Housing,Corporate Property Management,Capital,Construction,3,28/06/2018,0618-00612,0,2800,C,Alfred Bagnall & Sons (Leeds) Ltd,No
Http://opendatacommunities.org/id/metropolitan-district-council/leeds,Leeds City Council,30/06/2018,Resources and Housing,Leeds Building Services,Supplies and Services,Other Hired And Contracted Services,265,29/06/2018,0618-00613,0,350,R,Alfred Bagnall & Sons (Leeds) Ltd,No
Http://opendatacommunities.org/id/metropolitan-district-council/leeds,Leeds City Council,30/06/2018,Communities and Environment,Customer Access,Supplies and Services,Other Hired And Contracted Services,265,04/06/2018,0618-00614,0,351.5,R,Ali Pourakaberian,No
Http://opendatacommunities.org/id/metropolitan-district-council/leeds,Leeds City Council,30/06/2018,Children and Families,Partnerships & Health,Employees,Training & Development,70,15/06/2018,0618-00615,0,1416.64,R,REDACTED PERSONAL DATA,No
Http://opendatacommunities.org/id/metropolitan-district-council/leeds,Leeds City Council,30/06/2018,Children and Families,Social Care,Third Party Payments,Services Rendered By Other Organisations,511,01/06/2018,0618-00616,0,71,R,REDACTED PERSONAL DATA,No
Http://opendatacommunities.org/id/metropolitan-district-council/leeds,Leeds City Council,30/06/2018,Children and Families,Social Care,Third Party Payments,Services Rendered By Other Organisations,511,01/06/2018,0618-00617,0,309,R,REDACTED PERSONAL DATA,No
Http://opendatacommunities.org/id/metropolitan-district-council/leeds,Leeds City Council,30/06/2018,City Development,Libraries  Arts & Heritage,Supplies and Services,Bought In Professional Services,277,05/06/2018,0618-00618,0,900,R,Alison Mcintyre,No
Http://opendatacommunities.org/id/metropolitan-district-council/leeds,Leeds City Council,30/06/2018,Resources and Housing,Leeds Building Services,Supplies and Services,Other Hired And Contracted Services,265,01/06/2018,0618-00619,0,195,R,All Clear Solutions Ltd,No
Http://opendatacommunities.org/id/metropolitan-district-council/leeds,Leeds City Council,30/06/2018,Resources and Housing,Leeds Building Services,Supplies and Services,Other Hired And Contracted Services,265,01/06/2018,0618-00620,0,195,R,All Clear Solutions Ltd,No
Http://opendatacommunities.org/id/metropolitan-district-council/leeds,Leeds City Council,30/06/2018,Resources and Housing,Leeds Building Services,Supplies and Services,Other Hired And Contracted Services,265,11/06/2018,0618-00621,0,195,R,All Clear Solutions Ltd,No
Http://opendatacommunities.org/id/metropolitan-district-council/leeds,Leeds City Council,30/06/2018,Resources and Housing,Leeds Building Services,Supplies and Services,Other Hired And Contracted Services,265,15/06/2018,0618-00622,0,195,R,All Clear Solutions Ltd,No
Http://opendatacommunities.org/id/metropolitan-district-council/leeds,Leeds City Council,30/06/2018,Resources and Housing,Strategy and Improvement,Supplies and Services,Memberships,226,15/06/2018,0618-00623,0,475,R,All Party Parliamentary Group For,No
Http://opendatacommunities.org/id/metropolitan-district-council/leeds,Leeds City Council,30/06/2018,Children and Families,Social Care,Third Party Payments,Services Rendered By Other Organisations,511,01/06/2018,0618-00624,0,578.33,R,All Stars Childcare,No
Http://opendatacommunities.org/id/metropolitan-district-council/leeds,Leeds City Council,30/06/2018,Children and Families,Social Care,Third Party Payments,Services Rendered By Other Organisations,511,01/06/2018,0618-00625,0,1442,R,All Stars Childcare,No
Http://opendatacommunities.org/id/metropolitan-district-council/leeds,Leeds City Council as Accountable Body,30/06/2018,Social Services Pooled Budgets,Jcs For People With Learning Disabilitie,Third Party Payments,Sheltered Accommodation,569,27/06/2018,0618-00626,0,13578.36,R,Allerton Avenue,No
Http://opendatacommunities.org/id/metropolitan-district-council/leeds,Leeds City Council,30/06/2018,Strategic Accounts,Miscellaneous,Supplies and Services,Non-Recurring Grants,227,11/06/2018,0618-00627,0,300,R,Allerton Bywater Craft Class,No
Http://opendatacommunities.org/id/metropolitan-district-council/leeds,Leeds City Council,30/06/2018,Adults and Health,Public Health,Third Party Payments,Public Health Commissioned Services,526,01/06/2018,0618-00628,0,2629.73,R,Allerton Medical Centre,No
Http://opendatacommunities.org/id/metropolitan-district-council/leeds,Leeds City Council,30/06/2018,Adults and Health,Services For Older People - 65 And Over,Third Party Payments,Nursing Care Dementia,574,27/06/2018,0618-00629,0,12116.91,R,Allerton Park N H,No
Http://opendatacommunities.org/id/metropolitan-district-council/leeds,Leeds City Council,30/06/2018,Communities and Environment,Parks and Countryside,Supplies and Services,Operational Furniture And Equipment,203,01/06/2018,0618-00630,0,114.95,R,Allflex Uk Group Ltd,No
Http://opendatacommunities.org/id/metropolitan-district-council/leeds,Leeds City Council,30/06/2018,Communities and Environment,Parks and Countryside,Supplies and Services,Operational Materials,205,18/06/2018,0618-00631,0,40.95,R,Allflex Uk Group Ltd,No
Http://opendatacommunities.org/id/metropolitan-district-council/leeds,Leeds City Council,30/06/2018,Resources and Housing,Finance,Supplies and Services,Bank Charges,263,01/06/2018,0618-00632,0,-125.99,R,Alliance & Leicester Commercial Bank,No
Http://opendatacommunities.org/id/metropolitan-district-council/leeds,Leeds City Council,30/06/2018,Resources and Housing,Finance,Supplies and Services,Bank Charges,263,06/06/2018,0618-00633,0,736.58,R,Alliance & Leicester Commercial Bank,No
Http://opendatacommunities.org/id/metropolitan-district-council/leeds,Leeds City Council,30/06/2018,Resources and Housing,Finance,Supplies and Services,Bank Charges,263,06/06/2018,0618-00634,0,100,R,Alliance & Leicester Commercial Bank,No
Http://opendatacommunities.org/id/metropolitan-district-council/leeds,Leeds City Council,30/06/2018,Resources and Housing,Commercial Services,Transport,Vehicle Spares,345,08/06/2018,0618-00635,0,294.8,R,Alliance Electronics Ltd,No
Http://opendatacommunities.org/id/metropolitan-district-council/leeds,Leeds City Council,30/06/2018,Resources and Housing,Commercial Services,Transport,Vehicle Spares,345,08/06/2018,0618-00636,0,479.8,R,Alliance Electronics Ltd,No
Http://opendatacommunities.org/id/metropolitan-district-council/leeds,Leeds City Council,30/06/2018,City Development,Recreation,Supplies and Services,Printing,215,13/06/2018,0618-00637,0,812.8,R,Alliance Leisure Service Ltd,No
Http://opendatacommunities.org/id/metropolitan-district-council/leeds,Leeds City Council,30/06/2018,City Development,Recreation,Third Party Payments,Services Rendered By Other Organisations,511,14/06/2018,0618-00638,0,7537,R,Alliance Leisure Service Ltd,No
Http://opendatacommunities.org/id/metropolitan-district-council/leeds,Leeds City Council,30/06/2018,City Development,Recreation,Third Party Payments,Services Rendered By Other Organisations,511,14/06/2018,0618-00639,0,10401,R,Alliance Leisure Service Ltd,No
Http://opendatacommunities.org/id/metropolitan-district-council/leeds,Leeds City Council,30/06/2018,City Development,Highways,Supplies and Services,Other Hired And Contracted Services,265,06/06/2018,0618-00640,0,60,R,Allied Exploration & Geotechnics Ltd,No
Http://opendatacommunities.org/id/metropolitan-district-council/leeds,Leeds City Council,30/06/2018,City Development,Highways,Supplies and Services,Other Hired And Contracted Services,265,27/06/2018,0618-00641,0,6080.89,R,Allied Exploration & Geotechnics Ltd,No
Http://opendatacommunities.org/id/metropolitan-district-council/leeds,Leeds City Council as Accountable Body,30/06/2018,Social Services Pooled Budgets,Jcs For People With Learning Disabilitie,Third Party Payments,Home Care,568,07/06/2018,0618-00642,0,15418.8,R,Allied Healthcare,No
Http://opendatacommunities.org/id/metropolitan-district-council/leeds,Leeds City Council as Accountable Body,30/06/2018,Social Services Pooled Budgets,Jcs For People With Learning Disabilitie,Third Party Payments,Home Care,568,13/06/2018,0618-00643,0,200.16,R,Allied Healthcare,No
Http://opendatacommunities.org/id/metropolitan-district-council/leeds,Leeds City Council,30/06/2018,Adults and Health,Other Generic Services,Third Party Payments,Home Care,568,14/06/2018,0618-00644,0,14102.7,R,Allied Healthcare,No
Http://opendatacommunities.org/id/metropolitan-district-council/leeds,Leeds City Council,30/06/2018,Adults and Health,Other Generic Services,Third Party Payments,Home Care,568,14/06/2018,0618-00645,0,5818.92,R,Allied Healthcare,No
Http://opendatacommunities.org/id/metropolitan-district-council/leeds,Leeds City Council,30/06/2018,Children and Families,Social Care,Third Party Payments,Services Rendered By Voluntary Sector,505,14/06/2018,0618-00646,0,684,R,Allied Healthcare,No
Http://opendatacommunities.org/id/metropolitan-district-council/leeds,Leeds City Council,30/06/2018,Adults and Health,Services For Older People - 65 And Over,Third Party Payments,Home Care,568,14/06/2018,0618-00647,0,1342.46,R,Allied Healthcare,No
Http://opendatacommunities.org/id/metropolitan-district-council/leeds,Leeds City Council,30/06/2018,Adults and Health,Services For Older People - 65 And Over,Third Party Payments,Home Care,568,14/06/2018,0618-00648,0,1704.2,R,Allied Healthcare,No
Http://opendatacommunities.org/id/metropolitan-district-council/leeds,Leeds City Council,30/06/2018,Adults and Health,Services For Older People - 65 And Over,Third Party Payments,Home Care,568,14/06/2018,0618-00649,0,10946.54,R,Allied Healthcare,No
Http://opendatacommunities.org/id/metropolitan-district-council/leeds,Leeds City Council,30/06/2018,Adults and Health,Services For Older People Under 65 P/Dis,Third Party Payments,Home Care,568,14/06/2018,0618-00650,0,1206.41,R,Allied Healthcare,No
Http://opendatacommunities.org/id/metropolitan-district-council/leeds,Leeds City Council,30/06/2018,Adults and Health,Services For Older People - 65 And Over,Third Party Payments,Home Care,568,14/06/2018,0618-00651,0,10083.01,R,Allied Healthcare,No
Http://opendatacommunities.org/id/metropolitan-district-council/leeds,Leeds City Council,30/06/2018,Adults and Health,Services For Older People Under 65 P/Dis,Third Party Payments,Home Care,568,14/06/2018,0618-00652,0,2308.23,R,Allied Healthcare,No
Http://opendatacommunities.org/id/metropolitan-district-council/leeds,Leeds City Council,30/06/2018,Adults and Health,Services For Older People - 65 And Over,Third Party Payments,Home Care,568,14/06/2018,0618-00653,0,11362.62,R,Allied Healthcare,No
Http://opendatacommunities.org/id/metropolitan-district-council/leeds,Leeds City Council,30/06/2018,Adults and Health,Services For Older People Under 65 P/Dis,Third Party Payments,Home Care,568,14/06/2018,0618-00654,0,8711.67,R,Allied Healthcare,No
Http://opendatacommunities.org/id/metropolitan-district-council/leeds,Leeds City Council,30/06/2018,Adults and Health,Other Generic Services,Third Party Payments,Home Care,568,21/06/2018,0618-00655,0,204.75,R,Allied Healthcare,No
Http://opendatacommunities.org/id/metropolitan-district-council/leeds,Leeds City Council,30/06/2018,Adults and Health,Other Generic Services,Third Party Payments,Home Care,568,21/06/2018,0618-00656,0,68.25,R,Allied Healthcare,No
Http://opendatacommunities.org/id/metropolitan-district-council/leeds,Leeds City Council as Accountable Body,30/06/2018,Social Services Pooled Budgets,Jcs For People With Learning Disabilitie,Third Party Payments,Home Care,568,28/06/2018,0618-00657,0,16604.7,R,Allied Healthcare,No
Http://opendatacommunities.org/id/metropolitan-district-council/leeds,Leeds City Council,30/06/2018,Resources and Housing,Finance,Supplies and Services,Bank Charges,263,01/06/2018,0618-00658,0,10615.39,R,Allpay Limted,No
Http://opendatacommunities.org/id/metropolitan-district-council/leeds,Leeds City Council,30/06/2018,Resources and Housing,Finance,Supplies and Services,Bank Charges,263,01/06/2018,0618-00659,0,322.01,R,Allpay Limted,No
Http://opendatacommunities.org/id/metropolitan-district-council/leeds,Leeds City Council,30/06/2018,Resources and Housing,Finance,Supplies and Services,Bank Charges,263,01/06/2018,0618-00660,0,99.96,R,Allpay Limted,No
Http://opendatacommunities.org/id/metropolitan-district-council/leeds,Leeds City Council,30/06/2018,Resources and Housing,Finance,Supplies and Services,Bank Charges,263,01/06/2018,0618-00661,0,6.33,R,Allpay Limted,No
Http://opendatacommunities.org/id/metropolitan-district-council/leeds,Leeds City Council,30/06/2018,Resources and Housing,Finance,Supplies and Services,Bank Charges,263,01/06/2018,0618-00662,0,2425.84,R,Allpay Limted,No
Http://opendatacommunities.org/id/metropolitan-district-council/leeds,Leeds City Council,30/06/2018,Strategic Landlord,Housing Management,Supplies and Services,Other Hired And Contracted Services,265,01/06/2018,0618-00663,0,22.24,R,Allpay Limted,No
Http://opendatacommunities.org/id/metropolitan-district-council/leeds,Leeds City Council,30/06/2018,Strategic Landlord,Housing Management,Supplies and Services,Other Hired And Contracted Services,265,01/06/2018,0618-00664,0,0.23,R,Allpay Limted,No
Http://opendatacommunities.org/id/metropolitan-district-council/leeds,Leeds City Council,30/06/2018,Strategic Landlord,Housing Management,Supplies and Services,Other Hired And Contracted Services,265,01/06/2018,0618-00665,0,445.78,R,Allpay Limted,No
Http://opendatacommunities.org/id/metropolitan-district-council/leeds,Leeds City Council,30/06/2018,Resources and Housing,Strategic Housing Partnership & Support  ,Supplies and Services,Other Hired And Contracted Services,265,02/05/2018,0618-00666,0,95.89,R,Allpay Moto (Callpay/I,Yes
Http://opendatacommunities.org/id/metropolitan-district-council/leeds,Leeds City Council,30/06/2018,Children and Families,Social Care  ,Transfer Payments,Leaving Care Allowances,634,17/05/2018,0618-00667,0,715.03,R,Allpay Moto (Callpay/I,Yes
Http://opendatacommunities.org/id/metropolitan-district-council/leeds,Leeds City Council,30/06/2018,Resources and Housing,Democratic Services,Transport,Fuel (Non LCC Supplies),321,07/06/2018,0618-00668,0,42.01,R,Allstar Business Solutions Ltd,No
Http://opendatacommunities.org/id/metropolitan-district-council/leeds,Leeds City Council,30/06/2018,Communities and Environment,Parks and Countryside,Transport,Fuel (Non LCC Supplies),321,07/06/2018,0618-00669,0,232.89,R,Allstar Business Solutions Ltd,No
Http://opendatacommunities.org/id/metropolitan-district-council/leeds,Leeds City Council,30/06/2018,City Development,Highways,Transport,Fuel (Non LCC Supplies),321,07/06/2018,0618-00670,0,296.14,R,Allstar Business Solutions Ltd,No
Http://opendatacommunities.org/id/metropolitan-district-council/leeds,Leeds City Council,30/06/2018,Children and Families,Learning,Transport,Fuel (Non LCC Supplies),321,07/06/2018,0618-00671,0,1472.07,R,Allstar Business Solutions Ltd,No
Http://opendatacommunities.org/id/metropolitan-district-council/leeds,Leeds City Council,30/06/2018,Resources and Housing,Leeds Building Services,Transport,Fuel (Non LCC Supplies),321,12/06/2018,0618-00672,0,187.18,R,Allstar Business Solutions Ltd,No
Http://opendatacommunities.org/id/metropolitan-district-council/leeds,Leeds City Council,30/06/2018,Resources and Housing,Leeds Building Services,Transport,Fuel (Non LCC Supplies),321,28/06/2018,0618-00673,0,82.09,R,Allstar Business Solutions Ltd,No
Http://opendatacommunities.org/id/metropolitan-district-council/leeds,Leeds City Council,30/06/2018,Resources and Housing,Shared Services,Supplies and Services,Other Hired And Contracted Services,265,01/06/2018,0618-00674,0,673,R,Alpha Card Compact Media Ltd,No
Http://opendatacommunities.org/id/metropolitan-district-council/leeds,Leeds City Council,30/06/2018,Communities and Environment,Parks and Countryside,Supplies and Services,Operational Materials,205,13/06/2018,0618-00675,0,1513.68,R,Alpha Rail Limited,No
Http://opendatacommunities.org/id/metropolitan-district-council/leeds,Leeds City Council,30/06/2018,Communities and Environment,Parks and Countryside,Supplies and Services,Operational Materials,205,13/06/2018,0618-00676,0,1263.75,R,Alpha Rail Limited,No
Http://opendatacommunities.org/id/metropolitan-district-council/leeds,Leeds City Council,30/06/2018,Children and Families,Social Care,Support Services,Legal Disbursements,411,01/06/2018,0618-00677,0,266.25,R,Alphabiolabs,No
Http://opendatacommunities.org/id/metropolitan-district-council/leeds,Leeds City Council,30/06/2018,Children and Families,Social Care,Support Services,Legal Disbursements,411,01/06/2018,0618-00678,0,86.25,R,Alphabiolabs,No
Http://opendatacommunities.org/id/metropolitan-district-council/leeds,Leeds City Council,30/06/2018,Children and Families,Social Care,Support Services,Legal Disbursements,411,07/06/2018,0618-00679,0,645,R,Alphabiolabs,No
Http://opendatacommunities.org/id/metropolitan-district-council/leeds,Leeds City Council,30/06/2018,Children and Families,Social Care,Support Services,Legal Disbursements,411,08/06/2018,0618-00680,0,215,R,Alphabiolabs,No
Http://opendatacommunities.org/id/metropolitan-district-council/leeds,Leeds City Council,30/06/2018,Children and Families,Social Care,Support Services,Legal Disbursements,411,08/06/2018,0618-00681,0,90,R,Alphabiolabs,No
Http://opendatacommunities.org/id/metropolitan-district-council/leeds,Leeds City Council,30/06/2018,Children and Families,Social Care,Support Services,Legal Disbursements,411,22/06/2018,0618-00682,0,391.67,R,Alphabiolabs,No
Http://opendatacommunities.org/id/metropolitan-district-council/leeds,Leeds City Council,30/06/2018,Children and Families,Social Care,Support Services,Legal Disbursements,411,28/06/2018,0618-00683,0,174.67,R,Alphabiolabs,No
Http://opendatacommunities.org/id/metropolitan-district-council/leeds,Leeds City Council,30/06/2018,Children and Families,Social Care,Support Services,Legal Disbursements,411,28/06/2018,0618-00684,0,135,R,Alphabiolabs,No
Http://opendatacommunities.org/id/metropolitan-district-council/leeds,Leeds City Council,30/06/2018,Children and Families,Social Care,Third Party Payments,Services Rendered By Other Organisations,511,01/06/2018,0618-00685,0,165,R,REDACTED PERSONAL DATA,No
Http://opendatacommunities.org/id/metropolitan-district-council/leeds,Leeds City Council,30/06/2018,Children and Families,Social Care,Third Party Payments,Services Rendered By Other Organisations,511,01/06/2018,0618-00686,0,213.33,R,REDACTED PERSONAL DATA,No
Http://opendatacommunities.org/id/metropolitan-district-council/leeds,Leeds City Council,30/06/2018,Children and Families,Social Care,Third Party Payments,Services Rendered By Other Organisations,511,01/06/2018,0618-00687,0,643,R,REDACTED PERSONAL DATA,No
Http://opendatacommunities.org/id/metropolitan-district-council/leeds,Leeds City Council,30/06/2018,Resources and Housing,Shared Services,Supplies and Services,Operational Materials,205,05/06/2018,0618-00688,0,62,R,Amari Plastics Plc,No
Http://opendatacommunities.org/id/metropolitan-district-council/leeds,Leeds City Council,30/06/2018,Resources and Housing,Leeds Building Services,Supplies and Services,Operational Materials,205,05/06/2018,0618-00689,0,339,R,Amari Plastics Plc,No
Http://opendatacommunities.org/id/metropolitan-district-council/leeds,Leeds City Council,30/06/2018,Resources and Housing,Leeds Building Services,Supplies and Services,Operational Materials,205,15/06/2018,0618-00690,0,9.8,R,Amari Plastics Plc,No
Http://opendatacommunities.org/id/metropolitan-district-council/leeds,Leeds City Council,30/06/2018,Resources and Housing,Shared Services,Supplies and Services,Operational Materials,205,15/06/2018,0618-00691,0,780,R,Amari Plastics Plc,No
Http://opendatacommunities.org/id/metropolitan-district-council/leeds,Leeds City Council,30/06/2018,City Development,Libraries  Arts & Heritage,Supplies and Services,Other Hired And Contracted Services,265,07/06/2018,0618-00692,0,100000,R,Amaury Sports Organisation,No
Http://opendatacommunities.org/id/metropolitan-district-council/leeds,Leeds City Council,30/06/2018,Children and Families,Social Care,Third Party Payments,Services Rendered By Other Organisations,511,01/06/2018,0618-00693,0,2176.33,R,Amazing Grace Early Years Childcare,No
Http://opendatacommunities.org/id/metropolitan-district-council/leeds,Leeds City Council,30/06/2018,Children and Families,Social Care,Third Party Payments,Services Rendered By Other Organisations,511,01/06/2018,0618-00694,0,1601,R,Amazing Grace Early Years Childcare,No
Http://opendatacommunities.org/id/metropolitan-district-council/leeds,Leeds City Council,30/06/2018,Adults and Health,Public Health  ,Supplies and Services,Other Hired And Contracted Services,265,16/05/2018,0618-00695,0,9.99,R,Amazon Digital Svcs,Yes
Http://opendatacommunities.org/id/metropolitan-district-council/leeds,Leeds City Council,30/06/2018,Children and Families,Social Care  ,Supplies and Services,Teaching Materials,202,22/05/2018,0618-00696,0,3.99,R,Amazon Digital Svcs Amzn.,Yes
Http://opendatacommunities.org/id/metropolitan-district-council/leeds,Leeds City Council,30/06/2018,Communities and Environment,Parks And Countryside  ,Supplies and Services,Operational Materials,205,02/05/2018,0618-00697,0,108,R,Amazon Eu Amazon.Co.Uk,Yes
Http://opendatacommunities.org/id/metropolitan-district-council/leeds,Leeds City Council,30/06/2018,Children and Families,Social Care  ,Supplies and Services,Operational Furniture And Equipment,203,03/05/2018,0618-00698,0,21.97,R,Amazon Eu Amazon.Co.Uk,Yes
Http://opendatacommunities.org/id/metropolitan-district-council/leeds,Leeds City Council,30/06/2018,Communities and Environment,Customer Access  ,Supplies and Services,Computer Software & Equipment,214,07/05/2018,0618-00699,0,-65.63,R,Amazon Eu Amazon.Co.Uk,Yes
Http://opendatacommunities.org/id/metropolitan-district-council/leeds,Leeds City Council,30/06/2018,Communities and Environment,Customer Access  ,Supplies and Services,Computer Software & Equipment,214,10/05/2018,0618-00700,0,-40.04,R,Amazon Eu Amazon.Co.Uk,Yes
Http://opendatacommunities.org/id/metropolitan-district-council/leeds,Leeds City Council,30/06/2018,Children and Families,Social Care  ,Supplies and Services,Teaching Materials,202,20/05/2018,0618-00701,0,10.13,R,Amazon Eu Amazon.Co.Uk,Yes
Http://opendatacommunities.org/id/metropolitan-district-council/leeds,Leeds City Council,30/06/2018,Children and Families,Social Care  ,Supplies and Services,Teaching Materials,202,20/05/2018,0618-00702,0,10.13,R,Amazon Eu Amazon.Co.Uk,Yes
Http://opendatacommunities.org/id/metropolitan-district-council/leeds,Leeds City Council,30/06/2018,Children and Families,Social Care  ,Supplies and Services,Teaching Materials,202,20/05/2018,0618-00703,0,10.13,R,Amazon Eu Amazon.Co.Uk,Yes
Http://opendatacommunities.org/id/metropolitan-district-council/leeds,Leeds City Council,30/06/2018,City Development,Markets & City Centre Management  ,Supplies and Services,Operational Materials,205,29/05/2018,0618-00704,0,57.48,R,Amazon Eu Amazon.Co.Uk,Yes
Http://opendatacommunities.org/id/metropolitan-district-council/leeds,Leeds City Council,30/06/2018,City Development,Recreation,Supplies and Services,Operational Furniture And Equipment,203,01/06/2018,0618-00705,0,116.25,R,Amazon Leisure Uk Ltd,No
Http://opendatacommunities.org/id/metropolitan-district-council/leeds,Leeds City Council,30/06/2018,City Development,Recreation,Supplies and Services,Operational Furniture And Equipment,203,06/06/2018,0618-00706,0,264.64,R,Amazon Leisure Uk Ltd,No
Http://opendatacommunities.org/id/metropolitan-district-council/leeds,Leeds City Council,30/06/2018,City Development,Recreation,Supplies and Services,Operational Furniture And Equipment,203,08/06/2018,0618-00707,0,193.79,R,Amazon Leisure Uk Ltd,No
Http://opendatacommunities.org/id/metropolitan-district-council/leeds,Leeds City Council,30/06/2018,City Development,Recreation,Supplies and Services,Operational Furniture And Equipment,203,08/06/2018,0618-00708,0,304.2,R,Amazon Leisure Uk Ltd,No
Http://opendatacommunities.org/id/metropolitan-district-council/leeds,Leeds City Council,30/06/2018,City Development,Recreation,Supplies and Services,Operational Furniture And Equipment,203,08/06/2018,0618-00709,0,2354.95,R,Amazon Leisure Uk Ltd,No
Http://opendatacommunities.org/id/metropolitan-district-council/leeds,Leeds City Council,30/06/2018,City Development,Recreation,Supplies and Services,Operational Furniture And Equipment,203,14/06/2018,0618-00710,0,690.08,R,Amazon Leisure Uk Ltd,No
Http://opendatacommunities.org/id/metropolitan-district-council/leeds,Leeds City Council,30/06/2018,City Development,Recreation,Supplies and Services,Operational Furniture And Equipment,203,14/06/2018,0618-00711,0,112.65,R,Amazon Leisure Uk Ltd,No
Http://opendatacommunities.org/id/metropolitan-district-council/leeds,Leeds City Council,30/06/2018,City Development,Recreation,Supplies and Services,Operational Furniture And Equipment,203,22/06/2018,0618-00712,0,150,R,Amazon Leisure Uk Ltd,No
Http://opendatacommunities.org/id/metropolitan-district-council/leeds,Leeds City Council,30/06/2018,City Development,Recreation,Supplies and Services,Operational Furniture And Equipment,203,28/06/2018,0618-00713,0,726.6,R,Amazon Leisure Uk Ltd,No
Http://opendatacommunities.org/id/metropolitan-district-council/leeds,Leeds City Council,30/06/2018,City Development,Recreation,Supplies and Services,Operational Furniture And Equipment,203,29/06/2018,0618-00714,0,372,R,Amazon Leisure Uk Ltd,No
Http://opendatacommunities.org/id/metropolitan-district-council/leeds,Leeds City Council,30/06/2018,City Development,Recreation,Supplies and Services,Operational Furniture And Equipment,203,29/06/2018,0618-00715,0,3146,R,Amazon Leisure Uk Ltd,No
Http://opendatacommunities.org/id/metropolitan-district-council/leeds,Leeds City Council,30/06/2018,Resources and Housing,Commercial Services  ,Supplies and Services,Operational Materials,205,03/05/2018,0618-00716,0,79,R,Amazon Prime,Yes
Http://opendatacommunities.org/id/metropolitan-district-council/leeds,Leeds City Council,30/06/2018,Communities and Environment,Customer Access  ,Supplies and Services,Other Hired And Contracted Services,265,03/05/2018,0618-00717,0,6.66,R,Amazon Prime,Yes
Http://opendatacommunities.org/id/metropolitan-district-council/leeds,Leeds City Council,30/06/2018,Children and Families,Social Care  ,Supplies and Services,Office Consumables,210,11/05/2018,0618-00718,0,7.99,R,Amazon Prime,Yes
Http://opendatacommunities.org/id/metropolitan-district-council/leeds,Leeds City Council,30/06/2018,Communities and Environment,Customer Access  ,Supplies and Services,Other Hired And Contracted Services,265,14/05/2018,0618-00719,0,-7.99,R,Amazon Prime,Yes
Http://opendatacommunities.org/id/metropolitan-district-council/leeds,Leeds City Council,30/06/2018,Children and Families,Social Care  ,Transfer Payments,Leaving Care Grants,635,14/05/2018,0618-00720,0,7.99,R,Amazon Prime,Yes
Http://opendatacommunities.org/id/metropolitan-district-council/leeds,Leeds City Council,30/06/2018,City Development,Libraries  Arts & Heritage  ,Supplies and Services,Operational Materials,205,15/05/2018,0618-00721,0,7.99,R,Amazon Prime,Yes
Http://opendatacommunities.org/id/metropolitan-district-council/leeds,Leeds City Council,30/06/2018,Children and Families,Social Care  ,Supplies and Services,Office Consumables,210,15/05/2018,0618-00722,0,-7.99,R,Amazon Prime,Yes
Http://opendatacommunities.org/id/metropolitan-district-council/leeds,Leeds City Council,30/06/2018,Children and Families,Social Care  ,Transfer Payments,Leaving Care Allowances,634,18/05/2018,0618-00723,0,-7.99,R,Amazon Prime,Yes
Http://opendatacommunities.org/id/metropolitan-district-council/leeds,Leeds City Council,30/06/2018,Children and Families,Social Care  ,Supplies and Services,Teaching Materials,202,24/05/2018,0618-00724,0,7.99,R,Amazon Prime,Yes
Http://opendatacommunities.org/id/metropolitan-district-council/leeds,Leeds City Council,30/06/2018,Children and Families,Social Care  ,Supplies and Services,Teaching Materials,202,27/05/2018,0618-00725,0,79,R,Amazon Prime,Yes
Http://opendatacommunities.org/id/metropolitan-district-council/leeds,Leeds City Council,30/06/2018,Resources and Housing,Commercial Services  ,Supplies and Services,Operational Materials,205,27/05/2018,0618-00726,0,7.99,R,Amazon Prime,Yes
Http://opendatacommunities.org/id/metropolitan-district-council/leeds,Leeds City Council,30/06/2018,Communities and Environment,Parks And Countryside  ,Supplies and Services,Operational Materials,205,29/04/2018,0618-00727,0,7.99,R,Amazon Prime Member Fee A,Yes
Http://opendatacommunities.org/id/metropolitan-district-council/leeds,Leeds City Council,30/06/2018,Communities and Environment,Customer Access  ,Supplies and Services,Office Furniture & Equipment,201,04/05/2018,0618-00728,0,37.11,R,Amazon Svcs Europe sar,Yes
Http://opendatacommunities.org/id/metropolitan-district-council/leeds,Leeds City Council,30/06/2018,Communities and Environment,Customer Access  ,Supplies and Services,Other Hired And Contracted Services,265,07/05/2018,0618-00729,0,32.99,R,Amazon Svcs Eu-Uk Amazon.,Yes
Http://opendatacommunities.org/id/metropolitan-district-council/leeds,Leeds City Council,30/06/2018,Resources and Housing,Technology  ,Supplies and Services,Operational Materials,205,10/05/2018,0618-00730,0,8.99,R,Amazon Svcs Eu-Uk Amazon.,Yes
Http://opendatacommunities.org/id/metropolitan-district-council/leeds,Leeds City Council,30/06/2018,Strategic Landlord,Housing Management  ,Supplies and Services,Computer Software & Equipment,214,10/05/2018,0618-00731,0,12.78,R,Amazon Svcs Eu-Uk Amazon.,Yes
Http://opendatacommunities.org/id/metropolitan-district-council/leeds,Leeds City Council,30/06/2018,Resources and Housing,Leeds Building Services  ,Supplies and Services,Books & Audio-Visual Materials,206,15/05/2018,0618-00732,0,24.26,R,Amazon Svcs Eu-Uk Amazon.,Yes
Http://opendatacommunities.org/id/metropolitan-district-council/leeds,Leeds City Council,30/06/2018,Resources and Housing,Commercial Services  ,Supplies and Services,Operational Materials,205,16/05/2018,0618-00733,0,13.99,R,Amazon Svcs Eu-Uk Amazon.,Yes
Http://opendatacommunities.org/id/metropolitan-district-council/leeds,Leeds City Council,30/06/2018,Communities and Environment,Customer Access  ,Supplies and Services,Books & Audio-Visual Materials,206,17/05/2018,0618-00734,0,105,R,Amazon Svcs Eu-Uk Amazon.,Yes
Http://opendatacommunities.org/id/metropolitan-district-council/leeds,Leeds City Council,30/06/2018,Communities and Environment,Cleaner Neighbourhood Teams  ,Supplies and Services,Operational Furniture And Equipment,203,17/05/2018,0618-00735,0,3.95,R,Amazon Svcs Eu-Uk Amazon.,Yes
Http://opendatacommunities.org/id/metropolitan-district-council/leeds,Leeds City Council,30/06/2018,Communities and Environment,Customer Access  ,Supplies and Services,Books & Audio-Visual Materials,206,17/05/2018,0618-00736,0,117.96,R,Amazon Svcs Eu-Uk Amazon.,Yes
Http://opendatacommunities.org/id/metropolitan-district-council/leeds,Leeds City Council,30/06/2018,Resources and Housing,Technology  ,Supplies and Services,Computer Software & Equipment,214,21/05/2018,0618-00737,0,17.98,R,Amazon Svcs Eu-Uk Amazon.,Yes
Http://opendatacommunities.org/id/metropolitan-district-council/leeds,Leeds City Council,30/06/2018,Children and Families,Social Care  ,Transfer Payments,Leaving Care Grants,635,22/05/2018,0618-00738,0,283.32,R,Amazon Svcs Eu-Uk Amazon.,Yes
Http://opendatacommunities.org/id/metropolitan-district-council/leeds,Leeds City Council,30/06/2018,City Development,Libraries  Arts & Heritage  ,Supplies and Services,Operational Materials,205,23/05/2018,0618-00739,0,10.95,R,Amazon Svcs Eu-Uk Amazon.,Yes
Http://opendatacommunities.org/id/metropolitan-district-council/leeds,Leeds City Council,30/06/2018,City Development,Recreation  ,Supplies and Services,Books & Audio-Visual Materials,206,23/05/2018,0618-00740,0,27.99,R,Amazon Svcs Eu-Uk Amazon.,Yes
Http://opendatacommunities.org/id/metropolitan-district-council/leeds,Leeds City Council,30/06/2018,Strategic Landlord,Housing Management  ,Supplies and Services,Books & Audio-Visual Materials,206,23/05/2018,0618-00741,0,7.99,R,Amazon Svcs Eu-Uk Amazon.,Yes
Http://opendatacommunities.org/id/metropolitan-district-council/leeds,Leeds City Council,30/06/2018,Children and Families,Social Care  ,Supplies and Services,Computer Software & Equipment,214,24/05/2018,0618-00742,0,76.32,R,Amazon Svcs Eu-Uk Amazon.,Yes
Http://opendatacommunities.org/id/metropolitan-district-council/leeds,Leeds City Council,30/06/2018,Communities and Environment,Parks And Countryside  ,Supplies and Services,Books & Audio-Visual Materials,206,25/05/2018,0618-00743,0,101.88,R,Amazon Svcs Eu-Uk Amazon.,Yes
Http://opendatacommunities.org/id/metropolitan-district-council/leeds,Leeds City Council,30/06/2018,Children and Families,Social Care  ,Supplies and Services,Computer Software & Equipment,214,26/05/2018,0618-00744,0,43.63,R,Amazon Svcs Eu-Uk Amazon.,Yes
Http://opendatacommunities.org/id/metropolitan-district-council/leeds,Leeds City Council,30/06/2018,Resources and Housing,Finance  ,Supplies and Services,Office Furniture & Equipment,201,28/05/2018,0618-00745,0,16.99,R,Amazon Svcs Eu-Uk Amazon.,Yes
Http://opendatacommunities.org/id/metropolitan-district-council/leeds,Leeds City Council,30/06/2018,Strategic Landlord,Housing Management  ,Supplies and Services,Books & Audio-Visual Materials,206,28/05/2018,0618-00746,0,14.48,R,Amazon Svcs Eu-Uk Amazon.,Yes
Http://opendatacommunities.org/id/metropolitan-district-council/leeds,Leeds City Council,30/06/2018,Children and Families,Social Care  ,Supplies and Services,Teaching Furniture & Equipment,207,29/05/2018,0618-00747,0,49.99,R,Amazon Svcs Eu-Uk Amazon.,Yes
Http://opendatacommunities.org/id/metropolitan-district-council/leeds,Leeds City Council,30/06/2018,City Development,Markets & City Centre Management  ,Supplies and Services,Books & Audio-Visual Materials,206,29/05/2018,0618-00748,0,5.98,R,Amazon Svcs Eu-Uk Amazon.,Yes
Http://opendatacommunities.org/id/metropolitan-district-council/leeds,Leeds City Council,30/06/2018,Children and Families,Social Care  ,Supplies and Services,Teaching Furniture & Equipment,207,29/05/2018,0618-00749,0,12.54,R,Amazon Svcs Eu-Uk Amazon.,Yes
Http://opendatacommunities.org/id/metropolitan-district-council/leeds,Leeds City Council,30/06/2018,Communities and Environment,Communities  ,Supplies and Services,Books & Audio-Visual Materials,206,30/05/2018,0618-00750,0,23.75,R,Amazon Svcs Eu-Uk Amazon.,Yes
Http://opendatacommunities.org/id/metropolitan-district-council/leeds,Leeds City Council,30/06/2018,City Development,Libraries  Arts & Heritage  ,Supplies and Services,Books & Audio-Visual Materials,206,27/03/2018,0618-00751,0,23.98,R,Amazon UK Marketplace,Yes
Http://opendatacommunities.org/id/metropolitan-district-council/leeds,Leeds City Council,30/06/2018,Children and Families,Partnerships & Health  ,Supplies and Services,Office Consumables,210,30/04/2018,0618-00752,0,16.39,R,Amazon UK Marketplace,Yes
Http://opendatacommunities.org/id/metropolitan-district-council/leeds,Leeds City Council,30/06/2018,Resources and Housing,Leeds Building Services  ,Supplies and Services,Books & Audio-Visual Materials,206,01/05/2018,0618-00753,0,7.59,R,Amazon UK Marketplace,Yes
Http://opendatacommunities.org/id/metropolitan-district-council/leeds,Leeds City Council,30/06/2018,City Development,Markets & City Centre Management  ,Supplies and Services,Books & Audio-Visual Materials,206,02/05/2018,0618-00754,0,14.57,R,Amazon UK Marketplace,Yes
Http://opendatacommunities.org/id/metropolitan-district-council/leeds,Leeds City Council,30/06/2018,Communities and Environment,Customer Access  ,Supplies and Services,Operational Materials,205,02/05/2018,0618-00755,0,14.78,R,Amazon UK Marketplace,Yes
Http://opendatacommunities.org/id/metropolitan-district-council/leeds,Leeds City Council,30/06/2018,Communities and Environment,Cleaner Neighbourhood Teams  ,Supplies and Services,Computer Software & Equipment,214,02/05/2018,0618-00756,0,9.99,R,Amazon UK Marketplace,Yes
Http://opendatacommunities.org/id/metropolitan-district-council/leeds,Leeds City Council,30/06/2018,Resources and Housing,Leeds Building Services  ,Supplies and Services,Books & Audio-Visual Materials,206,02/05/2018,0618-00757,0,156.48,R,Amazon UK Marketplace,Yes
Http://opendatacommunities.org/id/metropolitan-district-council/leeds,Leeds City Council,30/06/2018,Communities and Environment,Customer Access  ,Supplies and Services,Computer Software & Equipment,214,02/05/2018,0618-00758,0,29.68,R,Amazon UK Marketplace,Yes
Http://opendatacommunities.org/id/metropolitan-district-council/leeds,Leeds City Council,30/06/2018,Children and Families,Social Care  ,Supplies and Services,Teaching Materials,202,02/05/2018,0618-00759,0,7.04,R,Amazon UK Marketplace,Yes
Http://opendatacommunities.org/id/metropolitan-district-council/leeds,Leeds City Council,30/06/2018,City Development,Employment & Skills  ,Supplies and Services,Books & Audio-Visual Materials,206,02/05/2018,0618-00760,0,6.91,R,Amazon UK Marketplace,Yes
Http://opendatacommunities.org/id/metropolitan-district-council/leeds,Leeds City Council,30/06/2018,City Development,Highways  ,Supplies and Services,Operational Furniture And Equipment,203,03/05/2018,0618-00761,0,16.91,R,Amazon UK Marketplace,Yes
Http://opendatacommunities.org/id/metropolitan-district-council/leeds,Leeds City Council,30/06/2018,Children and Families,Social Care  ,Supplies and Services,Books & Audio-Visual Materials,206,03/05/2018,0618-00762,0,4.95,R,Amazon UK Marketplace,Yes
Http://opendatacommunities.org/id/metropolitan-district-council/leeds,Leeds City Council,30/06/2018,Children and Families,Social Care  ,Third Party Payments,Section 17,551,03/05/2018,0618-00763,0,95.83,R,Amazon UK Marketplace,Yes
Http://opendatacommunities.org/id/metropolitan-district-council/leeds,Leeds City Council,30/06/2018,Children and Families,Social Care  ,Supplies and Services,Teaching Materials,202,03/05/2018,0618-00764,0,4.86,R,Amazon UK Marketplace,Yes
Http://opendatacommunities.org/id/metropolitan-district-council/leeds,Leeds City Council,30/06/2018,Communities and Environment,Customer Access  ,Supplies and Services,Computer Software & Equipment,214,03/05/2018,0618-00765,0,1.29,R,Amazon UK Marketplace,Yes
Http://opendatacommunities.org/id/metropolitan-district-council/leeds,Leeds City Council,30/06/2018,Communities and Environment,Parks And Countryside  ,Supplies and Services,Clothing & Uniforms,241,03/05/2018,0618-00766,0,42.6,R,Amazon UK Marketplace,Yes
Http://opendatacommunities.org/id/metropolitan-district-council/leeds,Leeds City Council,30/06/2018,City Development,Markets & City Centre Management  ,Supplies and Services,Operational Materials,205,03/05/2018,0618-00767,0,11.62,R,Amazon UK Marketplace,Yes
Http://opendatacommunities.org/id/metropolitan-district-council/leeds,Leeds City Council,30/06/2018,Children and Families,Social Care  ,Supplies and Services,Office Consumables,210,03/05/2018,0618-00768,0,78.69,R,Amazon UK Marketplace,Yes
Http://opendatacommunities.org/id/metropolitan-district-council/leeds,Leeds City Council,30/06/2018,Resources and Housing,Finance  ,Supplies and Services,Telephones,213,03/05/2018,0618-00769,0,8.09,R,Amazon UK Marketplace,Yes
Http://opendatacommunities.org/id/metropolitan-district-council/leeds,Leeds City Council,30/06/2018,Children and Families,Social Care  ,Third Party Payments,Placement Support,550,03/05/2018,0618-00770,0,36.94,R,Amazon UK Marketplace,Yes
Http://opendatacommunities.org/id/metropolitan-district-council/leeds,Leeds City Council,30/06/2018,Children and Families,Social Care  ,Supplies and Services,Teaching Materials,202,03/05/2018,0618-00771,0,5.62,R,Amazon UK Marketplace,Yes
Http://opendatacommunities.org/id/metropolitan-district-council/leeds,Leeds City Council,30/06/2018,Resources and Housing,Leeds Building Services  ,Supplies and Services,Books & Audio-Visual Materials,206,04/05/2018,0618-00772,0,3.25,R,Amazon UK Marketplace,Yes
Http://opendatacommunities.org/id/metropolitan-district-council/leeds,Leeds City Council,30/06/2018,Communities and Environment,Parks And Countryside  ,Supplies and Services,Operational Furniture And Equipment,203,04/05/2018,0618-00773,0,7.98,R,Amazon UK Marketplace,Yes
Http://opendatacommunities.org/id/metropolitan-district-council/leeds,Leeds City Council,30/06/2018,Children and Families,Social Care  ,Supplies and Services,Operational Materials,205,06/05/2018,0618-00774,0,41.65,R,Amazon UK Marketplace,Yes
Http://opendatacommunities.org/id/metropolitan-district-council/leeds,Leeds City Council,30/06/2018,Children and Families,Social Care  ,Supplies and Services,Books & Audio-Visual Materials,206,07/05/2018,0618-00775,0,61.37,R,Amazon UK Marketplace,Yes
Http://opendatacommunities.org/id/metropolitan-district-council/leeds,Leeds City Council,30/06/2018,City Development,Markets & City Centre Management  ,Supplies and Services,Operational Materials,205,07/05/2018,0618-00776,0,49.82,R,Amazon UK Marketplace,Yes
Http://opendatacommunities.org/id/metropolitan-district-council/leeds,Leeds City Council,30/06/2018,Children and Families,Social Care  ,Supplies and Services,Books & Audio-Visual Materials,206,08/05/2018,0618-00777,0,10.83,R,Amazon UK Marketplace,Yes
Http://opendatacommunities.org/id/metropolitan-district-council/leeds,Leeds City Council,30/06/2018,Adults and Health,Services For Older People - 65 And Over  ,Supplies and Services,Books & Audio-Visual Materials,206,08/05/2018,0618-00778,0,19.96,R,Amazon UK Marketplace,Yes
